Workbook

Sheet Risikoregister
C1: Identifikation | J1: qual. Ana. | T1: quant. Ana. | Z1: Maßnahmen | AK1: Controlling | AP1: Portfolio | BB1: Ganglinien
A3: HILFE | B3: Kurzbeschreibung als Schlagworte, die in der Regel in weiteren Dokumenten verwendet wird. | D3: Ereignis, durch das das Risiko herbeigeführt wird. | E3: Erläuterung der Unsicherheit, bezogen auf die Bedrohung oder Chance | F3: Die Konsequenzen, die sich für die Ziele des Projektes ergeben würden, wenn dieses Risiko eintreten würde. | G3: Datum der Risiko-Identifizierung | H3: Person, die das Risiko entdeckt hat | I3: Verantwortlicher für das Risiko | K3: Beschreibung der Erwartung des Eintretens eines Risikos | L3: Auswirkungen bzw. Folgen des Eintretens von Risikofällen bezogen auf die Kostenziele | M3: Auswirkungen bzw. Folgen des Eintretens von Risikofällen bezogen auf die Terminziele | N3: Auswirkungen bzw. Folgen des Eintretens von Risikofällen bezogen auf Umfangs- und Qualitätsziele | O3: Frühindikatoren zeigen eine erhöhte Wahrscheinlichkeit eines Projektrisikos an, während eine Verhinderung seines Eintretens noch möglich ist | P3: Gruppe gleichartiger oder ähnlicher Risiken bezüglich möglicher Ursachen, Eintritts-wahrscheinlichkeit, Auswirkungen oder sonstiger Kriterien | Q3: Beginn des risikobehafteten Zeitraumes | R3: Ende des risikobehafteten Zeitraumes | S3: Risikowert ergibt sich aus der Risikowahr-scheinlichkeit und der max. Auswirkung | U3: Beschreibung der Erwartung des Eintretens eines Risikos als konkreter Wert | V3: Monetäre Bewertung des Schadens bei Eintritt des Risikos. | W3: Terminliche Bewertung des Schadens bei Eintritt des Risikos. | X3: Bewertung des Schadens auf Umfang und Qualität bei Eintritt des Risikos. | Y3: Berechnetes Produkt der Schadenshöhe und Wahrscheinlichkeit. | AA3: Art und Weise des Umgangs mit Risiken und die Gestaltung der Risikobewältigung. | AB3: Beschreibung der Risikomaßnahme | AC3: Kosten zur Durchführung der Maßnahme. | AD3: Beschreibung der Erwartung des Eintretens eines Risikofalles oder einer Chance unter Berücksichtigung der Risiko-Maßnahme. | AE3: Auswirkungen bzw. Folgen des Eintretens von Risikofällen unter Berücksichtigung der Risiko-Maßnahme. | AI3: Berechnetes Produkt der Punktewerte von Wahrscheinlichkeit und Auswirkung nach Maßnahme. | AJ3: Berechnetes Produkt der Schadenshöhe und Wahrscheinlichkeit* (nach Maßnahme). | AL3: Status der Arbeiten an der Risiko-Maßnahme | AM3: Termin, an dem die Maßnahme geplant beendet ist. | AN3: Status des Risikos. | AO3: freies Textfeld | AQ3: Numerischer Wert der Wahrscheinlichkeit. Bezieht sich auf das Risiko vor Maßnahmenumsetzung | AR3: Hilfswert der Wahrscheinlichkeit zur Darstellung im Risikoportfolio. Bezieht sich auf das Risiko vor Maßnahmenumsetzung | AS3: Numerischer Wert Gesamtauswirkung (maximaler Wert der Auswirkungen von Kosten, Termine und Leistung). Bezieht sich auf das Risiko vor Maßnahmenumsetzung | AU3: Hilfswert für Berechnung | AW3: Hilfswert der Auswirkung zur Darstellung im Risikoportfolio. Bezieht sich auf das Risiko vor Maßnahmenumsetzung | AX3: Hilfswert der Wahrscheinlichkeit zur Darstellung im Risikoportfolio. Bezieht sich auf das Risiko nach Maßnahmenumsetzung | AY3: Hilfswert der Auswirkung zur Darstellung im Risikoportfolio. Bezieht sich auf das Risiko nach Maßnahmenumsetzung | AZ3: Numerischer Wert der Wahrscheinlichkeit in Abhängigkeit des aktuellen Standes der Maßnahmenumsetzung | BA3: Numerischer Wert der Auswirkung in Abhängigkeit des aktuellen Standes der Maßnahmenumsetzung
A4: Risikoidentifikation | K4: qualitative / semi-quantitative Risikoanalyse | V4: quantitative Analyse | AA4: Risikobewältigungsplanung | AL4: Risikoüberwachung und -steuerung | AR4: Risikoportfolio
A5: ID | B5: Risiko-Kurzbeschreibung | C5: 1 | D5: Risiko-Ursache | E5: Risiko-Ereignis | F5: Risiko-Auswirkung | G5: Identifiziert am | H5: Risiko-Entdecker | I5: Risiko-Owner | J5: 2 | K5: Wahrscheinlichkeit qual. (vor Maßnahme) | L5: Auswirkung Kosten qual. (vor Maßnahme) | M5: Auswirkung Termine qual. (vor Maßnahme) | N5: Auswirkung Leistung qual. (vor Maßnahme) | O5: Frühwarnindikator | P5: Risiko-Kategorie | Q5: Zeitraum von | R5: Zeitraum bis | S5: Risikowert (in Punkten) | T5: 3 | U5: Wahrscheinlichkeit quant. (vor Maßnahme) | V5: Auswirkung Kosten quant. | W5: Auswirkung Termine quant. | X5: Auswirkung Leistung quant. | Y5: Risikowert (in Kosten) | Z5: 4 | AA5: Risikostrategie | AB5: Risiko-Maßnahme | AC5: Maßnahmen-Kosten | AD5: Wahrscheinlichkeit* (nach Maßnahme) | AE5: Auswirkung Kosten (nach Maßnahme) | AF5: Auswirkung Termine (nach Maßnahme) | AG5: Auswirkung Leistung (nach Maßnahme) | AH5: Maßnahmen-Owner | AI5: Risikowert* (in Punkten) | AJ5: Risikowert* (in Kosten) | AK5: 5 | AL5: Maßnahmen-Status | AM5: Endtermin | AN5: Risikostatus | AO5: Bemerkung | AP5: 6 | AQ5: W. num (vor Maßnahme) | AR5: W. num Portfolio (vor Maßnahme) | AS5: A. num (vor Maßnahme) | AT5: A. num (nach Maßnahme) | AU5: A. num Portfolio Hilfswert (vor Maßnahme) | AV5: A. num Portfolio Hilfswert (nach Maßnahme) | AW5: A. num Portfolio (vor Maßnahme) | AX5: W. num (nach Maßnahme) | AY5: A. num (nach Maßnahme)2 | AZ5: W. num (aktuell) | BA5: A. num (aktuell) | BB5: 7 | BC5: Zeitraum von num | BD5: Zeitraum bis num | BE5: Risikowert Zeitraum 1 | BF5: Risikowert Zeitraum 2 | BG5: Risikowert Zeitraum 3 | BH5: Risikowert Zeitraum 4 | BI5: Risikowert Zeitraum 5 | BJ5: Risikowert Zeitraum 6 | BK5: Risikowert Zeitraum 7 | BL5: Risikowert Zeitraum 8 | BM5: Risikowert Zeitraum 9
A6: 1 | B6: Wetterbedinge Unfallgefahr | D6: Bodenfrost und Nebel | E6: Auf der Fahrt passiert ein Unfall | F6: Auto wird beschädigt. | G6: 2014-08-08 | I6: Herr Müller | K6: wahrscheinlich (65 - 90%) | L6: fatal | M6: fatal | O6: Temperatur sinkt auf weniger als 3 Grad. Nebel zieht auf | Q6: Fahrt Bonn - Dortmund | S6: =IFERROR(Risikoregister[[#This Row],[W. num (vor Maßnahme)]]*Risikoregister[[#This Row],[A. num (vor Maßnahme)]],#N/A) -> 72 | U6: 0.75 | V6: 11800 | W6: Familienfeier wird verpasst | Y6: =IFERROR(Risikoregister[[#This Row],[Wahrscheinlichkeit quant. (vor Maßnahme)]]*Risikoregister[[#This Row],[Auswirkung Kosten quant.]],#N/A) -> 8850 | AA6: Bedrohung: vermindern | AB6: Vorsichtige Fahrweise (präventiv), Winterreifen (präventiv), Vollkaskoversicherung (korrektiv), Beitritt in ADAC (korrektiv) | AC6: 350 | AD6: kaum denkbar (< 10%) | AE6: gering | AF6: gering | AH6: Herr Müller | AI6: =IFERROR(VLOOKUP(Risikoregister[[#This Row],[Wahrscheinlichkeit* (nach Maßnahme)]],Tab_Wahrscheinlichkeit[],7,0)*Risikoregister[[#This Row],[A. num (nach Maßnahme)]],#N/A) -> 2 | AJ6: =IFERROR(VLOOKUP(Risikoregister[[#This Row],[Wahrscheinlichkeit* (nach Maßnahme)]],Tab_Wahrscheinlichkeit[],6,0)*Risikoregister[[#This Row],[Auswirkung Kosten quant.]],#N/A) -> 590 | AL6: abgeschlossen | AM6: 2017-10-06 | AN6: geschlossen | AO6: Mittlerweile ist es Mittag und die Temperaturen liegen über 10 Grad. | AQ6: =IFERROR(VLOOKUP(Risikoregister[[#This Row],[Wahrscheinlichkeit qual. (vor Maßnahme)]],Tab_Wahrscheinlichkeit[],7,FALSE),#N/A) -> 8 | AR6: =IFERROR(VLOOKUP(Risikoregister[[#This Row],[Wahrscheinlichkeit qual. (vor Maßnahme)]],Tab_Wahrscheinlichkeit[],5,FALSE)+Versatz_Portfolio,#N/A) -> 4.420345023 | AS6: =MAX( IF(ISBLANK(Risikoregister[[#This Row],[Auswirkung Kosten qual. (vor Maßnahme)]]),0, VLOOKUP(Risikoregister[[#This Row],[Auswirkung Kosten qual. (vor Maßnahme)]],Tab_Auswirkung[],6,FALSE) ), IF(ISBLANK(Risikoregister[[#This Row],[Auswirkung Termine qual. (vor Maßnahme)]]),0, VLOOKUP(Risikoregister[[#This Row],[Auswirkung Termine qual. (vor Maßnahme)]],Tab_Auswirkung[],6,FALSE) ), IF(ISBLANK(Risikoregister[[#This Row],[Auswirkung Leistung qual. (vor Maßnahme)]]),0, VLOOKUP(Risikoregister[[#This Row],[Auswirkung Leistung qual. (vor Maßnahme)]],Tab_Auswirkung[],6,FALSE) ), ) -> 9 | AT6: =MAX( IF(ISBLANK(Risikoregister[[#This Row],[Auswirkung Kosten (nach Maßnahme)]]),0, VLOOKUP(Risikoregister[[#This Row],[Auswirkung Kosten (nach Maßnahme)]],Tab_Auswirkung[],6,FALSE) ), IF(ISBLANK(Risikoregister[[#This Row],[Auswirkung Termine (nach Maßnahme)]]),0, VLOOKUP(Risikoregister[[#This Row],[Auswirkung Termine (nach Maßnahme)]],Tab_Auswirkung[],6,FALSE) ), IF(ISBLANK(Risikoregister[[#This Row],[Auswirkung Leistung (nach Maßnahme)]]),0, VLOOKUP(Risikoregister[[#This Row],[Auswirkung Leistung (nach Maßnahme)]],Tab_Auswirkung[],6,FALSE) ), ) -> 2 | AU6: =MAX( IF(ISBLANK(Risikoregister[[#This Row],[Auswirkung Kosten qual. (vor Maßnahme)]]),0, VLOOKUP(Risikoregister[[#This Row],[Auswirkung Kosten qual. (vor Maßnahme)]],Tab_Auswirkung[],5,FALSE) ), IF(ISBLANK(Risikoregister[[#This Row],[Auswirkung Termine qual. (vor Maßnahme)]]),0, VLOOKUP(Risikoregister[[#This Row],[Auswirkung Termine qual. (vor Maßnahme)]],Tab_Auswirkung[],5,FALSE) ), IF(ISBLANK(Risikoregister[[#This Row],[Auswirkung Leistung qual. (vor Maßnahme)]]),0, VLOOKUP(Risikoregister[[#This Row],[Auswirkung Leistung qual. (vor Maßnahme)]],Tab_Auswirkung[],5,FALSE) ), ) -> 5.5 | AV6: =MAX( IF(ISBLANK(Risikoregister[[#This Row],[Auswirkung Kosten (nach Maßnahme)]]),0, VLOOKUP(Risikoregister[[#This Row],[Auswirkung Kosten (nach Maßnahme)]],Tab_Auswirkung[],5,FALSE) ), IF(ISBLANK(Risikoregister[[#This Row],[Auswirkung Termine (nach Maßnahme)]]),0, VLOOKUP(Risikoregister[[#This Row],[Auswirkung Termine (nach Maßnahme)]],Tab_Auswirkung[],5,FALSE) ), IF(ISBLANK(Risikoregister[[#This Row],[Auswirkung Leistung (nach Maßnahme)]]),0, VLOOKUP(Risikoregister[[#This Row],[Auswirkung Leistung (nach Maßnahme)]],Tab_Auswirkung[],5,FALSE) ), ) -> 1.5 | AW6: =IF(Risikoregister[[#This Row],[A. num Portfolio Hilfswert (vor Maßnahme)]]=0,#N/A,Risikoregister[[#This Row],[A. num Portfolio Hilfswert (vor Maßnahme)]]+Versatz_Portfolio) -> 5.411567215 | AX6: =IFERROR(VLOOKUP(Risikoregister[[#This Row],[Wahrscheinlichkeit* (nach Maßnahme)]],Tab_Wahrscheinlichkeit[],5,FALSE)+Versatz_Portfolio,#N/A) -> 0.5657373237 | AY6: =IF(Risikoregister[[#This Row],[A. num Portfolio Hilfswert (nach Maßnahme)]]=0,#N/A,Risikoregister[[#This Row],[A. num Portfolio Hilfswert (nach Maßnahme)]]+Versatz_Portfolio) -> 1.376284165 | AZ6: =IF(Risikoregister[[#This Row],[Maßnahmen-Status]]=Planung!$W$9,Risikoregister[[#This Row],[W. num (nach Maßnahme)]],Risikoregister[[#This Row],[W. num Portfolio (vor Maßnahme)]]) -> 0.5657373237 | BA6: =IF(Risikoregister[[#This Row],[Maßnahmen-Status]]=Planung!$W$9,Risikoregister[[#This Row],[A. num (nach Maßnahme)2]],Risikoregister[[#This Row],[A. num Portfolio (vor Maßnahme)]]) -> 1.376284165 | BC6: =VLOOKUP(Risikoregister[[#This Row],[Zeitraum von]],Zeiträume[],2,FALSE) -> 1 | BD6: =IF(ISBLANK(Risikoregister[[#This Row],[Zeitraum bis]]),Risikoregister[[#This Row],[Zeitraum von num]],VLOOKUP(Risikoregister[[#This Row],[Zeitraum bis]],Zeiträume[],2,FALSE)) -> 1 | BE6: =IFERROR(IF(AND(Risikoregister[[#This Row],[Zeitraum von num]]<=1,1<=Risikoregister[[#This Row],[Zeitraum bis num]]),Risikoregister[[#This Row],[Risikowert (in Punkten)]],0),"") -> 72 | BF6: =IFERROR(IF(AND(Risikoregister[[#This Row],[Zeitraum von num]]<=2,2<=Risikoregister[[#This Row],[Zeitraum bis num]]),Risikoregister[[#This Row],[Risikowert (in Punkten)]],0),"") -> 0 | BG6: =IFERROR(IF(AND(Risikoregister[[#This Row],[Zeitraum von num]]<=3,3<=Risikoregister[[#This Row],[Zeitraum bis num]]),Risikoregister[[#This Row],[Risikowert (in Punkten)]],0),"") -> 0 | BH6: =IFERROR(IF(AND(Risikoregister[[#This Row],[Zeitraum von num]]<=4,4<=Risikoregister[[#This Row],[Zeitraum bis num]]),Risikoregister[[#This Row],[Risikowert (in Punkten)]],0),"") -> 0 | BI6: =IFERROR(IF(AND(Risikoregister[[#This Row],[Zeitraum von num]]<=5,5<=Risikoregister[[#This Row],[Zeitraum bis num]]),Risikoregister[[#This Row],[Risikowert (in Punkten)]],0),"") -> 0 | BJ6: =IFERROR(IF(AND(Risikoregister[[#This Row],[Zeitraum von num]]<=6,6<=Risikoregister[[#This Row],[Zeitraum bis num]]),Risikoregister[[#This Row],[Risikowert (in Punkten)]],0),"") -> 0 | BK6: =IFERROR(IF(AND(Risikoregister[[#This Row],[Zeitraum von num]]<=7,7<=Risikoregister[[#This Row],[Zeitraum bis num]]),Risikoregister[[#This Row],[Risikowert (in Punkten)]],0),"") -> 0 | BL6: =IFERROR(IF(AND(Risikoregister[[#This Row],[Zeitraum von num]]<=8,8<=Risikoregister[[#This Row],[Zeitraum bis num]]),Risikoregister[[#This Row],[Risikowert (in Punkten)]],0),"") -> 0 | BM6: =IFERROR(IF(AND(Risikoregister[[#This Row],[Zeitraum von num]]<=9,9<=Risikoregister[[#This Row],[Zeitraum bis num]]),Risikoregister[[#This Row],[Risikowert (in Punkten)]],0),"") -> 0
A7: 2 | B7: Strafzettel durch zu schnelles Fahren | D7: Viele Baustellen und Geschwindigkeitsbegrenzungen | E7: Wir werden „geblitzt“ | F7: Wir bekommen einen Strafzettel | G7: 2014-08-08 | I7: Herr Müller | K7: kaum denkbar (< 10%) | L7: gering | O7: Geschwindigkeit wird oft überschritten | Q7: Fahrt Bonn - Dortmund | R7: Fahrt Magdeburg - Berlin | S7: =IFERROR(Risikoregister[[#This Row],[W. num (vor Maßnahme)]]*Risikoregister[[#This Row],[A. num (vor Maßnahme)]],#N/A) -> 2 | U7: 0.05 | V7: 100 | Y7: =IFERROR(Risikoregister[[#This Row],[Wahrscheinlichkeit quant. (vor Maßnahme)]]*Risikoregister[[#This Row],[Auswirkung Kosten quant.]],#N/A) -> 5 | AA7: Bedrohung: akzeptieren | AB7: Das Risiko ist aufgrund des Tempomaten gering und wird getragen. Dennoch genügend Bargeld einstecken. | AC7: 0 | AD7: kaum denkbar (< 10%) | AE7: gering | AI7: =IFERROR(VLOOKUP(Risikoregister[[#This Row],[Wahrscheinlichkeit* (nach Maßnahme)]],Tab_Wahrscheinlichkeit[],7,0)*Risikoregister[[#This Row],[A. num (nach Maßnahme)]],#N/A) -> 2 | AJ7: =IFERROR(VLOOKUP(Risikoregister[[#This Row],[Wahrscheinlichkeit* (nach Maßnahme)]],Tab_Wahrscheinlichkeit[],6,0)*Risikoregister[[#This Row],[Auswirkung Kosten quant.]],#N/A) -> 5 | AN7: offen | AQ7: =IFERROR(VLOOKUP(Risikoregister[[#This Row],[Wahrscheinlichkeit qual. (vor Maßnahme)]],Tab_Wahrscheinlichkeit[],7,FALSE),#N/A) -> 1 | AR7: =IFERROR(VLOOKUP(Risikoregister[[#This Row],[Wahrscheinlichkeit qual. (vor Maßnahme)]],Tab_Wahrscheinlichkeit[],5,FALSE)+Versatz_Portfolio,#N/A) -> 0.4738499984 | AS7: =MAX( IF(ISBLANK(Risikoregister[[#This Row],[Auswirkung Kosten qual. (vor Maßnahme)]]),0, VLOOKUP(Risikoregister[[#This Row],[Auswirkung Kosten qual. (vor Maßnahme)]],Tab_Auswirkung[],6,FALSE) ), IF(ISBLANK(Risikoregister[[#This Row],[Auswirkung Termine qual. (vor Maßnahme)]]),0, VLOOKUP(Risikoregister[[#This Row],[Auswirkung Termine qual. (vor Maßnahme)]],Tab_Auswirkung[],6,FALSE) ), IF(ISBLANK(Risikoregister[[#This Row],[Auswirkung Leistung qual. (vor Maßnahme)]]),0, VLOOKUP(Risikoregister[[#This Row],[Auswirkung Leistung qual. (vor Maßnahme)]],Tab_Auswirkung[],6,FALSE) ), ) -> 2 | AT7: =MAX( IF(ISBLANK(Risikoregister[[#This Row],[Auswirkung Kosten (nach Maßnahme)]]),0, VLOOKUP(Risikoregister[[#This Row],[Auswirkung Kosten (nach Maßnahme)]],Tab_Auswirkung[],6,FALSE) ), IF(ISBLANK(Risikoregister[[#This Row],[Auswirkung Termine (nach Maßnahme)]]),0, VLOOKUP(Risikoregister[[#This Row],[Auswirkung Termine (nach Maßnahme)]],Tab_Auswirkung[],6,FALSE) ), IF(ISBLANK(Risikoregister[[#This Row],[Auswirkung Leistung (nach Maßnahme)]]),0, VLOOKUP(Risikoregister[[#This Row],[Auswirkung Leistung (nach Maßnahme)]],Tab_Auswirkung[],6,FALSE) ), ) -> 2 | AU7: =MAX( IF(ISBLANK(Risikoregister[[#This Row],[Auswirkung Kosten qual. (vor Maßnahme)]]),0, VLOOKUP(Risikoregister[[#This Row],[Auswirkung Kosten qual. (vor Maßnahme)]],Tab_Auswirkung[],5,FALSE) ), IF(ISBLANK(Risikoregister[[#This Row],[Auswirkung Termine qual. (vor Maßnahme)]]),0, VLOOKUP(Risikoregister[[#This Row],[Auswirkung Termine qual. (vor Maßnahme)]],Tab_Auswirkung[],5,FALSE) ), IF(ISBLANK(Risikoregister[[#This Row],[Auswirkung Leistung qual. (vor Maßnahme)]]),0, VLOOKUP(Risikoregister[[#This Row],[Auswirkung Leistung qual. (vor Maßnahme)]],Tab_Auswirkung[],5,FALSE) ), ) -> 1.5 | AV7: =MAX( IF(ISBLANK(Risikoregister[[#This Row],[Auswirkung Kosten (nach Maßnahme)]]),0, VLOOKUP(Risikoregister[[#This Row],[Auswirkung Kosten (nach Maßnahme)]],Tab_Auswirkung[],5,FALSE) ), IF(ISBLANK(Risikoregister[[#This Row],[Auswirkung Termine (nach Maßnahme)]]),0, VLOOKUP(Risikoregister[[#This Row],[Auswirkung Termine (nach Maßnahme)]],Tab_Auswirkung[],5,FALSE) ), IF(ISBLANK(Risikoregister[[#This Row],[Auswirkung Leistung (nach Maßnahme)]]),0, VLOOKUP(Risikoregister[[#This Row],[Auswirkung Leistung (nach Maßnahme)]],Tab_Auswirkung[],5,FALSE) ), ) -> 1.5 | AW7: =IF(Risikoregister[[#This Row],[A. num Portfolio Hilfswert (vor Maßnahme)]]=0,#N/A,Risikoregister[[#This Row],[A. num Portfolio Hilfswert (vor Maßnahme)]]+Versatz_Portfolio) -> 1.591153629 | AX7: =IFERROR(VLOOKUP(Risikoregister[[#This Row],[Wahrscheinlichkeit* (nach Maßnahme)]],Tab_Wahrscheinlichkeit[],5,FALSE)+Versatz_Portfolio,#N/A) -> 0.4091539066 | AY7: =IF(Risikoregister[[#This Row],[A. num Portfolio Hilfswert (nach Maßnahme)]]=0,#N/A,Risikoregister[[#This Row],[A. num Portfolio Hilfswert (nach Maßnahme)]]+Versatz_Portfolio) -> 1.501747762 | AZ7: =IF(Risikoregister[[#This Row],[Maßnahmen-Status]]=Planung!$W$9,Risikoregister[[#This Row],[W. num (nach Maßnahme)]],Risikoregister[[#This Row],[W. num Portfolio (vor Maßnahme)]]) -> 0.4738499984 | BA7: =IF(Risikoregister[[#This Row],[Maßnahmen-Status]]=Planung!$W$9,Risikoregister[[#This Row],[A. num (nach Maßnahme)2]],Risikoregister[[#This Row],[A. num Portfolio (vor Maßnahme)]]) -> 1.591153629 | BC7: =VLOOKUP(Risikoregister[[#This Row],[Zeitraum von]],Zeiträume[],2,FALSE) -> 1 | BD7: =IF(ISBLANK(Risikoregister[[#This Row],[Zeitraum bis]]),Risikoregister[[#This Row],[Zeitraum von num]],VLOOKUP(Risikoregister[[#This Row],[Zeitraum bis]],Zeiträume[],2,FALSE)) -> 5 | BE7: =IFERROR(IF(AND(Risikoregister[[#This Row],[Zeitraum von num]]<=1,1<=Risikoregister[[#This Row],[Zeitraum bis num]]),Risikoregister[[#This Row],[Risikowert (in Punkten)]],0),"") -> 2 | BF7: =IFERROR(IF(AND(Risikoregister[[#This Row],[Zeitraum von num]]<=2,2<=Risikoregister[[#This Row],[Zeitraum bis num]]),Risikoregister[[#This Row],[Risikowert (in Punkten)]],0),"") -> 2 | BG7: =IFERROR(IF(AND(Risikoregister[[#This Row],[Zeitraum von num]]<=3,3<=Risikoregister[[#This Row],[Zeitraum bis num]]),Risikoregister[[#This Row],[Risikowert (in Punkten)]],0),"") -> 2 | BH7: =IFERROR(IF(AND(Risikoregister[[#This Row],[Zeitraum von num]]<=4,4<=Risikoregister[[#This Row],[Zeitraum bis num]]),Risikoregister[[#This Row],[Risikowert (in Punkten)]],0),"") -> 2 | BI7: =IFERROR(IF(AND(Risikoregister[[#This Row],[Zeitraum von num]]<=5,5<=Risikoregister[[#This Row],[Zeitraum bis num]]),Risikoregister[[#This Row],[Risikowert (in Punkten)]],0),"") -> 2 | BJ7: =IFERROR(IF(AND(Risikoregister[[#This Row],[Zeitraum von num]]<=6,6<=Risikoregister[[#This Row],[Zeitraum bis num]]),Risikoregister[[#This Row],[Risikowert (in Punkten)]],0),"") -> 0 | BK7: =IFERROR(IF(AND(Risikoregister[[#This Row],[Zeitraum von num]]<=7,7<=Risikoregister[[#This Row],[Zeitraum bis num]]),Risikoregister[[#This Row],[Risikowert (in Punkten)]],0),"") -> 0 | BL7: =IFERROR(IF(AND(Risikoregister[[#This Row],[Zeitraum von num]]<=8,8<=Risikoregister[[#This Row],[Zeitraum bis num]]),Risikoregister[[#This Row],[Risikowert (in Punkten)]],0),"") -> 0 | BM7: =IFERROR(IF(AND(Risikoregister[[#This Row],[Zeitraum von num]]<=9,9<=Risikoregister[[#This Row],[Zeitraum bis num]]),Risikoregister[[#This Row],[Risikowert (in Punkten)]],0),"") -> 0
A8: 3 | B8: Autoschaden | D8: Schaden am Auto | E8: Auto bleibt liegen | F8: Wir erscheinen nicht rechtzeitig zur Feier in Berlin. | G8: 2014-08-08 | I8: Herr Müller | K8: unwahrscheinlich (35 - 50%) | M8: fatal | Q8: Fahrt Bonn - Dortmund | R8: Fahrt Magdeburg - Berlin | S8: =IFERROR(Risikoregister[[#This Row],[W. num (vor Maßnahme)]]*Risikoregister[[#This Row],[A. num (vor Maßnahme)]],#N/A) -> 36 | U8: 0.35 | W8: Familienfeier wird verpasst | Y8: =IFERROR(Risikoregister[[#This Row],[Wahrscheinlichkeit quant. (vor Maßnahme)]]*Risikoregister[[#This Row],[Auswirkung Kosten quant.]],#N/A) -> 0 | AA8: Bedrohung: vermindern | AB8: Das Auto vor der Fahrt in der Werkstatt warten (präventiv). Außerdem ADAC Versicherung abschließen (korrektiv) | AC8: 250 | AD8: kaum denkbar (< 10%) | AF8: erheblich | AH8: Herr Müller | AI8: =IFERROR(VLOOKUP(Risikoregister[[#This Row],[Wahrscheinlichkeit* (nach Maßnahme)]],Tab_Wahrscheinlichkeit[],7,0)*Risikoregister[[#This Row],[A. num (nach Maßnahme)]],#N/A) -> 6 | AJ8: =IFERROR(VLOOKUP(Risikoregister[[#This Row],[Wahrscheinlichkeit* (nach Maßnahme)]],Tab_Wahrscheinlichkeit[],6,0)*Risikoregister[[#This Row],[Auswirkung Kosten quant.]],#N/A) -> 0 | AL8: abgeschlossen | AN8: offen | AQ8: =IFERROR(VLOOKUP(Risikoregister[[#This Row],[Wahrscheinlichkeit qual. (vor Maßnahme)]],Tab_Wahrscheinlichkeit[],7,FALSE),#N/A) -> 4 | AR8: =IFERROR(VLOOKUP(Risikoregister[[#This Row],[Wahrscheinlichkeit qual. (vor Maßnahme)]],Tab_Wahrscheinlichkeit[],5,FALSE)+Versatz_Portfolio,#N/A) -> 2.442812436 | AS8: =MAX( IF(ISBLANK(Risikoregister[[#This Row],[Auswirkung Kosten qual. (vor Maßnahme)]]),0, VLOOKUP(Risikoregister[[#This Row],[Auswirkung Kosten qual. (vor Maßnahme)]],Tab_Auswirkung[],6,FALSE) ), IF(ISBLANK(Risikoregister[[#This Row],[Auswirkung Termine qual. (vor Maßnahme)]]),0, VLOOKUP(Risikoregister[[#This Row],[Auswirkung Termine qual. (vor Maßnahme)]],Tab_Auswirkung[],6,FALSE) ), IF(ISBLANK(Risikoregister[[#This Row],[Auswirkung Leistung qual. (vor Maßnahme)]]),0, VLOOKUP(Risikoregister[[#This Row],[Auswirkung Leistung qual. (vor Maßnahme)]],Tab_Auswirkung[],6,FALSE) ), ) -> 9 | AT8: =MAX( IF(ISBLANK(Risikoregister[[#This Row],[Auswirkung Kosten (nach Maßnahme)]]),0, VLOOKUP(Risikoregister[[#This Row],[Auswirkung Kosten (nach Maßnahme)]],Tab_Auswirkung[],6,FALSE) ), IF(ISBLANK(Risikoregister[[#This Row],[Auswirkung Termine (nach Maßnahme)]]),0, VLOOKUP(Risikoregister[[#This Row],[Auswirkung Termine (nach Maßnahme)]],Tab_Auswirkung[],6,FALSE) ), IF(ISBLANK(Risikoregister[[#This Row],[Auswirkung Leistung (nach Maßnahme)]]),0, VLOOKUP(Risikoregister[[#This Row],[Auswirkung Leistung (nach Maßnahme)]],Tab_Auswirkung[],6,FALSE) ), ) -> 6 | AU8: =MAX( IF(ISBLANK(Risikoregister[[#This Row],[Auswirkung Kosten qual. (vor Maßnahme)]]),0, VLOOKUP(Risikoregister[[#This Row],[Auswirkung Kosten qual. (vor Maßnahme)]],Tab_Auswirkung[],5,FALSE) ), IF(ISBLANK(Risikoregister[[#This Row],[Auswirkung Termine qual. (vor Maßnahme)]]),0, VLOOKUP(Risikoregister[[#This Row],[Auswirkung Termine qual. (vor Maßnahme)]],Tab_Auswirkung[],5,FALSE) ), IF(ISBLANK(Risikoregister[[#This Row],[Auswirkung Leistung qual. (vor Maßnahme)]]),0, VLOOKUP(Risikoregister[[#This Row],[Auswirkung Leistung qual. (vor Maßnahme)]],Tab_Auswirkung[],5,FALSE) ), ) -> 5.5 | AV8: =MAX( IF(ISBLANK(Risikoregister[[#This Row],[Auswirkung Kosten (nach Maßnahme)]]),0, VLOOKUP(Risikoregister[[#This Row],[Auswirkung Kosten (nach Maßnahme)]],Tab_Auswirkung[],5,FALSE) ), IF(ISBLANK(Risikoregister[[#This Row],[Auswirkung Termine (nach Maßnahme)]]),0, VLOOKUP(Risikoregister[[#This Row],[Auswirkung Termine (nach Maßnahme)]],Tab_Auswirkung[],5,FALSE) ), IF(ISBLANK(Risikoregister[[#This Row],[Auswirkung Leistung (nach Maßnahme)]]),0, VLOOKUP(Risikoregister[[#This Row],[Auswirkung Leistung (nach Maßnahme)]],Tab_Auswirkung[],5,FALSE) ), ) -> 3.5 | AW8: =IF(Risikoregister[[#This Row],[A. num Portfolio Hilfswert (vor Maßnahme)]]=0,#N/A,Risikoregister[[#This Row],[A. num Portfolio Hilfswert (vor Maßnahme)]]+Versatz_Portfolio) -> 5.424675232 | AX8: =IFERROR(VLOOKUP(Risikoregister[[#This Row],[Wahrscheinlichkeit* (nach Maßnahme)]],Tab_Wahrscheinlichkeit[],5,FALSE)+Versatz_Portfolio,#N/A) -> 0.5093432166 | AY8: =IF(Risikoregister[[#This Row],[A. num Portfolio Hilfswert (nach Maßnahme)]]=0,#N/A,Risikoregister[[#This Row],[A. num Portfolio Hilfswert (nach Maßnahme)]]+Versatz_Portfolio) -> 3.582742806 | AZ8: =IF(Risikoregister[[#This Row],[Maßnahmen-Status]]=Planung!$W$9,Risikoregister[[#This Row],[W. num (nach Maßnahme)]],Risikoregister[[#This Row],[W. num Portfolio (vor Maßnahme)]]) -> 0.5093432166 | BA8: =IF(Risikoregister[[#This Row],[Maßnahmen-Status]]=Planung!$W$9,Risikoregister[[#This Row],[A. num (nach Maßnahme)2]],Risikoregister[[#This Row],[A. num Portfolio (vor Maßnahme)]]) -> 3.582742806 | BC8: =VLOOKUP(Risikoregister[[#This Row],[Zeitraum von]],Zeiträume[],2,FALSE) -> 1 | BD8: =IF(ISBLANK(Risikoregister[[#This Row],[Zeitraum bis]]),Risikoregister[[#This Row],[Zeitraum von num]],VLOOKUP(Risikoregister[[#This Row],[Zeitraum bis]],Zeiträume[],2,FALSE)) -> 5 | BE8: =IFERROR(IF(AND(Risikoregister[[#This Row],[Zeitraum von num]]<=1,1<=Risikoregister[[#This Row],[Zeitraum bis num]]),Risikoregister[[#This Row],[Risikowert (in Punkten)]],0),"") -> 36 | BF8: =IFERROR(IF(AND(Risikoregister[[#This Row],[Zeitraum von num]]<=2,2<=Risikoregister[[#This Row],[Zeitraum bis num]]),Risikoregister[[#This Row],[Risikowert (in Punkten)]],0),"") -> 36 | BG8: =IFERROR(IF(AND(Risikoregister[[#This Row],[Zeitraum von num]]<=3,3<=Risikoregister[[#This Row],[Zeitraum bis num]]),Risikoregister[[#This Row],[Risikowert (in Punkten)]],0),"") -> 36 | BH8: =IFERROR(IF(AND(Risikoregister[[#This Row],[Zeitraum von num]]<=4,4<=Risikoregister[[#This Row],[Zeitraum bis num]]),Risikoregister[[#This Row],[Risikowert (in Punkten)]],0),"") -> 36 | BI8: =IFERROR(IF(AND(Risikoregister[[#This Row],[Zeitraum von num]]<=5,5<=Risikoregister[[#This Row],[Zeitraum bis num]]),Risikoregister[[#This Row],[Risikowert (in Punkten)]],0),"") -> 36 | BJ8: =IFERROR(IF(AND(Risikoregister[[#This Row],[Zeitraum von num]]<=6,6<=Risikoregister[[#This Row],[Zeitraum bis num]]),Risikoregister[[#This Row],[Risikowert (in Punkten)]],0),"") -> 0 | BK8: =IFERROR(IF(AND(Risikoregister[[#This Row],[Zeitraum von num]]<=7,7<=Risikoregister[[#This Row],[Zeitraum bis num]]),Risikoregister[[#This Row],[Risikowert (in Punkten)]],0),"") -> 0 | BL8: =IFERROR(IF(AND(Risikoregister[[#This Row],[Zeitraum von num]]<=8,8<=Risikoregister[[#This Row],[Zeitraum bis num]]),Risikoregister[[#This Row],[Risikowert (in Punkten)]],0),"") -> 0 | BM8: =IFERROR(IF(AND(Risikoregister[[#This Row],[Zeitraum von num]]<=9,9<=Risikoregister[[#This Row],[Zeitraum bis num]]),Risikoregister[[#This Row],[Risikowert (in Punkten)]],0),"") -> 0
A9: 4 | B9: Herr Müller übermüdet | D9: Anstrengende Woche und lange Fahrt | E9: Herr Müller übermüdet, daher müssen wir eine ungeplante Pause einlegen. | F9: Wir erscheinen nicht rechtzeitig zur Feier in Berlin. | G9: 2014-08-08 | I9: Frau Müller | K9: möglich (50 - 65%) | M9: erheblich | O9: Herr Müller gähnt wiederholt | Q9: Fahrt Braunschweig - Magdeburg | R9: Fahrt Magdeburg - Berlin | S9: =IFERROR(Risikoregister[[#This Row],[W. num (vor Maßnahme)]]*Risikoregister[[#This Row],[A. num (vor Maßnahme)]],#N/A) -> 36 | U9: 0.6 | V9: 0 | W9: Familie Müller kommt zwei Stunden zu spät zur Feier | Y9: =IFERROR(Risikoregister[[#This Row],[Wahrscheinlichkeit quant. (vor Maßnahme)]]*Risikoregister[[#This Row],[Auswirkung Kosten quant.]],#N/A) -> 0 | AA9: Bedrohung: vermeiden | AB9: Es fährt Frau Müller anstatt Herr Müller (sie ist ausgeruhter) | AC9: 0 | AD9: kaum denkbar (< 10%) | AF9: unbedeutend | AH9: Frau Müller | AI9: =IFERROR(VLOOKUP(Risikoregister[[#This Row],[Wahrscheinlichkeit* (nach Maßnahme)]],Tab_Wahrscheinlichkeit[],7,0)*Risikoregister[[#This Row],[A. num (nach Maßnahme)]],#N/A) -> 1 | AJ9: =IFERROR(VLOOKUP(Risikoregister[[#This Row],[Wahrscheinlichkeit* (nach Maßnahme)]],Tab_Wahrscheinlichkeit[],6,0)*Risikoregister[[#This Row],[Auswirkung Kosten quant.]],#N/A) -> 0 | AL9: geplant | AN9: offen | AQ9: =IFERROR(VLOOKUP(Risikoregister[[#This Row],[Wahrscheinlichkeit qual. (vor Maßnahme)]],Tab_Wahrscheinlichkeit[],7,FALSE),#N/A) -> 6 | AR9: =IFERROR(VLOOKUP(Risikoregister[[#This Row],[Wahrscheinlichkeit qual. (vor Maßnahme)]],Tab_Wahrscheinlichkeit[],5,FALSE)+Versatz_Portfolio,#N/A) -> 3.581943387 | AS9: =MAX( IF(ISBLANK(Risikoregister[[#This Row],[Auswirkung Kosten qual. (vor Maßnahme)]]),0, VLOOKUP(Risikoregister[[#This Row],[Auswirkung Kosten qual. (vor Maßnahme)]],Tab_Auswirkung[],6,FALSE) ), IF(ISBLANK(Risikoregister[[#This Row],[Auswirkung Termine qual. (vor Maßnahme)]]),0, VLOOKUP(Risikoregister[[#This Row],[Auswirkung Termine qual. (vor Maßnahme)]],Tab_Auswirkung[],6,FALSE) ), IF(ISBLANK(Risikoregister[[#This Row],[Auswirkung Leistung qual. (vor Maßnahme)]]),0, VLOOKUP(Risikoregister[[#This Row],[Auswirkung Leistung qual. (vor Maßnahme)]],Tab_Auswirkung[],6,FALSE) ), ) -> 6 | AT9: =MAX( IF(ISBLANK(Risikoregister[[#This Row],[Auswirkung Kosten (nach Maßnahme)]]),0, VLOOKUP(Risikoregister[[#This Row],[Auswirkung Kosten (nach Maßnahme)]],Tab_Auswirkung[],6,FALSE) ), IF(ISBLANK(Risikoregister[[#This Row],[Auswirkung Termine (nach Maßnahme)]]),0, VLOOKUP(Risikoregister[[#This Row],[Auswirkung Termine (nach Maßnahme)]],Tab_Auswirkung[],6,FALSE) ), IF(ISBLANK(Risikoregister[[#This Row],[Auswirkung Leistung (nach Maßnahme)]]),0, VLOOKUP(Risikoregister[[#This Row],[Auswirkung Leistung (nach Maßnahme)]],Tab_Auswirkung[],6,FALSE) ), ) -> 1 | AU9: =MAX( IF(ISBLANK(Risikoregister[[#This Row],[Auswirkung Kosten qual. (vor Maßnahme)]]),0, VLOOKUP(Risikoregister[[#This Row],[Auswirkung Kosten qual. (vor Maßnahme)]],Tab_Auswirkung[],5,FALSE) ), IF(ISBLANK(Risikoregister[[#This Row],[Auswirkung Termine qual. (vor Maßnahme)]]),0, VLOOKUP(Risikoregister[[#This Row],[Auswirkung Termine qual. (vor Maßnahme)]],Tab_Auswirkung[],5,FALSE) ), IF(ISBLANK(Risikoregister[[#This Row],[Auswirkung Leistung qual. (vor Maßnahme)]]),0, VLOOKUP(Risikoregister[[#This Row],[Auswirkung Leistung qual. (vor Maßnahme)]],Tab_Auswirkung[],5,FALSE) ), ) -> 3.5 | AV9: =MAX( IF(ISBLANK(Risikoregister[[#This Row],[Auswirkung Kosten (nach Maßnahme)]]),0, VLOOKUP(Risikoregister[[#This Row],[Auswirkung Kosten (nach Maßnahme)]],Tab_Auswirkung[],5,FALSE) ), IF(ISBLANK(Risikoregister[[#This Row],[Auswirkung Termine (nach Maßnahme)]]),0, VLOOKUP(Risikoregister[[#This Row],[Auswirkung Termine (nach Maßnahme)]],Tab_Auswirkung[],5,FALSE) ), IF(ISBLANK(Risikoregister[[#This Row],[Auswirkung Leistung (nach Maßnahme)]]),0, VLOOKUP(Risikoregister[[#This Row],[Auswirkung Leistung (nach Maßnahme)]],Tab_Auswirkung[],5,FALSE) ), ) -> 0.5 | AW9: =IF(Risikoregister[[#This Row],[A. num Portfolio Hilfswert (vor Maßnahme)]]=0,#N/A,Risikoregister[[#This Row],[A. num Portfolio Hilfswert (vor Maßnahme)]]+Versatz_Portfolio) -> 3.397521662 | AX9: =IFERROR(VLOOKUP(Risikoregister[[#This Row],[Wahrscheinlichkeit* (nach Maßnahme)]],Tab_Wahrscheinlichkeit[],5,FALSE)+Versatz_Portfolio,#N/A) -> 0.5080521263 | AY9: =IF(Risikoregister[[#This Row],[A. num Portfolio Hilfswert (nach Maßnahme)]]=0,#N/A,Risikoregister[[#This Row],[A. num Portfolio Hilfswert (nach Maßnahme)]]+Versatz_Portfolio) -> 0.5001393647 | AZ9: =IF(Risikoregister[[#This Row],[Maßnahmen-Status]]=Planung!$W$9,Risikoregister[[#This Row],[W. num (nach Maßnahme)]],Risikoregister[[#This Row],[W. num Portfolio (vor Maßnahme)]]) -> 3.581943387 | BA9: =IF(Risikoregister[[#This Row],[Maßnahmen-Status]]=Planung!$W$9,Risikoregister[[#This Row],[A. num (nach Maßnahme)2]],Risikoregister[[#This Row],[A. num Portfolio (vor Maßnahme)]]) -> 3.397521662 | BC9: =VLOOKUP(Risikoregister[[#This Row],[Zeitraum von]],Zeiträume[],2,FALSE) -> 4 | BD9: =IF(ISBLANK(Risikoregister[[#This Row],[Zeitraum bis]]),Risikoregister[[#This Row],[Zeitraum von num]],VLOOKUP(Risikoregister[[#This Row],[Zeitraum bis]],Zeiträume[],2,FALSE)) -> 5 | BE9: =IFERROR(IF(AND(Risikoregister[[#This Row],[Zeitraum von num]]<=1,1<=Risikoregister[[#This Row],[Zeitraum bis num]]),Risikoregister[[#This Row],[Risikowert (in Punkten)]],0),"") -> 0 | BF9: =IFERROR(IF(AND(Risikoregister[[#This Row],[Zeitraum von num]]<=2,2<=Risikoregister[[#This Row],[Zeitraum bis num]]),Risikoregister[[#This Row],[Risikowert (in Punkten)]],0),"") -> 0 | BG9: =IFERROR(IF(AND(Risikoregister[[#This Row],[Zeitraum von num]]<=3,3<=Risikoregister[[#This Row],[Zeitraum bis num]]),Risikoregister[[#This Row],[Risikowert (in Punkten)]],0),"") -> 0 | BH9: =IFERROR(IF(AND(Risikoregister[[#This Row],[Zeitraum von num]]<=4,4<=Risikoregister[[#This Row],[Zeitraum bis num]]),Risikoregister[[#This Row],[Risikowert (in Punkten)]],0),"") -> 36 | BI9: =IFERROR(IF(AND(Risikoregister[[#This Row],[Zeitraum von num]]<=5,5<=Risikoregister[[#This Row],[Zeitraum bis num]]),Risikoregister[[#This Row],[Risikowert (in Punkten)]],0),"") -> 36 | BJ9: =IFERROR(IF(AND(Risikoregister[[#This Row],[Zeitraum von num]]<=6,6<=Risikoregister[[#This Row],[Zeitraum bis num]]),Risikoregister[[#This Row],[Risikowert (in Punkten)]],0),"") -> 0 | BK9: =IFERROR(IF(AND(Risikoregister[[#This Row],[Zeitraum von num]]<=7,7<=Risikoregister[[#This Row],[Zeitraum bis num]]),Risikoregister[[#This Row],[Risikowert (in Punkten)]],0),"") -> 0 | BL9: =IFERROR(IF(AND(Risikoregister[[#This Row],[Zeitraum von num]]<=8,8<=Risikoregister[[#This Row],[Zeitraum bis num]]),Risikoregister[[#This Row],[Risikowert (in Punkten)]],0),"") -> 0 | BM9: =IFERROR(IF(AND(Risikoregister[[#This Row],[Zeitraum von num]]<=9,9<=Risikoregister[[#This Row],[Zeitraum bis num]]),Risikoregister[[#This Row],[Risikowert (in Punkten)]],0),"") -> 0
A10: 5 | B10: Jungs fordern Pausen | D10: Den Jungs wird es langweilig | E10: Wir müssen wiederholt Pausen einlegen | F10: Wir erscheinen nicht rechtzeitig zur Feier in Berlin. | G10: 2014-08-08 | I10: Frau Müller | K10: unwahrscheinlich (35 - 50%) | M10: erheblich | O10: Jungs beschweren sich über die langweilige Fahrt | Q10: Fahrt Braunschweig - Magdeburg | R10: Fahrt Magdeburg - Berlin | S10: =IFERROR(Risikoregister[[#This Row],[W. num (vor Maßnahme)]]*Risikoregister[[#This Row],[A. num (vor Maßnahme)]],#N/A) -> 24 | U10: 0.35 | V10: 0 | W10: Familie Müller kommt eine Stunde zu spät zur Feier | Y10: =IFERROR(Risikoregister[[#This Row],[Wahrscheinlichkeit quant. (vor Maßnahme)]]*Risikoregister[[#This Row],[Auswirkung Kosten quant.]],#N/A) -> 0 | AA10: Bedrohung: vermeiden | AB10: Die Kinder bekommen für die Fahrt jeweils ein Tablet mit einigen altersgerechten Videos (präventiv) | AC10: 0 | AD10: selten (10 - 35%) | AF10: erheblich | AH10: Frau Müller | AI10: =IFERROR(VLOOKUP(Risikoregister[[#This Row],[Wahrscheinlichkeit* (nach Maßnahme)]],Tab_Wahrscheinlichkeit[],7,0)*Risikoregister[[#This Row],[A. num (nach Maßnahme)]],#N/A) -> 12 | AJ10: =IFERROR(VLOOKUP(Risikoregister[[#This Row],[Wahrscheinlichkeit* (nach Maßnahme)]],Tab_Wahrscheinlichkeit[],6,0)*Risikoregister[[#This Row],[Auswirkung Kosten quant.]],#N/A) -> 0 | AL10: abgeschlossen | AN10: eingetreten | AO10: Jungs fordern trotz der Tablets leider wiederholt Pausen. | AQ10: =IFERROR(VLOOKUP(Risikoregister[[#This Row],[Wahrscheinlichkeit qual. (vor Maßnahme)]],Tab_Wahrscheinlichkeit[],7,FALSE),#N/A) -> 4 | AR10: =IFERROR(VLOOKUP(Risikoregister[[#This Row],[Wahrscheinlichkeit qual. (vor Maßnahme)]],Tab_Wahrscheinlichkeit[],5,FALSE)+Versatz_Portfolio,#N/A) -> 2.520352754 | AS10: =MAX( IF(ISBLANK(Risikoregister[[#This Row],[Auswirkung Kosten qual. (vor Maßnahme)]]),0, VLOOKUP(Risikoregister[[#This Row],[Auswirkung Kosten qual. (vor Maßnahme)]],Tab_Auswirkung[],6,FALSE) ), IF(ISBLANK(Risikoregister[[#This Row],[Auswirkung Termine qual. (vor Maßnahme)]]),0, VLOOKUP(Risikoregister[[#This Row],[Auswirkung Termine qual. (vor Maßnahme)]],Tab_Auswirkung[],6,FALSE) ), IF(ISBLANK(Risikoregister[[#This Row],[Auswirkung Leistung qual. (vor Maßnahme)]]),0, VLOOKUP(Risikoregister[[#This Row],[Auswirkung Leistung qual. (vor Maßnahme)]],Tab_Auswirkung[],6,FALSE) ), ) -> 6 | AT10: =MAX( IF(ISBLANK(Risikoregister[[#This Row],[Auswirkung Kosten (nach Maßnahme)]]),0, VLOOKUP(Risikoregister[[#This Row],[Auswirkung Kosten (nach Maßnahme)]],Tab_Auswirkung[],6,FALSE) ), IF(ISBLANK(Risikoregister[[#This Row],[Auswirkung Termine (nach Maßnahme)]]),0, VLOOKUP(Risikoregister[[#This Row],[Auswirkung Termine (nach Maßnahme)]],Tab_Auswirkung[],6,FALSE) ), IF(ISBLANK(Risikoregister[[#This Row],[Auswirkung Leistung (nach Maßnahme)]]),0, VLOOKUP(Risikoregister[[#This Row],[Auswirkung Leistung (nach Maßnahme)]],Tab_Auswirkung[],6,FALSE) ), ) -> 6 | AU10: =MAX( IF(ISBLANK(Risikoregister[[#This Row],[Auswirkung Kosten qual. (vor Maßnahme)]]),0, VLOOKUP(Risikoregister[[#This Row],[Auswirkung Kosten qual. (vor Maßnahme)]],Tab_Auswirkung[],5,FALSE) ), IF(ISBLANK(Risikoregister[[#This Row],[Auswirkung Termine qual. (vor Maßnahme)]]),0, VLOOKUP(Risikoregister[[#This Row],[Auswirkung Termine qual. (vor Maßnahme)]],Tab_Auswirkung[],5,FALSE) ), IF(ISBLANK(Risikoregister[[#This Row],[Auswirkung Leistung qual. (vor Maßnahme)]]),0, VLOOKUP(Risikoregister[[#This Row],[Auswirkung Leistung qual. (vor Maßnahme)]],Tab_Auswirkung[],5,FALSE) ), ) -> 3.5 | AV10: =MAX( IF(ISBLANK(Risikoregister[[#This Row],[Auswirkung Kosten (nach Maßnahme)]]),0, VLOOKUP(Risikoregister[[#This Row],[Auswirkung Kosten (nach Maßnahme)]],Tab_Auswirkung[],5,FALSE) ), IF(ISBLANK(Risikoregister[[#This Row],[Auswirkung Termine (nach Maßnahme)]]),0, VLOOKUP(Risikoregister[[#This Row],[Auswirkung Termine (nach Maßnahme)]],Tab_Auswirkung[],5,FALSE) ), IF(ISBLANK(Risikoregister[[#This Row],[Auswirkung Leistung (nach Maßnahme)]]),0, VLOOKUP(Risikoregister[[#This Row],[Auswirkung Leistung (nach Maßnahme)]],Tab_Auswirkung[],5,FALSE) ), ) -> 3.5 | AW10: =IF(Risikoregister[[#This Row],[A. num Portfolio Hilfswert (vor Maßnahme)]]=0,#N/A,Risikoregister[[#This Row],[A. num Portfolio Hilfswert (vor Maßnahme)]]+Versatz_Portfolio) -> 3.616713836 | AX10: =IFERROR(VLOOKUP(Risikoregister[[#This Row],[Wahrscheinlichkeit* (nach Maßnahme)]],Tab_Wahrscheinlichkeit[],5,FALSE)+Versatz_Portfolio,#N/A) -> 1.541285617 | AY10: =IF(Risikoregister[[#This Row],[A. num Portfolio Hilfswert (nach Maßnahme)]]=0,#N/A,Risikoregister[[#This Row],[A. num Portfolio Hilfswert (nach Maßnahme)]]+Versatz_Portfolio) -> 3.393071447 | AZ10: =IF(Risikoregister[[#This Row],[Maßnahmen-Status]]=Planung!$W$9,Risikoregister[[#This Row],[W. num (nach Maßnahme)]],Risikoregister[[#This Row],[W. num Portfolio (vor Maßnahme)]]) -> 1.541285617 | BA10: =IF(Risikoregister[[#This Row],[Maßnahmen-Status]]=Planung!$W$9,Risikoregister[[#This Row],[A. num (nach Maßnahme)2]],Risikoregister[[#This Row],[A. num Portfolio (vor Maßnahme)]]) -> 3.393071447 | BC10: =VLOOKUP(Risikoregister[[#This Row],[Zeitraum von]],Zeiträume[],2,FALSE) -> 4 | BD10: =IF(ISBLANK(Risikoregister[[#This Row],[Zeitraum bis]]),Risikoregister[[#This Row],[Zeitraum von num]],VLOOKUP(Risikoregister[[#This Row],[Zeitraum bis]],Zeiträume[],2,FALSE)) -> 5 | BE10: =IFERROR(IF(AND(Risikoregister[[#This Row],[Zeitraum von num]]<=1,1<=Risikoregister[[#This Row],[Zeitraum bis num]]),Risikoregister[[#This Row],[Risikowert (in Punkten)]],0),"") -> 0 | BF10: =IFERROR(IF(AND(Risikoregister[[#This Row],[Zeitraum von num]]<=2,2<=Risikoregister[[#This Row],[Zeitraum bis num]]),Risikoregister[[#This Row],[Risikowert (in Punkten)]],0),"") -> 0 | BG10: =IFERROR(IF(AND(Risikoregister[[#This Row],[Zeitraum von num]]<=3,3<=Risikoregister[[#This Row],[Zeitraum bis num]]),Risikoregister[[#This Row],[Risikowert (in Punkten)]],0),"") -> 0 | BH10: =IFERROR(IF(AND(Risikoregister[[#This Row],[Zeitraum von num]]<=4,4<=Risikoregister[[#This Row],[Zeitraum bis num]]),Risikoregister[[#This Row],[Risikowert (in Punkten)]],0),"") -> 24 | BI10: =IFERROR(IF(AND(Risikoregister[[#This Row],[Zeitraum von num]]<=5,5<=Risikoregister[[#This Row],[Zeitraum bis num]]),Risikoregister[[#This Row],[Risikowert (in Punkten)]],0),"") -> 24 | BJ10: =IFERROR(IF(AND(Risikoregister[[#This Row],[Zeitraum von num]]<=6,6<=Risikoregister[[#This Row],[Zeitraum bis num]]),Risikoregister[[#This Row],[Risikowert (in Punkten)]],0),"") -> 0 | BK10: =IFERROR(IF(AND(Risikoregister[[#This Row],[Zeitraum von num]]<=7,7<=Risikoregister[[#This Row],[Zeitraum bis num]]),Risikoregister[[#This Row],[Risikowert (in Punkten)]],0),"") -> 0 | BL10: =IFERROR(IF(AND(Risikoregister[[#This Row],[Zeitraum von num]]<=8,8<=Risikoregister[[#This Row],[Zeitraum bis num]]),Risikoregister[[#This Row],[Risikowert (in Punkten)]],0),"") -> 0 | BM10: =IFERROR(IF(AND(Risikoregister[[#This Row],[Zeitraum von num]]<=9,9<=Risikoregister[[#This Row],[Zeitraum bis num]]),Risikoregister[[#This Row],[Risikowert (in Punkten)]],0),"") -> 0
S11: =IFERROR(Risikoregister[[#This Row],[W. num (vor Maßnahme)]]*Risikoregister[[#This Row],[A. num (vor Maßnahme)]],#N/A) ->  | Y11: =IFERROR(Risikoregister[[#This Row],[Wahrscheinlichkeit quant. (vor Maßnahme)]]*Risikoregister[[#This Row],[Auswirkung Kosten quant.]],#N/A) -> 0 | AI11: =IFERROR(VLOOKUP(Risikoregister[[#This Row],[Wahrscheinlichkeit* (nach Maßnahme)]],Tab_Wahrscheinlichkeit[],7,0)*Risikoregister[[#This Row],[A. num (nach Maßnahme)]],#N/A) ->  | AJ11: =IFERROR(VLOOKUP(Risikoregister[[#This Row],[Wahrscheinlichkeit* (nach Maßnahme)]],Tab_Wahrscheinlichkeit[],6,0)*Risikoregister[[#This Row],[Auswirkung Kosten quant.]],#N/A) ->  | AQ11: =IFERROR(VLOOKUP(Risikoregister[[#This Row],[Wahrscheinlichkeit qual. (vor Maßnahme)]],Tab_Wahrscheinlichkeit[],7,FALSE),#N/A) ->  | AR11: =IFERROR(VLOOKUP(Risikoregister[[#This Row],[Wahrscheinlichkeit qual. (vor Maßnahme)]],Tab_Wahrscheinlichkeit[],5,FALSE)+Versatz_Portfolio,#N/A) ->  | AS11: =MAX( IF(ISBLANK(Risikoregister[[#This Row],[Auswirkung Kosten qual. (vor Maßnahme)]]),0, VLOOKUP(Risikoregister[[#This Row],[Auswirkung Kosten qual. (vor Maßnahme)]],Tab_Auswirkung[],6,FALSE) ), IF(ISBLANK(Risikoregister[[#This Row],[Auswirkung Termine qual. (vor Maßnahme)]]),0, VLOOKUP(Risikoregister[[#This Row],[Auswirkung Termine qual. (vor Maßnahme)]],Tab_Auswirkung[],6,FALSE) ), IF(ISBLANK(Risikoregister[[#This Row],[Auswirkung Leistung qual. (vor Maßnahme)]]),0, VLOOKUP(Risikoregister[[#This Row],[Auswirkung Leistung qual. (vor Maßnahme)]],Tab_Auswirkung[],6,FALSE) ), ) -> 0 | AT11: =MAX( IF(ISBLANK(Risikoregister[[#This Row],[Auswirkung Kosten (nach Maßnahme)]]),0, VLOOKUP(Risikoregister[[#This Row],[Auswirkung Kosten (nach Maßnahme)]],Tab_Auswirkung[],6,FALSE) ), IF(ISBLANK(Risikoregister[[#This Row],[Auswirkung Termine (nach Maßnahme)]]),0, VLOOKUP(Risikoregister[[#This Row],[Auswirkung Termine (nach Maßnahme)]],Tab_Auswirkung[],6,FALSE) ), IF(ISBLANK(Risikoregister[[#This Row],[Auswirkung Leistung (nach Maßnahme)]]),0, VLOOKUP(Risikoregister[[#This Row],[Auswirkung Leistung (nach Maßnahme)]],Tab_Auswirkung[],6,FALSE) ), ) -> 0 | AU11: =MAX( IF(ISBLANK(Risikoregister[[#This Row],[Auswirkung Kosten qual. (vor Maßnahme)]]),0, VLOOKUP(Risikoregister[[#This Row],[Auswirkung Kosten qual. (vor Maßnahme)]],Tab_Auswirkung[],5,FALSE) ), IF(ISBLANK(Risikoregister[[#This Row],[Auswirkung Termine qual. (vor Maßnahme)]]),0, VLOOKUP(Risikoregister[[#This Row],[Auswirkung Termine qual. (vor Maßnahme)]],Tab_Auswirkung[],5,FALSE) ), IF(ISBLANK(Risikoregister[[#This Row],[Auswirkung Leistung qual. (vor Maßnahme)]]),0, VLOOKUP(Risikoregister[[#This Row],[Auswirkung Leistung qual. (vor Maßnahme)]],Tab_Auswirkung[],5,FALSE) ), ) -> 0 | AV11: =MAX( IF(ISBLANK(Risikoregister[[#This Row],[Auswirkung Kosten (nach Maßnahme)]]),0, VLOOKUP(Risikoregister[[#This Row],[Auswirkung Kosten (nach Maßnahme)]],Tab_Auswirkung[],5,FALSE) ), IF(ISBLANK(Risikoregister[[#This Row],[Auswirkung Termine (nach Maßnahme)]]),0, VLOOKUP(Risikoregister[[#This Row],[Auswirkung Termine (nach Maßnahme)]],Tab_Auswirkung[],5,FALSE) ), IF(ISBLANK(Risikoregister[[#This Row],[Auswirkung Leistung (nach Maßnahme)]]),0, VLOOKUP(Risikoregister[[#This Row],[Auswirkung Leistung (nach Maßnahme)]],Tab_Auswirkung[],5,FALSE) ), ) -> 0 | AW11: =IF(Risikoregister[[#This Row],[A. num Portfolio Hilfswert (vor Maßnahme)]]=0,#N/A,Risikoregister[[#This Row],[A. num Portfolio Hilfswert (vor Maßnahme)]]+Versatz_Portfolio) ->  | AX11: =IFERROR(VLOOKUP(Risikoregister[[#This Row],[Wahrscheinlichkeit* (nach Maßnahme)]],Tab_Wahrscheinlichkeit[],5,FALSE)+Versatz_Portfolio,#N/A) ->  | AY11: =IF(Risikoregister[[#This Row],[A. num Portfolio Hilfswert (nach Maßnahme)]]=0,#N/A,Risikoregister[[#This Row],[A. num Portfolio Hilfswert (nach Maßnahme)]]+Versatz_Portfolio) ->  | AZ11: =IF(Risikoregister[[#This Row],[Maßnahmen-Status]]=Planung!$W$9,Risikoregister[[#This Row],[W. num (nach Maßnahme)]],Risikoregister[[#This Row],[W. num Portfolio (vor Maßnahme)]]) ->  | BA11: =IF(Risikoregister[[#This Row],[Maßnahmen-Status]]=Planung!$W$9,Risikoregister[[#This Row],[A. num (nach Maßnahme)2]],Risikoregister[[#This Row],[A. num Portfolio (vor Maßnahme)]]) ->  | BC11: =VLOOKUP(Risikoregister[[#This Row],[Zeitraum von]],Zeiträume[],2,FALSE) ->  | BD11: =IF(ISBLANK(Risikoregister[[#This Row],[Zeitraum bis]]),Risikoregister[[#This Row],[Zeitraum von num]],VLOOKUP(Risikoregister[[#This Row],[Zeitraum bis]],Zeiträume[],2,FALSE)) ->  | BE11: =IFERROR(IF(AND(Risikoregister[[#This Row],[Zeitraum von num]]<=1,1<=Risikoregister[[#This Row],[Zeitraum bis num]]),Risikoregister[[#This Row],[Risikowert (in Punkten)]],0),"") ->  | BF11: =IFERROR(IF(AND(Risikoregister[[#This Row],[Zeitraum von num]]<=2,2<=Risikoregister[[#This Row],[Zeitraum bis num]]),Risikoregister[[#This Row],[Risikowert (in Punkten)]],0),"") ->  | BG11: =IFERROR(IF(AND(Risikoregister[[#This Row],[Zeitraum von num]]<=3,3<=Risikoregister[[#This Row],[Zeitraum bis num]]),Risikoregister[[#This Row],[Risikowert (in Punkten)]],0),"") ->  | BH11: =IFERROR(IF(AND(Risikoregister[[#This Row],[Zeitraum von num]]<=4,4<=Risikoregister[[#This Row],[Zeitraum bis num]]),Risikoregister[[#This Row],[Risikowert (in Punkten)]],0),"") ->  | BI11: =IFERROR(IF(AND(Risikoregister[[#This Row],[Zeitraum von num]]<=5,5<=Risikoregister[[#This Row],[Zeitraum bis num]]),Risikoregister[[#This Row],[Risikowert (in Punkten)]],0),"") ->  | BJ11: =IFERROR(IF(AND(Risikoregister[[#This Row],[Zeitraum von num]]<=6,6<=Risikoregister[[#This Row],[Zeitraum bis num]]),Risikoregister[[#This Row],[Risikowert (in Punkten)]],0),"") ->  | BK11: =IFERROR(IF(AND(Risikoregister[[#This Row],[Zeitraum von num]]<=7,7<=Risikoregister[[#This Row],[Zeitraum bis num]]),Risikoregister[[#This Row],[Risikowert (in Punkten)]],0),"") ->  | BL11: =IFERROR(IF(AND(Risikoregister[[#This Row],[Zeitraum von num]]<=8,8<=Risikoregister[[#This Row],[Zeitraum bis num]]),Risikoregister[[#This Row],[Risikowert (in Punkten)]],0),"") ->  | BM11: =IFERROR(IF(AND(Risikoregister[[#This Row],[Zeitraum von num]]<=9,9<=Risikoregister[[#This Row],[Zeitraum bis num]]),Risikoregister[[#This Row],[Risikowert (in Punkten)]],0),"") -> 
S12: =IFERROR(Risikoregister[[#This Row],[W. num (vor Maßnahme)]]*Risikoregister[[#This Row],[A. num (vor Maßnahme)]],#N/A) ->  | Y12: =IFERROR(Risikoregister[[#This Row],[Wahrscheinlichkeit quant. (vor Maßnahme)]]*Risikoregister[[#This Row],[Auswirkung Kosten quant.]],#N/A) -> 0 | AI12: =IFERROR(VLOOKUP(Risikoregister[[#This Row],[Wahrscheinlichkeit* (nach Maßnahme)]],Tab_Wahrscheinlichkeit[],7,0)*Risikoregister[[#This Row],[A. num (nach Maßnahme)]],#N/A) ->  | AJ12: =IFERROR(VLOOKUP(Risikoregister[[#This Row],[Wahrscheinlichkeit* (nach Maßnahme)]],Tab_Wahrscheinlichkeit[],6,0)*Risikoregister[[#This Row],[Auswirkung Kosten quant.]],#N/A) ->  | AQ12: =IFERROR(VLOOKUP(Risikoregister[[#This Row],[Wahrscheinlichkeit qual. (vor Maßnahme)]],Tab_Wahrscheinlichkeit[],7,FALSE),#N/A) ->  | AR12: =IFERROR(VLOOKUP(Risikoregister[[#This Row],[Wahrscheinlichkeit qual. (vor Maßnahme)]],Tab_Wahrscheinlichkeit[],5,FALSE)+Versatz_Portfolio,#N/A) ->  | AS12: =MAX( IF(ISBLANK(Risikoregister[[#This Row],[Auswirkung Kosten qual. (vor Maßnahme)]]),0, VLOOKUP(Risikoregister[[#This Row],[Auswirkung Kosten qual. (vor Maßnahme)]],Tab_Auswirkung[],6,FALSE) ), IF(ISBLANK(Risikoregister[[#This Row],[Auswirkung Termine qual. (vor Maßnahme)]]),0, VLOOKUP(Risikoregister[[#This Row],[Auswirkung Termine qual. (vor Maßnahme)]],Tab_Auswirkung[],6,FALSE) ), IF(ISBLANK(Risikoregister[[#This Row],[Auswirkung Leistung qual. (vor Maßnahme)]]),0, VLOOKUP(Risikoregister[[#This Row],[Auswirkung Leistung qual. (vor Maßnahme)]],Tab_Auswirkung[],6,FALSE) ), ) -> 0 | AT12: =MAX( IF(ISBLANK(Risikoregister[[#This Row],[Auswirkung Kosten (nach Maßnahme)]]),0, VLOOKUP(Risikoregister[[#This Row],[Auswirkung Kosten (nach Maßnahme)]],Tab_Auswirkung[],6,FALSE) ), IF(ISBLANK(Risikoregister[[#This Row],[Auswirkung Termine (nach Maßnahme)]]),0, VLOOKUP(Risikoregister[[#This Row],[Auswirkung Termine (nach Maßnahme)]],Tab_Auswirkung[],6,FALSE) ), IF(ISBLANK(Risikoregister[[#This Row],[Auswirkung Leistung (nach Maßnahme)]]),0, VLOOKUP(Risikoregister[[#This Row],[Auswirkung Leistung (nach Maßnahme)]],Tab_Auswirkung[],6,FALSE) ), ) -> 0 | AU12: =MAX( IF(ISBLANK(Risikoregister[[#This Row],[Auswirkung Kosten qual. (vor Maßnahme)]]),0, VLOOKUP(Risikoregister[[#This Row],[Auswirkung Kosten qual. (vor Maßnahme)]],Tab_Auswirkung[],5,FALSE) ), IF(ISBLANK(Risikoregister[[#This Row],[Auswirkung Termine qual. (vor Maßnahme)]]),0, VLOOKUP(Risikoregister[[#This Row],[Auswirkung Termine qual. (vor Maßnahme)]],Tab_Auswirkung[],5,FALSE) ), IF(ISBLANK(Risikoregister[[#This Row],[Auswirkung Leistung qual. (vor Maßnahme)]]),0, VLOOKUP(Risikoregister[[#This Row],[Auswirkung Leistung qual. (vor Maßnahme)]],Tab_Auswirkung[],5,FALSE) ), ) -> 0 | AV12: =MAX( IF(ISBLANK(Risikoregister[[#This Row],[Auswirkung Kosten (nach Maßnahme)]]),0, VLOOKUP(Risikoregister[[#This Row],[Auswirkung Kosten (nach Maßnahme)]],Tab_Auswirkung[],5,FALSE) ), IF(ISBLANK(Risikoregister[[#This Row],[Auswirkung Termine (nach Maßnahme)]]),0, VLOOKUP(Risikoregister[[#This Row],[Auswirkung Termine (nach Maßnahme)]],Tab_Auswirkung[],5,FALSE) ), IF(ISBLANK(Risikoregister[[#This Row],[Auswirkung Leistung (nach Maßnahme)]]),0, VLOOKUP(Risikoregister[[#This Row],[Auswirkung Leistung (nach Maßnahme)]],Tab_Auswirkung[],5,FALSE) ), ) -> 0 | AW12: =IF(Risikoregister[[#This Row],[A. num Portfolio Hilfswert (vor Maßnahme)]]=0,#N/A,Risikoregister[[#This Row],[A. num Portfolio Hilfswert (vor Maßnahme)]]+Versatz_Portfolio) ->  | AX12: =IFERROR(VLOOKUP(Risikoregister[[#This Row],[Wahrscheinlichkeit* (nach Maßnahme)]],Tab_Wahrscheinlichkeit[],5,FALSE)+Versatz_Portfolio,#N/A) ->  | AY12: =IF(Risikoregister[[#This Row],[A. num Portfolio Hilfswert (nach Maßnahme)]]=0,#N/A,Risikoregister[[#This Row],[A. num Portfolio Hilfswert (nach Maßnahme)]]+Versatz_Portfolio) ->  | AZ12: =IF(Risikoregister[[#This Row],[Maßnahmen-Status]]=Planung!$W$9,Risikoregister[[#This Row],[W. num (nach Maßnahme)]],Risikoregister[[#This Row],[W. num Portfolio (vor Maßnahme)]]) ->  | BA12: =IF(Risikoregister[[#This Row],[Maßnahmen-Status]]=Planung!$W$9,Risikoregister[[#This Row],[A. num (nach Maßnahme)2]],Risikoregister[[#This Row],[A. num Portfolio (vor Maßnahme)]]) ->  | BC12: =VLOOKUP(Risikoregister[[#This Row],[Zeitraum von]],Zeiträume[],2,FALSE) ->  | BD12: =IF(ISBLANK(Risikoregister[[#This Row],[Zeitraum bis]]),Risikoregister[[#This Row],[Zeitraum von num]],VLOOKUP(Risikoregister[[#This Row],[Zeitraum bis]],Zeiträume[],2,FALSE)) ->  | BE12: =IFERROR(IF(AND(Risikoregister[[#This Row],[Zeitraum von num]]<=1,1<=Risikoregister[[#This Row],[Zeitraum bis num]]),Risikoregister[[#This Row],[Risikowert (in Punkten)]],0),"") ->  | BF12: =IFERROR(IF(AND(Risikoregister[[#This Row],[Zeitraum von num]]<=2,2<=Risikoregister[[#This Row],[Zeitraum bis num]]),Risikoregister[[#This Row],[Risikowert (in Punkten)]],0),"") ->  | BG12: =IFERROR(IF(AND(Risikoregister[[#This Row],[Zeitraum von num]]<=3,3<=Risikoregister[[#This Row],[Zeitraum bis num]]),Risikoregister[[#This Row],[Risikowert (in Punkten)]],0),"") ->  | BH12: =IFERROR(IF(AND(Risikoregister[[#This Row],[Zeitraum von num]]<=4,4<=Risikoregister[[#This Row],[Zeitraum bis num]]),Risikoregister[[#This Row],[Risikowert (in Punkten)]],0),"") ->  | BI12: =IFERROR(IF(AND(Risikoregister[[#This Row],[Zeitraum von num]]<=5,5<=Risikoregister[[#This Row],[Zeitraum bis num]]),Risikoregister[[#This Row],[Risikowert (in Punkten)]],0),"") ->  | BJ12: =IFERROR(IF(AND(Risikoregister[[#This Row],[Zeitraum von num]]<=6,6<=Risikoregister[[#This Row],[Zeitraum bis num]]),Risikoregister[[#This Row],[Risikowert (in Punkten)]],0),"") ->  | BK12: =IFERROR(IF(AND(Risikoregister[[#This Row],[Zeitraum von num]]<=7,7<=Risikoregister[[#This Row],[Zeitraum bis num]]),Risikoregister[[#This Row],[Risikowert (in Punkten)]],0),"") ->  | BL12: =IFERROR(IF(AND(Risikoregister[[#This Row],[Zeitraum von num]]<=8,8<=Risikoregister[[#This Row],[Zeitraum bis num]]),Risikoregister[[#This Row],[Risikowert (in Punkten)]],0),"") ->  | BM12: =IFERROR(IF(AND(Risikoregister[[#This Row],[Zeitraum von num]]<=9,9<=Risikoregister[[#This Row],[Zeitraum bis num]]),Risikoregister[[#This Row],[Risikowert (in Punkten)]],0),"") -> 
S13: =IFERROR(Risikoregister[[#This Row],[W. num (vor Maßnahme)]]*Risikoregister[[#This Row],[A. num (vor Maßnahme)]],#N/A) ->  | Y13: =IFERROR(Risikoregister[[#This Row],[Wahrscheinlichkeit quant. (vor Maßnahme)]]*Risikoregister[[#This Row],[Auswirkung Kosten quant.]],#N/A) -> 0 | AI13: =IFERROR(VLOOKUP(Risikoregister[[#This Row],[Wahrscheinlichkeit* (nach Maßnahme)]],Tab_Wahrscheinlichkeit[],7,0)*Risikoregister[[#This Row],[A. num (nach Maßnahme)]],#N/A) ->  | AJ13: =IFERROR(VLOOKUP(Risikoregister[[#This Row],[Wahrscheinlichkeit* (nach Maßnahme)]],Tab_Wahrscheinlichkeit[],6,0)*Risikoregister[[#This Row],[Auswirkung Kosten quant.]],#N/A) ->  | AQ13: =IFERROR(VLOOKUP(Risikoregister[[#This Row],[Wahrscheinlichkeit qual. (vor Maßnahme)]],Tab_Wahrscheinlichkeit[],7,FALSE),#N/A) ->  | AR13: =IFERROR(VLOOKUP(Risikoregister[[#This Row],[Wahrscheinlichkeit qual. (vor Maßnahme)]],Tab_Wahrscheinlichkeit[],5,FALSE)+Versatz_Portfolio,#N/A) ->  | AS13: =MAX( IF(ISBLANK(Risikoregister[[#This Row],[Auswirkung Kosten qual. (vor Maßnahme)]]),0, VLOOKUP(Risikoregister[[#This Row],[Auswirkung Kosten qual. (vor Maßnahme)]],Tab_Auswirkung[],6,FALSE) ), IF(ISBLANK(Risikoregister[[#This Row],[Auswirkung Termine qual. (vor Maßnahme)]]),0, VLOOKUP(Risikoregister[[#This Row],[Auswirkung Termine qual. (vor Maßnahme)]],Tab_Auswirkung[],6,FALSE) ), IF(ISBLANK(Risikoregister[[#This Row],[Auswirkung Leistung qual. (vor Maßnahme)]]),0, VLOOKUP(Risikoregister[[#This Row],[Auswirkung Leistung qual. (vor Maßnahme)]],Tab_Auswirkung[],6,FALSE) ), ) -> 0 | AT13: =MAX( IF(ISBLANK(Risikoregister[[#This Row],[Auswirkung Kosten (nach Maßnahme)]]),0, VLOOKUP(Risikoregister[[#This Row],[Auswirkung Kosten (nach Maßnahme)]],Tab_Auswirkung[],6,FALSE) ), IF(ISBLANK(Risikoregister[[#This Row],[Auswirkung Termine (nach Maßnahme)]]),0, VLOOKUP(Risikoregister[[#This Row],[Auswirkung Termine (nach Maßnahme)]],Tab_Auswirkung[],6,FALSE) ), IF(ISBLANK(Risikoregister[[#This Row],[Auswirkung Leistung (nach Maßnahme)]]),0, VLOOKUP(Risikoregister[[#This Row],[Auswirkung Leistung (nach Maßnahme)]],Tab_Auswirkung[],6,FALSE) ), ) -> 0 | AU13: =MAX( IF(ISBLANK(Risikoregister[[#This Row],[Auswirkung Kosten qual. (vor Maßnahme)]]),0, VLOOKUP(Risikoregister[[#This Row],[Auswirkung Kosten qual. (vor Maßnahme)]],Tab_Auswirkung[],5,FALSE) ), IF(ISBLANK(Risikoregister[[#This Row],[Auswirkung Termine qual. (vor Maßnahme)]]),0, VLOOKUP(Risikoregister[[#This Row],[Auswirkung Termine qual. (vor Maßnahme)]],Tab_Auswirkung[],5,FALSE) ), IF(ISBLANK(Risikoregister[[#This Row],[Auswirkung Leistung qual. (vor Maßnahme)]]),0, VLOOKUP(Risikoregister[[#This Row],[Auswirkung Leistung qual. (vor Maßnahme)]],Tab_Auswirkung[],5,FALSE) ), ) -> 0 | AV13: =MAX( IF(ISBLANK(Risikoregister[[#This Row],[Auswirkung Kosten (nach Maßnahme)]]),0, VLOOKUP(Risikoregister[[#This Row],[Auswirkung Kosten (nach Maßnahme)]],Tab_Auswirkung[],5,FALSE) ), IF(ISBLANK(Risikoregister[[#This Row],[Auswirkung Termine (nach Maßnahme)]]),0, VLOOKUP(Risikoregister[[#This Row],[Auswirkung Termine (nach Maßnahme)]],Tab_Auswirkung[],5,FALSE) ), IF(ISBLANK(Risikoregister[[#This Row],[Auswirkung Leistung (nach Maßnahme)]]),0, VLOOKUP(Risikoregister[[#This Row],[Auswirkung Leistung (nach Maßnahme)]],Tab_Auswirkung[],5,FALSE) ), ) -> 0 | AW13: =IF(Risikoregister[[#This Row],[A. num Portfolio Hilfswert (vor Maßnahme)]]=0,#N/A,Risikoregister[[#This Row],[A. num Portfolio Hilfswert (vor Maßnahme)]]+Versatz_Portfolio) ->  | AX13: =IFERROR(VLOOKUP(Risikoregister[[#This Row],[Wahrscheinlichkeit* (nach Maßnahme)]],Tab_Wahrscheinlichkeit[],5,FALSE)+Versatz_Portfolio,#N/A) ->  | AY13: =IF(Risikoregister[[#This Row],[A. num Portfolio Hilfswert (nach Maßnahme)]]=0,#N/A,Risikoregister[[#This Row],[A. num Portfolio Hilfswert (nach Maßnahme)]]+Versatz_Portfolio) ->  | AZ13: =IF(Risikoregister[[#This Row],[Maßnahmen-Status]]=Planung!$W$9,Risikoregister[[#This Row],[W. num (nach Maßnahme)]],Risikoregister[[#This Row],[W. num Portfolio (vor Maßnahme)]]) ->  | BA13: =IF(Risikoregister[[#This Row],[Maßnahmen-Status]]=Planung!$W$9,Risikoregister[[#This Row],[A. num (nach Maßnahme)2]],Risikoregister[[#This Row],[A. num Portfolio (vor Maßnahme)]]) ->  | BC13: =VLOOKUP(Risikoregister[[#This Row],[Zeitraum von]],Zeiträume[],2,FALSE) ->  | BD13: =IF(ISBLANK(Risikoregister[[#This Row],[Zeitraum bis]]),Risikoregister[[#This Row],[Zeitraum von num]],VLOOKUP(Risikoregister[[#This Row],[Zeitraum bis]],Zeiträume[],2,FALSE)) ->  | BE13: =IFERROR(IF(AND(Risikoregister[[#This Row],[Zeitraum von num]]<=1,1<=Risikoregister[[#This Row],[Zeitraum bis num]]),Risikoregister[[#This Row],[Risikowert (in Punkten)]],0),"") ->  | BF13: =IFERROR(IF(AND(Risikoregister[[#This Row],[Zeitraum von num]]<=2,2<=Risikoregister[[#This Row],[Zeitraum bis num]]),Risikoregister[[#This Row],[Risikowert (in Punkten)]],0),"") ->  | BG13: =IFERROR(IF(AND(Risikoregister[[#This Row],[Zeitraum von num]]<=3,3<=Risikoregister[[#This Row],[Zeitraum bis num]]),Risikoregister[[#This Row],[Risikowert (in Punkten)]],0),"") ->  | BH13: =IFERROR(IF(AND(Risikoregister[[#This Row],[Zeitraum von num]]<=4,4<=Risikoregister[[#This Row],[Zeitraum bis num]]),Risikoregister[[#This Row],[Risikowert (in Punkten)]],0),"") ->  | BI13: =IFERROR(IF(AND(Risikoregister[[#This Row],[Zeitraum von num]]<=5,5<=Risikoregister[[#This Row],[Zeitraum bis num]]),Risikoregister[[#This Row],[Risikowert (in Punkten)]],0),"") ->  | BJ13: =IFERROR(IF(AND(Risikoregister[[#This Row],[Zeitraum von num]]<=6,6<=Risikoregister[[#This Row],[Zeitraum bis num]]),Risikoregister[[#This Row],[Risikowert (in Punkten)]],0),"") ->  | BK13: =IFERROR(IF(AND(Risikoregister[[#This Row],[Zeitraum von num]]<=7,7<=Risikoregister[[#This Row],[Zeitraum bis num]]),Risikoregister[[#This Row],[Risikowert (in Punkten)]],0),"") ->  | BL13: =IFERROR(IF(AND(Risikoregister[[#This Row],[Zeitraum von num]]<=8,8<=Risikoregister[[#This Row],[Zeitraum bis num]]),Risikoregister[[#This Row],[Risikowert (in Punkten)]],0),"") ->  | BM13: =IFERROR(IF(AND(Risikoregister[[#This Row],[Zeitraum von num]]<=9,9<=Risikoregister[[#This Row],[Zeitraum bis num]]),Risikoregister[[#This Row],[Risikowert (in Punkten)]],0),"") -> 
S14: =IFERROR(Risikoregister[[#This Row],[W. num (vor Maßnahme)]]*Risikoregister[[#This Row],[A. num (vor Maßnahme)]],#N/A) ->  | Y14: =IFERROR(Risikoregister[[#This Row],[Wahrscheinlichkeit quant. (vor Maßnahme)]]*Risikoregister[[#This Row],[Auswirkung Kosten quant.]],#N/A) -> 0 | AI14: =IFERROR(VLOOKUP(Risikoregister[[#This Row],[Wahrscheinlichkeit* (nach Maßnahme)]],Tab_Wahrscheinlichkeit[],7,0)*Risikoregister[[#This Row],[A. num (nach Maßnahme)]],#N/A) ->  | AJ14: =IFERROR(VLOOKUP(Risikoregister[[#This Row],[Wahrscheinlichkeit* (nach Maßnahme)]],Tab_Wahrscheinlichkeit[],6,0)*Risikoregister[[#This Row],[Auswirkung Kosten quant.]],#N/A) ->  | AQ14: =IFERROR(VLOOKUP(Risikoregister[[#This Row],[Wahrscheinlichkeit qual. (vor Maßnahme)]],Tab_Wahrscheinlichkeit[],7,FALSE),#N/A) ->  | AR14: =IFERROR(VLOOKUP(Risikoregister[[#This Row],[Wahrscheinlichkeit qual. (vor Maßnahme)]],Tab_Wahrscheinlichkeit[],5,FALSE)+Versatz_Portfolio,#N/A) ->  | AS14: =MAX( IF(ISBLANK(Risikoregister[[#This Row],[Auswirkung Kosten qual. (vor Maßnahme)]]),0, VLOOKUP(Risikoregister[[#This Row],[Auswirkung Kosten qual. (vor Maßnahme)]],Tab_Auswirkung[],6,FALSE) ), IF(ISBLANK(Risikoregister[[#This Row],[Auswirkung Termine qual. (vor Maßnahme)]]),0, VLOOKUP(Risikoregister[[#This Row],[Auswirkung Termine qual. (vor Maßnahme)]],Tab_Auswirkung[],6,FALSE) ), IF(ISBLANK(Risikoregister[[#This Row],[Auswirkung Leistung qual. (vor Maßnahme)]]),0, VLOOKUP(Risikoregister[[#This Row],[Auswirkung Leistung qual. (vor Maßnahme)]],Tab_Auswirkung[],6,FALSE) ), ) -> 0 | AT14: =MAX( IF(ISBLANK(Risikoregister[[#This Row],[Auswirkung Kosten (nach Maßnahme)]]),0, VLOOKUP(Risikoregister[[#This Row],[Auswirkung Kosten (nach Maßnahme)]],Tab_Auswirkung[],6,FALSE) ), IF(ISBLANK(Risikoregister[[#This Row],[Auswirkung Termine (nach Maßnahme)]]),0, VLOOKUP(Risikoregister[[#This Row],[Auswirkung Termine (nach Maßnahme)]],Tab_Auswirkung[],6,FALSE) ), IF(ISBLANK(Risikoregister[[#This Row],[Auswirkung Leistung (nach Maßnahme)]]),0, VLOOKUP(Risikoregister[[#This Row],[Auswirkung Leistung (nach Maßnahme)]],Tab_Auswirkung[],6,FALSE) ), ) -> 0 | AU14: =MAX( IF(ISBLANK(Risikoregister[[#This Row],[Auswirkung Kosten qual. (vor Maßnahme)]]),0, VLOOKUP(Risikoregister[[#This Row],[Auswirkung Kosten qual. (vor Maßnahme)]],Tab_Auswirkung[],5,FALSE) ), IF(ISBLANK(Risikoregister[[#This Row],[Auswirkung Termine qual. (vor Maßnahme)]]),0, VLOOKUP(Risikoregister[[#This Row],[Auswirkung Termine qual. (vor Maßnahme)]],Tab_Auswirkung[],5,FALSE) ), IF(ISBLANK(Risikoregister[[#This Row],[Auswirkung Leistung qual. (vor Maßnahme)]]),0, VLOOKUP(Risikoregister[[#This Row],[Auswirkung Leistung qual. (vor Maßnahme)]],Tab_Auswirkung[],5,FALSE) ), ) -> 0 | AV14: =MAX( IF(ISBLANK(Risikoregister[[#This Row],[Auswirkung Kosten (nach Maßnahme)]]),0, VLOOKUP(Risikoregister[[#This Row],[Auswirkung Kosten (nach Maßnahme)]],Tab_Auswirkung[],5,FALSE) ), IF(ISBLANK(Risikoregister[[#This Row],[Auswirkung Termine (nach Maßnahme)]]),0, VLOOKUP(Risikoregister[[#This Row],[Auswirkung Termine (nach Maßnahme)]],Tab_Auswirkung[],5,FALSE) ), IF(ISBLANK(Risikoregister[[#This Row],[Auswirkung Leistung (nach Maßnahme)]]),0, VLOOKUP(Risikoregister[[#This Row],[Auswirkung Leistung (nach Maßnahme)]],Tab_Auswirkung[],5,FALSE) ), ) -> 0 | AW14: =IF(Risikoregister[[#This Row],[A. num Portfolio Hilfswert (vor Maßnahme)]]=0,#N/A,Risikoregister[[#This Row],[A. num Portfolio Hilfswert (vor Maßnahme)]]+Versatz_Portfolio) ->  | AX14: =IFERROR(VLOOKUP(Risikoregister[[#This Row],[Wahrscheinlichkeit* (nach Maßnahme)]],Tab_Wahrscheinlichkeit[],5,FALSE)+Versatz_Portfolio,#N/A) ->  | AY14: =IF(Risikoregister[[#This Row],[A. num Portfolio Hilfswert (nach Maßnahme)]]=0,#N/A,Risikoregister[[#This Row],[A. num Portfolio Hilfswert (nach Maßnahme)]]+Versatz_Portfolio) ->  | AZ14: =IF(Risikoregister[[#This Row],[Maßnahmen-Status]]=Planung!$W$9,Risikoregister[[#This Row],[W. num (nach Maßnahme)]],Risikoregister[[#This Row],[W. num Portfolio (vor Maßnahme)]]) ->  | BA14: =IF(Risikoregister[[#This Row],[Maßnahmen-Status]]=Planung!$W$9,Risikoregister[[#This Row],[A. num (nach Maßnahme)2]],Risikoregister[[#This Row],[A. num Portfolio (vor Maßnahme)]]) ->  | BC14: =VLOOKUP(Risikoregister[[#This Row],[Zeitraum von]],Zeiträume[],2,FALSE) ->  | BD14: =IF(ISBLANK(Risikoregister[[#This Row],[Zeitraum bis]]),Risikoregister[[#This Row],[Zeitraum von num]],VLOOKUP(Risikoregister[[#This Row],[Zeitraum bis]],Zeiträume[],2,FALSE)) ->  | BE14: =IFERROR(IF(AND(Risikoregister[[#This Row],[Zeitraum von num]]<=1,1<=Risikoregister[[#This Row],[Zeitraum bis num]]),Risikoregister[[#This Row],[Risikowert (in Punkten)]],0),"") ->  | BF14: =IFERROR(IF(AND(Risikoregister[[#This Row],[Zeitraum von num]]<=2,2<=Risikoregister[[#This Row],[Zeitraum bis num]]),Risikoregister[[#This Row],[Risikowert (in Punkten)]],0),"") ->  | BG14: =IFERROR(IF(AND(Risikoregister[[#This Row],[Zeitraum von num]]<=3,3<=Risikoregister[[#This Row],[Zeitraum bis num]]),Risikoregister[[#This Row],[Risikowert (in Punkten)]],0),"") ->  | BH14: =IFERROR(IF(AND(Risikoregister[[#This Row],[Zeitraum von num]]<=4,4<=Risikoregister[[#This Row],[Zeitraum bis num]]),Risikoregister[[#This Row],[Risikowert (in Punkten)]],0),"") ->  | BI14: =IFERROR(IF(AND(Risikoregister[[#This Row],[Zeitraum von num]]<=5,5<=Risikoregister[[#This Row],[Zeitraum bis num]]),Risikoregister[[#This Row],[Risikowert (in Punkten)]],0),"") ->  | BJ14: =IFERROR(IF(AND(Risikoregister[[#This Row],[Zeitraum von num]]<=6,6<=Risikoregister[[#This Row],[Zeitraum bis num]]),Risikoregister[[#This Row],[Risikowert (in Punkten)]],0),"") ->  | BK14: =IFERROR(IF(AND(Risikoregister[[#This Row],[Zeitraum von num]]<=7,7<=Risikoregister[[#This Row],[Zeitraum bis num]]),Risikoregister[[#This Row],[Risikowert (in Punkten)]],0),"") ->  | BL14: =IFERROR(IF(AND(Risikoregister[[#This Row],[Zeitraum von num]]<=8,8<=Risikoregister[[#This Row],[Zeitraum bis num]]),Risikoregister[[#This Row],[Risikowert (in Punkten)]],0),"") ->  | BM14: =IFERROR(IF(AND(Risikoregister[[#This Row],[Zeitraum von num]]<=9,9<=Risikoregister[[#This Row],[Zeitraum bis num]]),Risikoregister[[#This Row],[Risikowert (in Punkten)]],0),"") -> 
S15: =IFERROR(Risikoregister[[#This Row],[W. num (vor Maßnahme)]]*Risikoregister[[#This Row],[A. num (vor Maßnahme)]],#N/A) ->  | Y15: =IFERROR(Risikoregister[[#This Row],[Wahrscheinlichkeit quant. (vor Maßnahme)]]*Risikoregister[[#This Row],[Auswirkung Kosten quant.]],#N/A) -> 0 | AI15: =IFERROR(VLOOKUP(Risikoregister[[#This Row],[Wahrscheinlichkeit* (nach Maßnahme)]],Tab_Wahrscheinlichkeit[],7,0)*Risikoregister[[#This Row],[A. num (nach Maßnahme)]],#N/A) ->  | AJ15: =IFERROR(VLOOKUP(Risikoregister[[#This Row],[Wahrscheinlichkeit* (nach Maßnahme)]],Tab_Wahrscheinlichkeit[],6,0)*Risikoregister[[#This Row],[Auswirkung Kosten quant.]],#N/A) ->  | AQ15: =IFERROR(VLOOKUP(Risikoregister[[#This Row],[Wahrscheinlichkeit qual. (vor Maßnahme)]],Tab_Wahrscheinlichkeit[],7,FALSE),#N/A) ->  | AR15: =IFERROR(VLOOKUP(Risikoregister[[#This Row],[Wahrscheinlichkeit qual. (vor Maßnahme)]],Tab_Wahrscheinlichkeit[],5,FALSE)+Versatz_Portfolio,#N/A) ->  | AS15: =MAX( IF(ISBLANK(Risikoregister[[#This Row],[Auswirkung Kosten qual. (vor Maßnahme)]]),0, VLOOKUP(Risikoregister[[#This Row],[Auswirkung Kosten qual. (vor Maßnahme)]],Tab_Auswirkung[],6,FALSE) ), IF(ISBLANK(Risikoregister[[#This Row],[Auswirkung Termine qual. (vor Maßnahme)]]),0, VLOOKUP(Risikoregister[[#This Row],[Auswirkung Termine qual. (vor Maßnahme)]],Tab_Auswirkung[],6,FALSE) ), IF(ISBLANK(Risikoregister[[#This Row],[Auswirkung Leistung qual. (vor Maßnahme)]]),0, VLOOKUP(Risikoregister[[#This Row],[Auswirkung Leistung qual. (vor Maßnahme)]],Tab_Auswirkung[],6,FALSE) ), ) -> 0 | AT15: =MAX( IF(ISBLANK(Risikoregister[[#This Row],[Auswirkung Kosten (nach Maßnahme)]]),0, VLOOKUP(Risikoregister[[#This Row],[Auswirkung Kosten (nach Maßnahme)]],Tab_Auswirkung[],6,FALSE) ), IF(ISBLANK(Risikoregister[[#This Row],[Auswirkung Termine (nach Maßnahme)]]),0, VLOOKUP(Risikoregister[[#This Row],[Auswirkung Termine (nach Maßnahme)]],Tab_Auswirkung[],6,FALSE) ), IF(ISBLANK(Risikoregister[[#This Row],[Auswirkung Leistung (nach Maßnahme)]]),0, VLOOKUP(Risikoregister[[#This Row],[Auswirkung Leistung (nach Maßnahme)]],Tab_Auswirkung[],6,FALSE) ), ) -> 0 | AU15: =MAX( IF(ISBLANK(Risikoregister[[#This Row],[Auswirkung Kosten qual. (vor Maßnahme)]]),0, VLOOKUP(Risikoregister[[#This Row],[Auswirkung Kosten qual. (vor Maßnahme)]],Tab_Auswirkung[],5,FALSE) ), IF(ISBLANK(Risikoregister[[#This Row],[Auswirkung Termine qual. (vor Maßnahme)]]),0, VLOOKUP(Risikoregister[[#This Row],[Auswirkung Termine qual. (vor Maßnahme)]],Tab_Auswirkung[],5,FALSE) ), IF(ISBLANK(Risikoregister[[#This Row],[Auswirkung Leistung qual. (vor Maßnahme)]]),0, VLOOKUP(Risikoregister[[#This Row],[Auswirkung Leistung qual. (vor Maßnahme)]],Tab_Auswirkung[],5,FALSE) ), ) -> 0 | AV15: =MAX( IF(ISBLANK(Risikoregister[[#This Row],[Auswirkung Kosten (nach Maßnahme)]]),0, VLOOKUP(Risikoregister[[#This Row],[Auswirkung Kosten (nach Maßnahme)]],Tab_Auswirkung[],5,FALSE) ), IF(ISBLANK(Risikoregister[[#This Row],[Auswirkung Termine (nach Maßnahme)]]),0, VLOOKUP(Risikoregister[[#This Row],[Auswirkung Termine (nach Maßnahme)]],Tab_Auswirkung[],5,FALSE) ), IF(ISBLANK(Risikoregister[[#This Row],[Auswirkung Leistung (nach Maßnahme)]]),0, VLOOKUP(Risikoregister[[#This Row],[Auswirkung Leistung (nach Maßnahme)]],Tab_Auswirkung[],5,FALSE) ), ) -> 0 | AW15: =IF(Risikoregister[[#This Row],[A. num Portfolio Hilfswert (vor Maßnahme)]]=0,#N/A,Risikoregister[[#This Row],[A. num Portfolio Hilfswert (vor Maßnahme)]]+Versatz_Portfolio) ->  | AX15: =IFERROR(VLOOKUP(Risikoregister[[#This Row],[Wahrscheinlichkeit* (nach Maßnahme)]],Tab_Wahrscheinlichkeit[],5,FALSE)+Versatz_Portfolio,#N/A) ->  | AY15: =IF(Risikoregister[[#This Row],[A. num Portfolio Hilfswert (nach Maßnahme)]]=0,#N/A,Risikoregister[[#This Row],[A. num Portfolio Hilfswert (nach Maßnahme)]]+Versatz_Portfolio) ->  | AZ15: =IF(Risikoregister[[#This Row],[Maßnahmen-Status]]=Planung!$W$9,Risikoregister[[#This Row],[W. num (nach Maßnahme)]],Risikoregister[[#This Row],[W. num Portfolio (vor Maßnahme)]]) ->  | BA15: =IF(Risikoregister[[#This Row],[Maßnahmen-Status]]=Planung!$W$9,Risikoregister[[#This Row],[A. num (nach Maßnahme)2]],Risikoregister[[#This Row],[A. num Portfolio (vor Maßnahme)]]) ->  | BC15: =VLOOKUP(Risikoregister[[#This Row],[Zeitraum von]],Zeiträume[],2,FALSE) ->  | BD15: =IF(ISBLANK(Risikoregister[[#This Row],[Zeitraum bis]]),Risikoregister[[#This Row],[Zeitraum von num]],VLOOKUP(Risikoregister[[#This Row],[Zeitraum bis]],Zeiträume[],2,FALSE)) ->  | BE15: =IFERROR(IF(AND(Risikoregister[[#This Row],[Zeitraum von num]]<=1,1<=Risikoregister[[#This Row],[Zeitraum bis num]]),Risikoregister[[#This Row],[Risikowert (in Punkten)]],0),"") ->  | BF15: =IFERROR(IF(AND(Risikoregister[[#This Row],[Zeitraum von num]]<=2,2<=Risikoregister[[#This Row],[Zeitraum bis num]]),Risikoregister[[#This Row],[Risikowert (in Punkten)]],0),"") ->  | BG15: =IFERROR(IF(AND(Risikoregister[[#This Row],[Zeitraum von num]]<=3,3<=Risikoregister[[#This Row],[Zeitraum bis num]]),Risikoregister[[#This Row],[Risikowert (in Punkten)]],0),"") ->  | BH15: =IFERROR(IF(AND(Risikoregister[[#This Row],[Zeitraum von num]]<=4,4<=Risikoregister[[#This Row],[Zeitraum bis num]]),Risikoregister[[#This Row],[Risikowert (in Punkten)]],0),"") ->  | BI15: =IFERROR(IF(AND(Risikoregister[[#This Row],[Zeitraum von num]]<=5,5<=Risikoregister[[#This Row],[Zeitraum bis num]]),Risikoregister[[#This Row],[Risikowert (in Punkten)]],0),"") ->  | BJ15: =IFERROR(IF(AND(Risikoregister[[#This Row],[Zeitraum von num]]<=6,6<=Risikoregister[[#This Row],[Zeitraum bis num]]),Risikoregister[[#This Row],[Risikowert (in Punkten)]],0),"") ->  | BK15: =IFERROR(IF(AND(Risikoregister[[#This Row],[Zeitraum von num]]<=7,7<=Risikoregister[[#This Row],[Zeitraum bis num]]),Risikoregister[[#This Row],[Risikowert (in Punkten)]],0),"") ->  | BL15: =IFERROR(IF(AND(Risikoregister[[#This Row],[Zeitraum von num]]<=8,8<=Risikoregister[[#This Row],[Zeitraum bis num]]),Risikoregister[[#This Row],[Risikowert (in Punkten)]],0),"") ->  | BM15: =IFERROR(IF(AND(Risikoregister[[#This Row],[Zeitraum von num]]<=9,9<=Risikoregister[[#This Row],[Zeitraum bis num]]),Risikoregister[[#This Row],[Risikowert (in Punkten)]],0),"") -> 
S16: =IFERROR(Risikoregister[[#This Row],[W. num (vor Maßnahme)]]*Risikoregister[[#This Row],[A. num (vor Maßnahme)]],#N/A) ->  | Y16: =IFERROR(Risikoregister[[#This Row],[Wahrscheinlichkeit quant. (vor Maßnahme)]]*Risikoregister[[#This Row],[Auswirkung Kosten quant.]],#N/A) -> 0 | AI16: =IFERROR(VLOOKUP(Risikoregister[[#This Row],[Wahrscheinlichkeit* (nach Maßnahme)]],Tab_Wahrscheinlichkeit[],7,0)*Risikoregister[[#This Row],[A. num (nach Maßnahme)]],#N/A) ->  | AJ16: =IFERROR(VLOOKUP(Risikoregister[[#This Row],[Wahrscheinlichkeit* (nach Maßnahme)]],Tab_Wahrscheinlichkeit[],6,0)*Risikoregister[[#This Row],[Auswirkung Kosten quant.]],#N/A) ->  | AQ16: =IFERROR(VLOOKUP(Risikoregister[[#This Row],[Wahrscheinlichkeit qual. (vor Maßnahme)]],Tab_Wahrscheinlichkeit[],7,FALSE),#N/A) ->  | AR16: =IFERROR(VLOOKUP(Risikoregister[[#This Row],[Wahrscheinlichkeit qual. (vor Maßnahme)]],Tab_Wahrscheinlichkeit[],5,FALSE)+Versatz_Portfolio,#N/A) ->  | AS16: =MAX( IF(ISBLANK(Risikoregister[[#This Row],[Auswirkung Kosten qual. (vor Maßnahme)]]),0, VLOOKUP(Risikoregister[[#This Row],[Auswirkung Kosten qual. (vor Maßnahme)]],Tab_Auswirkung[],6,FALSE) ), IF(ISBLANK(Risikoregister[[#This Row],[Auswirkung Termine qual. (vor Maßnahme)]]),0, VLOOKUP(Risikoregister[[#This Row],[Auswirkung Termine qual. (vor Maßnahme)]],Tab_Auswirkung[],6,FALSE) ), IF(ISBLANK(Risikoregister[[#This Row],[Auswirkung Leistung qual. (vor Maßnahme)]]),0, VLOOKUP(Risikoregister[[#This Row],[Auswirkung Leistung qual. (vor Maßnahme)]],Tab_Auswirkung[],6,FALSE) ), ) -> 0 | AT16: =MAX( IF(ISBLANK(Risikoregister[[#This Row],[Auswirkung Kosten (nach Maßnahme)]]),0, VLOOKUP(Risikoregister[[#This Row],[Auswirkung Kosten (nach Maßnahme)]],Tab_Auswirkung[],6,FALSE) ), IF(ISBLANK(Risikoregister[[#This Row],[Auswirkung Termine (nach Maßnahme)]]),0, VLOOKUP(Risikoregister[[#This Row],[Auswirkung Termine (nach Maßnahme)]],Tab_Auswirkung[],6,FALSE) ), IF(ISBLANK(Risikoregister[[#This Row],[Auswirkung Leistung (nach Maßnahme)]]),0, VLOOKUP(Risikoregister[[#This Row],[Auswirkung Leistung (nach Maßnahme)]],Tab_Auswirkung[],6,FALSE) ), ) -> 0 | AU16: =MAX( IF(ISBLANK(Risikoregister[[#This Row],[Auswirkung Kosten qual. (vor Maßnahme)]]),0, VLOOKUP(Risikoregister[[#This Row],[Auswirkung Kosten qual. (vor Maßnahme)]],Tab_Auswirkung[],5,FALSE) ), IF(ISBLANK(Risikoregister[[#This Row],[Auswirkung Termine qual. (vor Maßnahme)]]),0, VLOOKUP(Risikoregister[[#This Row],[Auswirkung Termine qual. (vor Maßnahme)]],Tab_Auswirkung[],5,FALSE) ), IF(ISBLANK(Risikoregister[[#This Row],[Auswirkung Leistung qual. (vor Maßnahme)]]),0, VLOOKUP(Risikoregister[[#This Row],[Auswirkung Leistung qual. (vor Maßnahme)]],Tab_Auswirkung[],5,FALSE) ), ) -> 0 | AV16: =MAX( IF(ISBLANK(Risikoregister[[#This Row],[Auswirkung Kosten (nach Maßnahme)]]),0, VLOOKUP(Risikoregister[[#This Row],[Auswirkung Kosten (nach Maßnahme)]],Tab_Auswirkung[],5,FALSE) ), IF(ISBLANK(Risikoregister[[#This Row],[Auswirkung Termine (nach Maßnahme)]]),0, VLOOKUP(Risikoregister[[#This Row],[Auswirkung Termine (nach Maßnahme)]],Tab_Auswirkung[],5,FALSE) ), IF(ISBLANK(Risikoregister[[#This Row],[Auswirkung Leistung (nach Maßnahme)]]),0, VLOOKUP(Risikoregister[[#This Row],[Auswirkung Leistung (nach Maßnahme)]],Tab_Auswirkung[],5,FALSE) ), ) -> 0 | AW16: =IF(Risikoregister[[#This Row],[A. num Portfolio Hilfswert (vor Maßnahme)]]=0,#N/A,Risikoregister[[#This Row],[A. num Portfolio Hilfswert (vor Maßnahme)]]+Versatz_Portfolio) ->  | AX16: =IFERROR(VLOOKUP(Risikoregister[[#This Row],[Wahrscheinlichkeit* (nach Maßnahme)]],Tab_Wahrscheinlichkeit[],5,FALSE)+Versatz_Portfolio,#N/A) ->  | AY16: =IF(Risikoregister[[#This Row],[A. num Portfolio Hilfswert (nach Maßnahme)]]=0,#N/A,Risikoregister[[#This Row],[A. num Portfolio Hilfswert (nach Maßnahme)]]+Versatz_Portfolio) ->  | AZ16: =IF(Risikoregister[[#This Row],[Maßnahmen-Status]]=Planung!$W$9,Risikoregister[[#This Row],[W. num (nach Maßnahme)]],Risikoregister[[#This Row],[W. num Portfolio (vor Maßnahme)]]) ->  | BA16: =IF(Risikoregister[[#This Row],[Maßnahmen-Status]]=Planung!$W$9,Risikoregister[[#This Row],[A. num (nach Maßnahme)2]],Risikoregister[[#This Row],[A. num Portfolio (vor Maßnahme)]]) ->  | BC16: =VLOOKUP(Risikoregister[[#This Row],[Zeitraum von]],Zeiträume[],2,FALSE) ->  | BD16: =IF(ISBLANK(Risikoregister[[#This Row],[Zeitraum bis]]),Risikoregister[[#This Row],[Zeitraum von num]],VLOOKUP(Risikoregister[[#This Row],[Zeitraum bis]],Zeiträume[],2,FALSE)) ->  | BE16: =IFERROR(IF(AND(Risikoregister[[#This Row],[Zeitraum von num]]<=1,1<=Risikoregister[[#This Row],[Zeitraum bis num]]),Risikoregister[[#This Row],[Risikowert (in Punkten)]],0),"") ->  | BF16: =IFERROR(IF(AND(Risikoregister[[#This Row],[Zeitraum von num]]<=2,2<=Risikoregister[[#This Row],[Zeitraum bis num]]),Risikoregister[[#This Row],[Risikowert (in Punkten)]],0),"") ->  | BG16: =IFERROR(IF(AND(Risikoregister[[#This Row],[Zeitraum von num]]<=3,3<=Risikoregister[[#This Row],[Zeitraum bis num]]),Risikoregister[[#This Row],[Risikowert (in Punkten)]],0),"") ->  | BH16: =IFERROR(IF(AND(Risikoregister[[#This Row],[Zeitraum von num]]<=4,4<=Risikoregister[[#This Row],[Zeitraum bis num]]),Risikoregister[[#This Row],[Risikowert (in Punkten)]],0),"") ->  | BI16: =IFERROR(IF(AND(Risikoregister[[#This Row],[Zeitraum von num]]<=5,5<=Risikoregister[[#This Row],[Zeitraum bis num]]),Risikoregister[[#This Row],[Risikowert (in Punkten)]],0),"") ->  | BJ16: =IFERROR(IF(AND(Risikoregister[[#This Row],[Zeitraum von num]]<=6,6<=Risikoregister[[#This Row],[Zeitraum bis num]]),Risikoregister[[#This Row],[Risikowert (in Punkten)]],0),"") ->  | BK16: =IFERROR(IF(AND(Risikoregister[[#This Row],[Zeitraum von num]]<=7,7<=Risikoregister[[#This Row],[Zeitraum bis num]]),Risikoregister[[#This Row],[Risikowert (in Punkten)]],0),"") ->  | BL16: =IFERROR(IF(AND(Risikoregister[[#This Row],[Zeitraum von num]]<=8,8<=Risikoregister[[#This Row],[Zeitraum bis num]]),Risikoregister[[#This Row],[Risikowert (in Punkten)]],0),"") ->  | BM16: =IFERROR(IF(AND(Risikoregister[[#This Row],[Zeitraum von num]]<=9,9<=Risikoregister[[#This Row],[Zeitraum bis num]]),Risikoregister[[#This Row],[Risikowert (in Punkten)]],0),"") -> 
S17: =IFERROR(Risikoregister[[#This Row],[W. num (vor Maßnahme)]]*Risikoregister[[#This Row],[A. num (vor Maßnahme)]],#N/A) ->  | Y17: =IFERROR(Risikoregister[[#This Row],[Wahrscheinlichkeit quant. (vor Maßnahme)]]*Risikoregister[[#This Row],[Auswirkung Kosten quant.]],#N/A) -> 0 | AI17: =IFERROR(VLOOKUP(Risikoregister[[#This Row],[Wahrscheinlichkeit* (nach Maßnahme)]],Tab_Wahrscheinlichkeit[],7,0)*Risikoregister[[#This Row],[A. num (nach Maßnahme)]],#N/A) ->  | AJ17: =IFERROR(VLOOKUP(Risikoregister[[#This Row],[Wahrscheinlichkeit* (nach Maßnahme)]],Tab_Wahrscheinlichkeit[],6,0)*Risikoregister[[#This Row],[Auswirkung Kosten quant.]],#N/A) ->  | AQ17: =IFERROR(VLOOKUP(Risikoregister[[#This Row],[Wahrscheinlichkeit qual. (vor Maßnahme)]],Tab_Wahrscheinlichkeit[],7,FALSE),#N/A) ->  | AR17: =IFERROR(VLOOKUP(Risikoregister[[#This Row],[Wahrscheinlichkeit qual. (vor Maßnahme)]],Tab_Wahrscheinlichkeit[],5,FALSE)+Versatz_Portfolio,#N/A) ->  | AS17: =MAX( IF(ISBLANK(Risikoregister[[#This Row],[Auswirkung Kosten qual. (vor Maßnahme)]]),0, VLOOKUP(Risikoregister[[#This Row],[Auswirkung Kosten qual. (vor Maßnahme)]],Tab_Auswirkung[],6,FALSE) ), IF(ISBLANK(Risikoregister[[#This Row],[Auswirkung Termine qual. (vor Maßnahme)]]),0, VLOOKUP(Risikoregister[[#This Row],[Auswirkung Termine qual. (vor Maßnahme)]],Tab_Auswirkung[],6,FALSE) ), IF(ISBLANK(Risikoregister[[#This Row],[Auswirkung Leistung qual. (vor Maßnahme)]]),0, VLOOKUP(Risikoregister[[#This Row],[Auswirkung Leistung qual. (vor Maßnahme)]],Tab_Auswirkung[],6,FALSE) ), ) -> 0 | AT17: =MAX( IF(ISBLANK(Risikoregister[[#This Row],[Auswirkung Kosten (nach Maßnahme)]]),0, VLOOKUP(Risikoregister[[#This Row],[Auswirkung Kosten (nach Maßnahme)]],Tab_Auswirkung[],6,FALSE) ), IF(ISBLANK(Risikoregister[[#This Row],[Auswirkung Termine (nach Maßnahme)]]),0, VLOOKUP(Risikoregister[[#This Row],[Auswirkung Termine (nach Maßnahme)]],Tab_Auswirkung[],6,FALSE) ), IF(ISBLANK(Risikoregister[[#This Row],[Auswirkung Leistung (nach Maßnahme)]]),0, VLOOKUP(Risikoregister[[#This Row],[Auswirkung Leistung (nach Maßnahme)]],Tab_Auswirkung[],6,FALSE) ), ) -> 0 | AU17: =MAX( IF(ISBLANK(Risikoregister[[#This Row],[Auswirkung Kosten qual. (vor Maßnahme)]]),0, VLOOKUP(Risikoregister[[#This Row],[Auswirkung Kosten qual. (vor Maßnahme)]],Tab_Auswirkung[],5,FALSE) ), IF(ISBLANK(Risikoregister[[#This Row],[Auswirkung Termine qual. (vor Maßnahme)]]),0, VLOOKUP(Risikoregister[[#This Row],[Auswirkung Termine qual. (vor Maßnahme)]],Tab_Auswirkung[],5,FALSE) ), IF(ISBLANK(Risikoregister[[#This Row],[Auswirkung Leistung qual. (vor Maßnahme)]]),0, VLOOKUP(Risikoregister[[#This Row],[Auswirkung Leistung qual. (vor Maßnahme)]],Tab_Auswirkung[],5,FALSE) ), ) -> 0 | AV17: =MAX( IF(ISBLANK(Risikoregister[[#This Row],[Auswirkung Kosten (nach Maßnahme)]]),0, VLOOKUP(Risikoregister[[#This Row],[Auswirkung Kosten (nach Maßnahme)]],Tab_Auswirkung[],5,FALSE) ), IF(ISBLANK(Risikoregister[[#This Row],[Auswirkung Termine (nach Maßnahme)]]),0, VLOOKUP(Risikoregister[[#This Row],[Auswirkung Termine (nach Maßnahme)]],Tab_Auswirkung[],5,FALSE) ), IF(ISBLANK(Risikoregister[[#This Row],[Auswirkung Leistung (nach Maßnahme)]]),0, VLOOKUP(Risikoregister[[#This Row],[Auswirkung Leistung (nach Maßnahme)]],Tab_Auswirkung[],5,FALSE) ), ) -> 0 | AW17: =IF(Risikoregister[[#This Row],[A. num Portfolio Hilfswert (vor Maßnahme)]]=0,#N/A,Risikoregister[[#This Row],[A. num Portfolio Hilfswert (vor Maßnahme)]]+Versatz_Portfolio) ->  | AX17: =IFERROR(VLOOKUP(Risikoregister[[#This Row],[Wahrscheinlichkeit* (nach Maßnahme)]],Tab_Wahrscheinlichkeit[],5,FALSE)+Versatz_Portfolio,#N/A) ->  | AY17: =IF(Risikoregister[[#This Row],[A. num Portfolio Hilfswert (nach Maßnahme)]]=0,#N/A,Risikoregister[[#This Row],[A. num Portfolio Hilfswert (nach Maßnahme)]]+Versatz_Portfolio) ->  | AZ17: =IF(Risikoregister[[#This Row],[Maßnahmen-Status]]=Planung!$W$9,Risikoregister[[#This Row],[W. num (nach Maßnahme)]],Risikoregister[[#This Row],[W. num Portfolio (vor Maßnahme)]]) ->  | BA17: =IF(Risikoregister[[#This Row],[Maßnahmen-Status]]=Planung!$W$9,Risikoregister[[#This Row],[A. num (nach Maßnahme)2]],Risikoregister[[#This Row],[A. num Portfolio (vor Maßnahme)]]) ->  | BC17: =VLOOKUP(Risikoregister[[#This Row],[Zeitraum von]],Zeiträume[],2,FALSE) ->  | BD17: =IF(ISBLANK(Risikoregister[[#This Row],[Zeitraum bis]]),Risikoregister[[#This Row],[Zeitraum von num]],VLOOKUP(Risikoregister[[#This Row],[Zeitraum bis]],Zeiträume[],2,FALSE)) ->  | BE17: =IFERROR(IF(AND(Risikoregister[[#This Row],[Zeitraum von num]]<=1,1<=Risikoregister[[#This Row],[Zeitraum bis num]]),Risikoregister[[#This Row],[Risikowert (in Punkten)]],0),"") ->  | BF17: =IFERROR(IF(AND(Risikoregister[[#This Row],[Zeitraum von num]]<=2,2<=Risikoregister[[#This Row],[Zeitraum bis num]]),Risikoregister[[#This Row],[Risikowert (in Punkten)]],0),"") ->  | BG17: =IFERROR(IF(AND(Risikoregister[[#This Row],[Zeitraum von num]]<=3,3<=Risikoregister[[#This Row],[Zeitraum bis num]]),Risikoregister[[#This Row],[Risikowert (in Punkten)]],0),"") ->  | BH17: =IFERROR(IF(AND(Risikoregister[[#This Row],[Zeitraum von num]]<=4,4<=Risikoregister[[#This Row],[Zeitraum bis num]]),Risikoregister[[#This Row],[Risikowert (in Punkten)]],0),"") ->  | BI17: =IFERROR(IF(AND(Risikoregister[[#This Row],[Zeitraum von num]]<=5,5<=Risikoregister[[#This Row],[Zeitraum bis num]]),Risikoregister[[#This Row],[Risikowert (in Punkten)]],0),"") ->  | BJ17: =IFERROR(IF(AND(Risikoregister[[#This Row],[Zeitraum von num]]<=6,6<=Risikoregister[[#This Row],[Zeitraum bis num]]),Risikoregister[[#This Row],[Risikowert (in Punkten)]],0),"") ->  | BK17: =IFERROR(IF(AND(Risikoregister[[#This Row],[Zeitraum von num]]<=7,7<=Risikoregister[[#This Row],[Zeitraum bis num]]),Risikoregister[[#This Row],[Risikowert (in Punkten)]],0),"") ->  | BL17: =IFERROR(IF(AND(Risikoregister[[#This Row],[Zeitraum von num]]<=8,8<=Risikoregister[[#This Row],[Zeitraum bis num]]),Risikoregister[[#This Row],[Risikowert (in Punkten)]],0),"") ->  | BM17: =IFERROR(IF(AND(Risikoregister[[#This Row],[Zeitraum von num]]<=9,9<=Risikoregister[[#This Row],[Zeitraum bis num]]),Risikoregister[[#This Row],[Risikowert (in Punkten)]],0),"") -> 
S18: =IFERROR(Risikoregister[[#This Row],[W. num (vor Maßnahme)]]*Risikoregister[[#This Row],[A. num (vor Maßnahme)]],#N/A) ->  | Y18: =IFERROR(Risikoregister[[#This Row],[Wahrscheinlichkeit quant. (vor Maßnahme)]]*Risikoregister[[#This Row],[Auswirkung Kosten quant.]],#N/A) -> 0 | AI18: =IFERROR(VLOOKUP(Risikoregister[[#This Row],[Wahrscheinlichkeit* (nach Maßnahme)]],Tab_Wahrscheinlichkeit[],7,0)*Risikoregister[[#This Row],[A. num (nach Maßnahme)]],#N/A) ->  | AJ18: =IFERROR(VLOOKUP(Risikoregister[[#This Row],[Wahrscheinlichkeit* (nach Maßnahme)]],Tab_Wahrscheinlichkeit[],6,0)*Risikoregister[[#This Row],[Auswirkung Kosten quant.]],#N/A) ->  | AQ18: =IFERROR(VLOOKUP(Risikoregister[[#This Row],[Wahrscheinlichkeit qual. (vor Maßnahme)]],Tab_Wahrscheinlichkeit[],7,FALSE),#N/A) ->  | AR18: =IFERROR(VLOOKUP(Risikoregister[[#This Row],[Wahrscheinlichkeit qual. (vor Maßnahme)]],Tab_Wahrscheinlichkeit[],5,FALSE)+Versatz_Portfolio,#N/A) ->  | AS18: =MAX( IF(ISBLANK(Risikoregister[[#This Row],[Auswirkung Kosten qual. (vor Maßnahme)]]),0, VLOOKUP(Risikoregister[[#This Row],[Auswirkung Kosten qual. (vor Maßnahme)]],Tab_Auswirkung[],6,FALSE) ), IF(ISBLANK(Risikoregister[[#This Row],[Auswirkung Termine qual. (vor Maßnahme)]]),0, VLOOKUP(Risikoregister[[#This Row],[Auswirkung Termine qual. (vor Maßnahme)]],Tab_Auswirkung[],6,FALSE) ), IF(ISBLANK(Risikoregister[[#This Row],[Auswirkung Leistung qual. (vor Maßnahme)]]),0, VLOOKUP(Risikoregister[[#This Row],[Auswirkung Leistung qual. (vor Maßnahme)]],Tab_Auswirkung[],6,FALSE) ), ) -> 0 | AT18: =MAX( IF(ISBLANK(Risikoregister[[#This Row],[Auswirkung Kosten (nach Maßnahme)]]),0, VLOOKUP(Risikoregister[[#This Row],[Auswirkung Kosten (nach Maßnahme)]],Tab_Auswirkung[],6,FALSE) ), IF(ISBLANK(Risikoregister[[#This Row],[Auswirkung Termine (nach Maßnahme)]]),0, VLOOKUP(Risikoregister[[#This Row],[Auswirkung Termine (nach Maßnahme)]],Tab_Auswirkung[],6,FALSE) ), IF(ISBLANK(Risikoregister[[#This Row],[Auswirkung Leistung (nach Maßnahme)]]),0, VLOOKUP(Risikoregister[[#This Row],[Auswirkung Leistung (nach Maßnahme)]],Tab_Auswirkung[],6,FALSE) ), ) -> 0 | AU18: =MAX( IF(ISBLANK(Risikoregister[[#This Row],[Auswirkung Kosten qual. (vor Maßnahme)]]),0, VLOOKUP(Risikoregister[[#This Row],[Auswirkung Kosten qual. (vor Maßnahme)]],Tab_Auswirkung[],5,FALSE) ), IF(ISBLANK(Risikoregister[[#This Row],[Auswirkung Termine qual. (vor Maßnahme)]]),0, VLOOKUP(Risikoregister[[#This Row],[Auswirkung Termine qual. (vor Maßnahme)]],Tab_Auswirkung[],5,FALSE) ), IF(ISBLANK(Risikoregister[[#This Row],[Auswirkung Leistung qual. (vor Maßnahme)]]),0, VLOOKUP(Risikoregister[[#This Row],[Auswirkung Leistung qual. (vor Maßnahme)]],Tab_Auswirkung[],5,FALSE) ), ) -> 0 | AV18: =MAX( IF(ISBLANK(Risikoregister[[#This Row],[Auswirkung Kosten (nach Maßnahme)]]),0, VLOOKUP(Risikoregister[[#This Row],[Auswirkung Kosten (nach Maßnahme)]],Tab_Auswirkung[],5,FALSE) ), IF(ISBLANK(Risikoregister[[#This Row],[Auswirkung Termine (nach Maßnahme)]]),0, VLOOKUP(Risikoregister[[#This Row],[Auswirkung Termine (nach Maßnahme)]],Tab_Auswirkung[],5,FALSE) ), IF(ISBLANK(Risikoregister[[#This Row],[Auswirkung Leistung (nach Maßnahme)]]),0, VLOOKUP(Risikoregister[[#This Row],[Auswirkung Leistung (nach Maßnahme)]],Tab_Auswirkung[],5,FALSE) ), ) -> 0 | AW18: =IF(Risikoregister[[#This Row],[A. num Portfolio Hilfswert (vor Maßnahme)]]=0,#N/A,Risikoregister[[#This Row],[A. num Portfolio Hilfswert (vor Maßnahme)]]+Versatz_Portfolio) ->  | AX18: =IFERROR(VLOOKUP(Risikoregister[[#This Row],[Wahrscheinlichkeit* (nach Maßnahme)]],Tab_Wahrscheinlichkeit[],5,FALSE)+Versatz_Portfolio,#N/A) ->  | AY18: =IF(Risikoregister[[#This Row],[A. num Portfolio Hilfswert (nach Maßnahme)]]=0,#N/A,Risikoregister[[#This Row],[A. num Portfolio Hilfswert (nach Maßnahme)]]+Versatz_Portfolio) ->  | AZ18: =IF(Risikoregister[[#This Row],[Maßnahmen-Status]]=Planung!$W$9,Risikoregister[[#This Row],[W. num (nach Maßnahme)]],Risikoregister[[#This Row],[W. num Portfolio (vor Maßnahme)]]) ->  | BA18: =IF(Risikoregister[[#This Row],[Maßnahmen-Status]]=Planung!$W$9,Risikoregister[[#This Row],[A. num (nach Maßnahme)2]],Risikoregister[[#This Row],[A. num Portfolio (vor Maßnahme)]]) ->  | BC18: =VLOOKUP(Risikoregister[[#This Row],[Zeitraum von]],Zeiträume[],2,FALSE) ->  | BD18: =IF(ISBLANK(Risikoregister[[#This Row],[Zeitraum bis]]),Risikoregister[[#This Row],[Zeitraum von num]],VLOOKUP(Risikoregister[[#This Row],[Zeitraum bis]],Zeiträume[],2,FALSE)) ->  | BE18: =IFERROR(IF(AND(Risikoregister[[#This Row],[Zeitraum von num]]<=1,1<=Risikoregister[[#This Row],[Zeitraum bis num]]),Risikoregister[[#This Row],[Risikowert (in Punkten)]],0),"") ->  | BF18: =IFERROR(IF(AND(Risikoregister[[#This Row],[Zeitraum von num]]<=2,2<=Risikoregister[[#This Row],[Zeitraum bis num]]),Risikoregister[[#This Row],[Risikowert (in Punkten)]],0),"") ->  | BG18: =IFERROR(IF(AND(Risikoregister[[#This Row],[Zeitraum von num]]<=3,3<=Risikoregister[[#This Row],[Zeitraum bis num]]),Risikoregister[[#This Row],[Risikowert (in Punkten)]],0),"") ->  | BH18: =IFERROR(IF(AND(Risikoregister[[#This Row],[Zeitraum von num]]<=4,4<=Risikoregister[[#This Row],[Zeitraum bis num]]),Risikoregister[[#This Row],[Risikowert (in Punkten)]],0),"") ->  | BI18: =IFERROR(IF(AND(Risikoregister[[#This Row],[Zeitraum von num]]<=5,5<=Risikoregister[[#This Row],[Zeitraum bis num]]),Risikoregister[[#This Row],[Risikowert (in Punkten)]],0),"") ->  | BJ18: =IFERROR(IF(AND(Risikoregister[[#This Row],[Zeitraum von num]]<=6,6<=Risikoregister[[#This Row],[Zeitraum bis num]]),Risikoregister[[#This Row],[Risikowert (in Punkten)]],0),"") ->  | BK18: =IFERROR(IF(AND(Risikoregister[[#This Row],[Zeitraum von num]]<=7,7<=Risikoregister[[#This Row],[Zeitraum bis num]]),Risikoregister[[#This Row],[Risikowert (in Punkten)]],0),"") ->  | BL18: =IFERROR(IF(AND(Risikoregister[[#This Row],[Zeitraum von num]]<=8,8<=Risikoregister[[#This Row],[Zeitraum bis num]]),Risikoregister[[#This Row],[Risikowert (in Punkten)]],0),"") ->  | BM18: =IFERROR(IF(AND(Risikoregister[[#This Row],[Zeitraum von num]]<=9,9<=Risikoregister[[#This Row],[Zeitraum bis num]]),Risikoregister[[#This Row],[Risikowert (in Punkten)]],0),"") -> 
S19: =IFERROR(Risikoregister[[#This Row],[W. num (vor Maßnahme)]]*Risikoregister[[#This Row],[A. num (vor Maßnahme)]],#N/A) ->  | Y19: =IFERROR(Risikoregister[[#This Row],[Wahrscheinlichkeit quant. (vor Maßnahme)]]*Risikoregister[[#This Row],[Auswirkung Kosten quant.]],#N/A) -> 0 | AI19: =IFERROR(VLOOKUP(Risikoregister[[#This Row],[Wahrscheinlichkeit* (nach Maßnahme)]],Tab_Wahrscheinlichkeit[],7,0)*Risikoregister[[#This Row],[A. num (nach Maßnahme)]],#N/A) ->  | AJ19: =IFERROR(VLOOKUP(Risikoregister[[#This Row],[Wahrscheinlichkeit* (nach Maßnahme)]],Tab_Wahrscheinlichkeit[],6,0)*Risikoregister[[#This Row],[Auswirkung Kosten quant.]],#N/A) ->  | AQ19: =IFERROR(VLOOKUP(Risikoregister[[#This Row],[Wahrscheinlichkeit qual. (vor Maßnahme)]],Tab_Wahrscheinlichkeit[],7,FALSE),#N/A) ->  | AR19: =IFERROR(VLOOKUP(Risikoregister[[#This Row],[Wahrscheinlichkeit qual. (vor Maßnahme)]],Tab_Wahrscheinlichkeit[],5,FALSE)+Versatz_Portfolio,#N/A) ->  | AS19: =MAX( IF(ISBLANK(Risikoregister[[#This Row],[Auswirkung Kosten qual. (vor Maßnahme)]]),0, VLOOKUP(Risikoregister[[#This Row],[Auswirkung Kosten qual. (vor Maßnahme)]],Tab_Auswirkung[],6,FALSE) ), IF(ISBLANK(Risikoregister[[#This Row],[Auswirkung Termine qual. (vor Maßnahme)]]),0, VLOOKUP(Risikoregister[[#This Row],[Auswirkung Termine qual. (vor Maßnahme)]],Tab_Auswirkung[],6,FALSE) ), IF(ISBLANK(Risikoregister[[#This Row],[Auswirkung Leistung qual. (vor Maßnahme)]]),0, VLOOKUP(Risikoregister[[#This Row],[Auswirkung Leistung qual. (vor Maßnahme)]],Tab_Auswirkung[],6,FALSE) ), ) -> 0 | AT19: =MAX( IF(ISBLANK(Risikoregister[[#This Row],[Auswirkung Kosten (nach Maßnahme)]]),0, VLOOKUP(Risikoregister[[#This Row],[Auswirkung Kosten (nach Maßnahme)]],Tab_Auswirkung[],6,FALSE) ), IF(ISBLANK(Risikoregister[[#This Row],[Auswirkung Termine (nach Maßnahme)]]),0, VLOOKUP(Risikoregister[[#This Row],[Auswirkung Termine (nach Maßnahme)]],Tab_Auswirkung[],6,FALSE) ), IF(ISBLANK(Risikoregister[[#This Row],[Auswirkung Leistung (nach Maßnahme)]]),0, VLOOKUP(Risikoregister[[#This Row],[Auswirkung Leistung (nach Maßnahme)]],Tab_Auswirkung[],6,FALSE) ), ) -> 0 | AU19: =MAX( IF(ISBLANK(Risikoregister[[#This Row],[Auswirkung Kosten qual. (vor Maßnahme)]]),0, VLOOKUP(Risikoregister[[#This Row],[Auswirkung Kosten qual. (vor Maßnahme)]],Tab_Auswirkung[],5,FALSE) ), IF(ISBLANK(Risikoregister[[#This Row],[Auswirkung Termine qual. (vor Maßnahme)]]),0, VLOOKUP(Risikoregister[[#This Row],[Auswirkung Termine qual. (vor Maßnahme)]],Tab_Auswirkung[],5,FALSE) ), IF(ISBLANK(Risikoregister[[#This Row],[Auswirkung Leistung qual. (vor Maßnahme)]]),0, VLOOKUP(Risikoregister[[#This Row],[Auswirkung Leistung qual. (vor Maßnahme)]],Tab_Auswirkung[],5,FALSE) ), ) -> 0 | AV19: =MAX( IF(ISBLANK(Risikoregister[[#This Row],[Auswirkung Kosten (nach Maßnahme)]]),0, VLOOKUP(Risikoregister[[#This Row],[Auswirkung Kosten (nach Maßnahme)]],Tab_Auswirkung[],5,FALSE) ), IF(ISBLANK(Risikoregister[[#This Row],[Auswirkung Termine (nach Maßnahme)]]),0, VLOOKUP(Risikoregister[[#This Row],[Auswirkung Termine (nach Maßnahme)]],Tab_Auswirkung[],5,FALSE) ), IF(ISBLANK(Risikoregister[[#This Row],[Auswirkung Leistung (nach Maßnahme)]]),0, VLOOKUP(Risikoregister[[#This Row],[Auswirkung Leistung (nach Maßnahme)]],Tab_Auswirkung[],5,FALSE) ), ) -> 0 | AW19: =IF(Risikoregister[[#This Row],[A. num Portfolio Hilfswert (vor Maßnahme)]]=0,#N/A,Risikoregister[[#This Row],[A. num Portfolio Hilfswert (vor Maßnahme)]]+Versatz_Portfolio) ->  | AX19: =IFERROR(VLOOKUP(Risikoregister[[#This Row],[Wahrscheinlichkeit* (nach Maßnahme)]],Tab_Wahrscheinlichkeit[],5,FALSE)+Versatz_Portfolio,#N/A) ->  | AY19: =IF(Risikoregister[[#This Row],[A. num Portfolio Hilfswert (nach Maßnahme)]]=0,#N/A,Risikoregister[[#This Row],[A. num Portfolio Hilfswert (nach Maßnahme)]]+Versatz_Portfolio) ->  | AZ19: =IF(Risikoregister[[#This Row],[Maßnahmen-Status]]=Planung!$W$9,Risikoregister[[#This Row],[W. num (nach Maßnahme)]],Risikoregister[[#This Row],[W. num Portfolio (vor Maßnahme)]]) ->  | BA19: =IF(Risikoregister[[#This Row],[Maßnahmen-Status]]=Planung!$W$9,Risikoregister[[#This Row],[A. num (nach Maßnahme)2]],Risikoregister[[#This Row],[A. num Portfolio (vor Maßnahme)]]) ->  | BC19: =VLOOKUP(Risikoregister[[#This Row],[Zeitraum von]],Zeiträume[],2,FALSE) ->  | BD19: =IF(ISBLANK(Risikoregister[[#This Row],[Zeitraum bis]]),Risikoregister[[#This Row],[Zeitraum von num]],VLOOKUP(Risikoregister[[#This Row],[Zeitraum bis]],Zeiträume[],2,FALSE)) ->  | BE19: =IFERROR(IF(AND(Risikoregister[[#This Row],[Zeitraum von num]]<=1,1<=Risikoregister[[#This Row],[Zeitraum bis num]]),Risikoregister[[#This Row],[Risikowert (in Punkten)]],0),"") ->  | BF19: =IFERROR(IF(AND(Risikoregister[[#This Row],[Zeitraum von num]]<=2,2<=Risikoregister[[#This Row],[Zeitraum bis num]]),Risikoregister[[#This Row],[Risikowert (in Punkten)]],0),"") ->  | BG19: =IFERROR(IF(AND(Risikoregister[[#This Row],[Zeitraum von num]]<=3,3<=Risikoregister[[#This Row],[Zeitraum bis num]]),Risikoregister[[#This Row],[Risikowert (in Punkten)]],0),"") ->  | BH19: =IFERROR(IF(AND(Risikoregister[[#This Row],[Zeitraum von num]]<=4,4<=Risikoregister[[#This Row],[Zeitraum bis num]]),Risikoregister[[#This Row],[Risikowert (in Punkten)]],0),"") ->  | BI19: =IFERROR(IF(AND(Risikoregister[[#This Row],[Zeitraum von num]]<=5,5<=Risikoregister[[#This Row],[Zeitraum bis num]]),Risikoregister[[#This Row],[Risikowert (in Punkten)]],0),"") ->  | BJ19: =IFERROR(IF(AND(Risikoregister[[#This Row],[Zeitraum von num]]<=6,6<=Risikoregister[[#This Row],[Zeitraum bis num]]),Risikoregister[[#This Row],[Risikowert (in Punkten)]],0),"") ->  | BK19: =IFERROR(IF(AND(Risikoregister[[#This Row],[Zeitraum von num]]<=7,7<=Risikoregister[[#This Row],[Zeitraum bis num]]),Risikoregister[[#This Row],[Risikowert (in Punkten)]],0),"") ->  | BL19: =IFERROR(IF(AND(Risikoregister[[#This Row],[Zeitraum von num]]<=8,8<=Risikoregister[[#This Row],[Zeitraum bis num]]),Risikoregister[[#This Row],[Risikowert (in Punkten)]],0),"") ->  | BM19: =IFERROR(IF(AND(Risikoregister[[#This Row],[Zeitraum von num]]<=9,9<=Risikoregister[[#This Row],[Zeitraum bis num]]),Risikoregister[[#This Row],[Risikowert (in Punkten)]],0),"") -> 
S20: =IFERROR(Risikoregister[[#This Row],[W. num (vor Maßnahme)]]*Risikoregister[[#This Row],[A. num (vor Maßnahme)]],#N/A) ->  | Y20: =IFERROR(Risikoregister[[#This Row],[Wahrscheinlichkeit quant. (vor Maßnahme)]]*Risikoregister[[#This Row],[Auswirkung Kosten quant.]],#N/A) -> 0 | AI20: =IFERROR(VLOOKUP(Risikoregister[[#This Row],[Wahrscheinlichkeit* (nach Maßnahme)]],Tab_Wahrscheinlichkeit[],7,0)*Risikoregister[[#This Row],[A. num (nach Maßnahme)]],#N/A) ->  | AJ20: =IFERROR(VLOOKUP(Risikoregister[[#This Row],[Wahrscheinlichkeit* (nach Maßnahme)]],Tab_Wahrscheinlichkeit[],6,0)*Risikoregister[[#This Row],[Auswirkung Kosten quant.]],#N/A) ->  | AQ20: =IFERROR(VLOOKUP(Risikoregister[[#This Row],[Wahrscheinlichkeit qual. (vor Maßnahme)]],Tab_Wahrscheinlichkeit[],7,FALSE),#N/A) ->  | AR20: =IFERROR(VLOOKUP(Risikoregister[[#This Row],[Wahrscheinlichkeit qual. (vor Maßnahme)]],Tab_Wahrscheinlichkeit[],5,FALSE)+Versatz_Portfolio,#N/A) ->  | AS20: =MAX( IF(ISBLANK(Risikoregister[[#This Row],[Auswirkung Kosten qual. (vor Maßnahme)]]),0, VLOOKUP(Risikoregister[[#This Row],[Auswirkung Kosten qual. (vor Maßnahme)]],Tab_Auswirkung[],6,FALSE) ), IF(ISBLANK(Risikoregister[[#This Row],[Auswirkung Termine qual. (vor Maßnahme)]]),0, VLOOKUP(Risikoregister[[#This Row],[Auswirkung Termine qual. (vor Maßnahme)]],Tab_Auswirkung[],6,FALSE) ), IF(ISBLANK(Risikoregister[[#This Row],[Auswirkung Leistung qual. (vor Maßnahme)]]),0, VLOOKUP(Risikoregister[[#This Row],[Auswirkung Leistung qual. (vor Maßnahme)]],Tab_Auswirkung[],6,FALSE) ), ) -> 0 | AT20: =MAX( IF(ISBLANK(Risikoregister[[#This Row],[Auswirkung Kosten (nach Maßnahme)]]),0, VLOOKUP(Risikoregister[[#This Row],[Auswirkung Kosten (nach Maßnahme)]],Tab_Auswirkung[],6,FALSE) ), IF(ISBLANK(Risikoregister[[#This Row],[Auswirkung Termine (nach Maßnahme)]]),0, VLOOKUP(Risikoregister[[#This Row],[Auswirkung Termine (nach Maßnahme)]],Tab_Auswirkung[],6,FALSE) ), IF(ISBLANK(Risikoregister[[#This Row],[Auswirkung Leistung (nach Maßnahme)]]),0, VLOOKUP(Risikoregister[[#This Row],[Auswirkung Leistung (nach Maßnahme)]],Tab_Auswirkung[],6,FALSE) ), ) -> 0 | AU20: =MAX( IF(ISBLANK(Risikoregister[[#This Row],[Auswirkung Kosten qual. (vor Maßnahme)]]),0, VLOOKUP(Risikoregister[[#This Row],[Auswirkung Kosten qual. (vor Maßnahme)]],Tab_Auswirkung[],5,FALSE) ), IF(ISBLANK(Risikoregister[[#This Row],[Auswirkung Termine qual. (vor Maßnahme)]]),0, VLOOKUP(Risikoregister[[#This Row],[Auswirkung Termine qual. (vor Maßnahme)]],Tab_Auswirkung[],5,FALSE) ), IF(ISBLANK(Risikoregister[[#This Row],[Auswirkung Leistung qual. (vor Maßnahme)]]),0, VLOOKUP(Risikoregister[[#This Row],[Auswirkung Leistung qual. (vor Maßnahme)]],Tab_Auswirkung[],5,FALSE) ), ) -> 0 | AV20: =MAX( IF(ISBLANK(Risikoregister[[#This Row],[Auswirkung Kosten (nach Maßnahme)]]),0, VLOOKUP(Risikoregister[[#This Row],[Auswirkung Kosten (nach Maßnahme)]],Tab_Auswirkung[],5,FALSE) ), IF(ISBLANK(Risikoregister[[#This Row],[Auswirkung Termine (nach Maßnahme)]]),0, VLOOKUP(Risikoregister[[#This Row],[Auswirkung Termine (nach Maßnahme)]],Tab_Auswirkung[],5,FALSE) ), IF(ISBLANK(Risikoregister[[#This Row],[Auswirkung Leistung (nach Maßnahme)]]),0, VLOOKUP(Risikoregister[[#This Row],[Auswirkung Leistung (nach Maßnahme)]],Tab_Auswirkung[],5,FALSE) ), ) -> 0 | AW20: =IF(Risikoregister[[#This Row],[A. num Portfolio Hilfswert (vor Maßnahme)]]=0,#N/A,Risikoregister[[#This Row],[A. num Portfolio Hilfswert (vor Maßnahme)]]+Versatz_Portfolio) ->  | AX20: =IFERROR(VLOOKUP(Risikoregister[[#This Row],[Wahrscheinlichkeit* (nach Maßnahme)]],Tab_Wahrscheinlichkeit[],5,FALSE)+Versatz_Portfolio,#N/A) ->  | AY20: =IF(Risikoregister[[#This Row],[A. num Portfolio Hilfswert (nach Maßnahme)]]=0,#N/A,Risikoregister[[#This Row],[A. num Portfolio Hilfswert (nach Maßnahme)]]+Versatz_Portfolio) ->  | AZ20: =IF(Risikoregister[[#This Row],[Maßnahmen-Status]]=Planung!$W$9,Risikoregister[[#This Row],[W. num (nach Maßnahme)]],Risikoregister[[#This Row],[W. num Portfolio (vor Maßnahme)]]) ->  | BA20: =IF(Risikoregister[[#This Row],[Maßnahmen-Status]]=Planung!$W$9,Risikoregister[[#This Row],[A. num (nach Maßnahme)2]],Risikoregister[[#This Row],[A. num Portfolio (vor Maßnahme)]]) ->  | BC20: =VLOOKUP(Risikoregister[[#This Row],[Zeitraum von]],Zeiträume[],2,FALSE) ->  | BD20: =IF(ISBLANK(Risikoregister[[#This Row],[Zeitraum bis]]),Risikoregister[[#This Row],[Zeitraum von num]],VLOOKUP(Risikoregister[[#This Row],[Zeitraum bis]],Zeiträume[],2,FALSE)) ->  | BE20: =IFERROR(IF(AND(Risikoregister[[#This Row],[Zeitraum von num]]<=1,1<=Risikoregister[[#This Row],[Zeitraum bis num]]),Risikoregister[[#This Row],[Risikowert (in Punkten)]],0),"") ->  | BF20: =IFERROR(IF(AND(Risikoregister[[#This Row],[Zeitraum von num]]<=2,2<=Risikoregister[[#This Row],[Zeitraum bis num]]),Risikoregister[[#This Row],[Risikowert (in Punkten)]],0),"") ->  | BG20: =IFERROR(IF(AND(Risikoregister[[#This Row],[Zeitraum von num]]<=3,3<=Risikoregister[[#This Row],[Zeitraum bis num]]),Risikoregister[[#This Row],[Risikowert (in Punkten)]],0),"") ->  | BH20: =IFERROR(IF(AND(Risikoregister[[#This Row],[Zeitraum von num]]<=4,4<=Risikoregister[[#This Row],[Zeitraum bis num]]),Risikoregister[[#This Row],[Risikowert (in Punkten)]],0),"") ->  | BI20: =IFERROR(IF(AND(Risikoregister[[#This Row],[Zeitraum von num]]<=5,5<=Risikoregister[[#This Row],[Zeitraum bis num]]),Risikoregister[[#This Row],[Risikowert (in Punkten)]],0),"") ->  | BJ20: =IFERROR(IF(AND(Risikoregister[[#This Row],[Zeitraum von num]]<=6,6<=Risikoregister[[#This Row],[Zeitraum bis num]]),Risikoregister[[#This Row],[Risikowert (in Punkten)]],0),"") ->  | BK20: =IFERROR(IF(AND(Risikoregister[[#This Row],[Zeitraum von num]]<=7,7<=Risikoregister[[#This Row],[Zeitraum bis num]]),Risikoregister[[#This Row],[Risikowert (in Punkten)]],0),"") ->  | BL20: =IFERROR(IF(AND(Risikoregister[[#This Row],[Zeitraum von num]]<=8,8<=Risikoregister[[#This Row],[Zeitraum bis num]]),Risikoregister[[#This Row],[Risikowert (in Punkten)]],0),"") ->  | BM20: =IFERROR(IF(AND(Risikoregister[[#This Row],[Zeitraum von num]]<=9,9<=Risikoregister[[#This Row],[Zeitraum bis num]]),Risikoregister[[#This Row],[Risikowert (in Punkten)]],0),"") -> 
S21: =IFERROR(Risikoregister[[#This Row],[W. num (vor Maßnahme)]]*Risikoregister[[#This Row],[A. num (vor Maßnahme)]],#N/A) ->  | Y21: =IFERROR(Risikoregister[[#This Row],[Wahrscheinlichkeit quant. (vor Maßnahme)]]*Risikoregister[[#This Row],[Auswirkung Kosten quant.]],#N/A) -> 0 | AI21: =IFERROR(VLOOKUP(Risikoregister[[#This Row],[Wahrscheinlichkeit* (nach Maßnahme)]],Tab_Wahrscheinlichkeit[],7,0)*Risikoregister[[#This Row],[A. num (nach Maßnahme)]],#N/A) ->  | AJ21: =IFERROR(VLOOKUP(Risikoregister[[#This Row],[Wahrscheinlichkeit* (nach Maßnahme)]],Tab_Wahrscheinlichkeit[],6,0)*Risikoregister[[#This Row],[Auswirkung Kosten quant.]],#N/A) ->  | AQ21: =IFERROR(VLOOKUP(Risikoregister[[#This Row],[Wahrscheinlichkeit qual. (vor Maßnahme)]],Tab_Wahrscheinlichkeit[],7,FALSE),#N/A) ->  | AR21: =IFERROR(VLOOKUP(Risikoregister[[#This Row],[Wahrscheinlichkeit qual. (vor Maßnahme)]],Tab_Wahrscheinlichkeit[],5,FALSE)+Versatz_Portfolio,#N/A) ->  | AS21: =MAX( IF(ISBLANK(Risikoregister[[#This Row],[Auswirkung Kosten qual. (vor Maßnahme)]]),0, VLOOKUP(Risikoregister[[#This Row],[Auswirkung Kosten qual. (vor Maßnahme)]],Tab_Auswirkung[],6,FALSE) ), IF(ISBLANK(Risikoregister[[#This Row],[Auswirkung Termine qual. (vor Maßnahme)]]),0, VLOOKUP(Risikoregister[[#This Row],[Auswirkung Termine qual. (vor Maßnahme)]],Tab_Auswirkung[],6,FALSE) ), IF(ISBLANK(Risikoregister[[#This Row],[Auswirkung Leistung qual. (vor Maßnahme)]]),0, VLOOKUP(Risikoregister[[#This Row],[Auswirkung Leistung qual. (vor Maßnahme)]],Tab_Auswirkung[],6,FALSE) ), ) -> 0 | AT21: =MAX( IF(ISBLANK(Risikoregister[[#This Row],[Auswirkung Kosten (nach Maßnahme)]]),0, VLOOKUP(Risikoregister[[#This Row],[Auswirkung Kosten (nach Maßnahme)]],Tab_Auswirkung[],6,FALSE) ), IF(ISBLANK(Risikoregister[[#This Row],[Auswirkung Termine (nach Maßnahme)]]),0, VLOOKUP(Risikoregister[[#This Row],[Auswirkung Termine (nach Maßnahme)]],Tab_Auswirkung[],6,FALSE) ), IF(ISBLANK(Risikoregister[[#This Row],[Auswirkung Leistung (nach Maßnahme)]]),0, VLOOKUP(Risikoregister[[#This Row],[Auswirkung Leistung (nach Maßnahme)]],Tab_Auswirkung[],6,FALSE) ), ) -> 0 | AU21: =MAX( IF(ISBLANK(Risikoregister[[#This Row],[Auswirkung Kosten qual. (vor Maßnahme)]]),0, VLOOKUP(Risikoregister[[#This Row],[Auswirkung Kosten qual. (vor Maßnahme)]],Tab_Auswirkung[],5,FALSE) ), IF(ISBLANK(Risikoregister[[#This Row],[Auswirkung Termine qual. (vor Maßnahme)]]),0, VLOOKUP(Risikoregister[[#This Row],[Auswirkung Termine qual. (vor Maßnahme)]],Tab_Auswirkung[],5,FALSE) ), IF(ISBLANK(Risikoregister[[#This Row],[Auswirkung Leistung qual. (vor Maßnahme)]]),0, VLOOKUP(Risikoregister[[#This Row],[Auswirkung Leistung qual. (vor Maßnahme)]],Tab_Auswirkung[],5,FALSE) ), ) -> 0 | AV21: =MAX( IF(ISBLANK(Risikoregister[[#This Row],[Auswirkung Kosten (nach Maßnahme)]]),0, VLOOKUP(Risikoregister[[#This Row],[Auswirkung Kosten (nach Maßnahme)]],Tab_Auswirkung[],5,FALSE) ), IF(ISBLANK(Risikoregister[[#This Row],[Auswirkung Termine (nach Maßnahme)]]),0, VLOOKUP(Risikoregister[[#This Row],[Auswirkung Termine (nach Maßnahme)]],Tab_Auswirkung[],5,FALSE) ), IF(ISBLANK(Risikoregister[[#This Row],[Auswirkung Leistung (nach Maßnahme)]]),0, VLOOKUP(Risikoregister[[#This Row],[Auswirkung Leistung (nach Maßnahme)]],Tab_Auswirkung[],5,FALSE) ), ) -> 0 | AW21: =IF(Risikoregister[[#This Row],[A. num Portfolio Hilfswert (vor Maßnahme)]]=0,#N/A,Risikoregister[[#This Row],[A. num Portfolio Hilfswert (vor Maßnahme)]]+Versatz_Portfolio) ->  | AX21: =IFERROR(VLOOKUP(Risikoregister[[#This Row],[Wahrscheinlichkeit* (nach Maßnahme)]],Tab_Wahrscheinlichkeit[],5,FALSE)+Versatz_Portfolio,#N/A) ->  | AY21: =IF(Risikoregister[[#This Row],[A. num Portfolio Hilfswert (nach Maßnahme)]]=0,#N/A,Risikoregister[[#This Row],[A. num Portfolio Hilfswert (nach Maßnahme)]]+Versatz_Portfolio) ->  | AZ21: =IF(Risikoregister[[#This Row],[Maßnahmen-Status]]=Planung!$W$9,Risikoregister[[#This Row],[W. num (nach Maßnahme)]],Risikoregister[[#This Row],[W. num Portfolio (vor Maßnahme)]]) ->  | BA21: =IF(Risikoregister[[#This Row],[Maßnahmen-Status]]=Planung!$W$9,Risikoregister[[#This Row],[A. num (nach Maßnahme)2]],Risikoregister[[#This Row],[A. num Portfolio (vor Maßnahme)]]) ->  | BC21: =VLOOKUP(Risikoregister[[#This Row],[Zeitraum von]],Zeiträume[],2,FALSE) ->  | BD21: =IF(ISBLANK(Risikoregister[[#This Row],[Zeitraum bis]]),Risikoregister[[#This Row],[Zeitraum von num]],VLOOKUP(Risikoregister[[#This Row],[Zeitraum bis]],Zeiträume[],2,FALSE)) ->  | BE21: =IFERROR(IF(AND(Risikoregister[[#This Row],[Zeitraum von num]]<=1,1<=Risikoregister[[#This Row],[Zeitraum bis num]]),Risikoregister[[#This Row],[Risikowert (in Punkten)]],0),"") ->  | BF21: =IFERROR(IF(AND(Risikoregister[[#This Row],[Zeitraum von num]]<=2,2<=Risikoregister[[#This Row],[Zeitraum bis num]]),Risikoregister[[#This Row],[Risikowert (in Punkten)]],0),"") ->  | BG21: =IFERROR(IF(AND(Risikoregister[[#This Row],[Zeitraum von num]]<=3,3<=Risikoregister[[#This Row],[Zeitraum bis num]]),Risikoregister[[#This Row],[Risikowert (in Punkten)]],0),"") ->  | BH21: =IFERROR(IF(AND(Risikoregister[[#This Row],[Zeitraum von num]]<=4,4<=Risikoregister[[#This Row],[Zeitraum bis num]]),Risikoregister[[#This Row],[Risikowert (in Punkten)]],0),"") ->  | BI21: =IFERROR(IF(AND(Risikoregister[[#This Row],[Zeitraum von num]]<=5,5<=Risikoregister[[#This Row],[Zeitraum bis num]]),Risikoregister[[#This Row],[Risikowert (in Punkten)]],0),"") ->  | BJ21: =IFERROR(IF(AND(Risikoregister[[#This Row],[Zeitraum von num]]<=6,6<=Risikoregister[[#This Row],[Zeitraum bis num]]),Risikoregister[[#This Row],[Risikowert (in Punkten)]],0),"") ->  | BK21: =IFERROR(IF(AND(Risikoregister[[#This Row],[Zeitraum von num]]<=7,7<=Risikoregister[[#This Row],[Zeitraum bis num]]),Risikoregister[[#This Row],[Risikowert (in Punkten)]],0),"") ->  | BL21: =IFERROR(IF(AND(Risikoregister[[#This Row],[Zeitraum von num]]<=8,8<=Risikoregister[[#This Row],[Zeitraum bis num]]),Risikoregister[[#This Row],[Risikowert (in Punkten)]],0),"") ->  | BM21: =IFERROR(IF(AND(Risikoregister[[#This Row],[Zeitraum von num]]<=9,9<=Risikoregister[[#This Row],[Zeitraum bis num]]),Risikoregister[[#This Row],[Risikowert (in Punkten)]],0),"") -> 
S22: =IFERROR(Risikoregister[[#This Row],[W. num (vor Maßnahme)]]*Risikoregister[[#This Row],[A. num (vor Maßnahme)]],#N/A) ->  | Y22: =IFERROR(Risikoregister[[#This Row],[Wahrscheinlichkeit quant. (vor Maßnahme)]]*Risikoregister[[#This Row],[Auswirkung Kosten quant.]],#N/A) -> 0 | AI22: =IFERROR(VLOOKUP(Risikoregister[[#This Row],[Wahrscheinlichkeit* (nach Maßnahme)]],Tab_Wahrscheinlichkeit[],7,0)*Risikoregister[[#This Row],[A. num (nach Maßnahme)]],#N/A) ->  | AJ22: =IFERROR(VLOOKUP(Risikoregister[[#This Row],[Wahrscheinlichkeit* (nach Maßnahme)]],Tab_Wahrscheinlichkeit[],6,0)*Risikoregister[[#This Row],[Auswirkung Kosten quant.]],#N/A) ->  | AQ22: =IFERROR(VLOOKUP(Risikoregister[[#This Row],[Wahrscheinlichkeit qual. (vor Maßnahme)]],Tab_Wahrscheinlichkeit[],7,FALSE),#N/A) ->  | AR22: =IFERROR(VLOOKUP(Risikoregister[[#This Row],[Wahrscheinlichkeit qual. (vor Maßnahme)]],Tab_Wahrscheinlichkeit[],5,FALSE)+Versatz_Portfolio,#N/A) ->  | AS22: =MAX( IF(ISBLANK(Risikoregister[[#This Row],[Auswirkung Kosten qual. (vor Maßnahme)]]),0, VLOOKUP(Risikoregister[[#This Row],[Auswirkung Kosten qual. (vor Maßnahme)]],Tab_Auswirkung[],6,FALSE) ), IF(ISBLANK(Risikoregister[[#This Row],[Auswirkung Termine qual. (vor Maßnahme)]]),0, VLOOKUP(Risikoregister[[#This Row],[Auswirkung Termine qual. (vor Maßnahme)]],Tab_Auswirkung[],6,FALSE) ), IF(ISBLANK(Risikoregister[[#This Row],[Auswirkung Leistung qual. (vor Maßnahme)]]),0, VLOOKUP(Risikoregister[[#This Row],[Auswirkung Leistung qual. (vor Maßnahme)]],Tab_Auswirkung[],6,FALSE) ), ) -> 0 | AT22: =MAX( IF(ISBLANK(Risikoregister[[#This Row],[Auswirkung Kosten (nach Maßnahme)]]),0, VLOOKUP(Risikoregister[[#This Row],[Auswirkung Kosten (nach Maßnahme)]],Tab_Auswirkung[],6,FALSE) ), IF(ISBLANK(Risikoregister[[#This Row],[Auswirkung Termine (nach Maßnahme)]]),0, VLOOKUP(Risikoregister[[#This Row],[Auswirkung Termine (nach Maßnahme)]],Tab_Auswirkung[],6,FALSE) ), IF(ISBLANK(Risikoregister[[#This Row],[Auswirkung Leistung (nach Maßnahme)]]),0, VLOOKUP(Risikoregister[[#This Row],[Auswirkung Leistung (nach Maßnahme)]],Tab_Auswirkung[],6,FALSE) ), ) -> 0 | AU22: =MAX( IF(ISBLANK(Risikoregister[[#This Row],[Auswirkung Kosten qual. (vor Maßnahme)]]),0, VLOOKUP(Risikoregister[[#This Row],[Auswirkung Kosten qual. (vor Maßnahme)]],Tab_Auswirkung[],5,FALSE) ), IF(ISBLANK(Risikoregister[[#This Row],[Auswirkung Termine qual. (vor Maßnahme)]]),0, VLOOKUP(Risikoregister[[#This Row],[Auswirkung Termine qual. (vor Maßnahme)]],Tab_Auswirkung[],5,FALSE) ), IF(ISBLANK(Risikoregister[[#This Row],[Auswirkung Leistung qual. (vor Maßnahme)]]),0, VLOOKUP(Risikoregister[[#This Row],[Auswirkung Leistung qual. (vor Maßnahme)]],Tab_Auswirkung[],5,FALSE) ), ) -> 0 | AV22: =MAX( IF(ISBLANK(Risikoregister[[#This Row],[Auswirkung Kosten (nach Maßnahme)]]),0, VLOOKUP(Risikoregister[[#This Row],[Auswirkung Kosten (nach Maßnahme)]],Tab_Auswirkung[],5,FALSE) ), IF(ISBLANK(Risikoregister[[#This Row],[Auswirkung Termine (nach Maßnahme)]]),0, VLOOKUP(Risikoregister[[#This Row],[Auswirkung Termine (nach Maßnahme)]],Tab_Auswirkung[],5,FALSE) ), IF(ISBLANK(Risikoregister[[#This Row],[Auswirkung Leistung (nach Maßnahme)]]),0, VLOOKUP(Risikoregister[[#This Row],[Auswirkung Leistung (nach Maßnahme)]],Tab_Auswirkung[],5,FALSE) ), ) -> 0 | AW22: =IF(Risikoregister[[#This Row],[A. num Portfolio Hilfswert (vor Maßnahme)]]=0,#N/A,Risikoregister[[#This Row],[A. num Portfolio Hilfswert (vor Maßnahme)]]+Versatz_Portfolio) ->  | AX22: =IFERROR(VLOOKUP(Risikoregister[[#This Row],[Wahrscheinlichkeit* (nach Maßnahme)]],Tab_Wahrscheinlichkeit[],5,FALSE)+Versatz_Portfolio,#N/A) ->  | AY22: =IF(Risikoregister[[#This Row],[A. num Portfolio Hilfswert (nach Maßnahme)]]=0,#N/A,Risikoregister[[#This Row],[A. num Portfolio Hilfswert (nach Maßnahme)]]+Versatz_Portfolio) ->  | AZ22: =IF(Risikoregister[[#This Row],[Maßnahmen-Status]]=Planung!$W$9,Risikoregister[[#This Row],[W. num (nach Maßnahme)]],Risikoregister[[#This Row],[W. num Portfolio (vor Maßnahme)]]) ->  | BA22: =IF(Risikoregister[[#This Row],[Maßnahmen-Status]]=Planung!$W$9,Risikoregister[[#This Row],[A. num (nach Maßnahme)2]],Risikoregister[[#This Row],[A. num Portfolio (vor Maßnahme)]]) ->  | BC22: =VLOOKUP(Risikoregister[[#This Row],[Zeitraum von]],Zeiträume[],2,FALSE) ->  | BD22: =IF(ISBLANK(Risikoregister[[#This Row],[Zeitraum bis]]),Risikoregister[[#This Row],[Zeitraum von num]],VLOOKUP(Risikoregister[[#This Row],[Zeitraum bis]],Zeiträume[],2,FALSE)) ->  | BE22: =IFERROR(IF(AND(Risikoregister[[#This Row],[Zeitraum von num]]<=1,1<=Risikoregister[[#This Row],[Zeitraum bis num]]),Risikoregister[[#This Row],[Risikowert (in Punkten)]],0),"") ->  | BF22: =IFERROR(IF(AND(Risikoregister[[#This Row],[Zeitraum von num]]<=2,2<=Risikoregister[[#This Row],[Zeitraum bis num]]),Risikoregister[[#This Row],[Risikowert (in Punkten)]],0),"") ->  | BG22: =IFERROR(IF(AND(Risikoregister[[#This Row],[Zeitraum von num]]<=3,3<=Risikoregister[[#This Row],[Zeitraum bis num]]),Risikoregister[[#This Row],[Risikowert (in Punkten)]],0),"") ->  | BH22: =IFERROR(IF(AND(Risikoregister[[#This Row],[Zeitraum von num]]<=4,4<=Risikoregister[[#This Row],[Zeitraum bis num]]),Risikoregister[[#This Row],[Risikowert (in Punkten)]],0),"") ->  | BI22: =IFERROR(IF(AND(Risikoregister[[#This Row],[Zeitraum von num]]<=5,5<=Risikoregister[[#This Row],[Zeitraum bis num]]),Risikoregister[[#This Row],[Risikowert (in Punkten)]],0),"") ->  | BJ22: =IFERROR(IF(AND(Risikoregister[[#This Row],[Zeitraum von num]]<=6,6<=Risikoregister[[#This Row],[Zeitraum bis num]]),Risikoregister[[#This Row],[Risikowert (in Punkten)]],0),"") ->  | BK22: =IFERROR(IF(AND(Risikoregister[[#This Row],[Zeitraum von num]]<=7,7<=Risikoregister[[#This Row],[Zeitraum bis num]]),Risikoregister[[#This Row],[Risikowert (in Punkten)]],0),"") ->  | BL22: =IFERROR(IF(AND(Risikoregister[[#This Row],[Zeitraum von num]]<=8,8<=Risikoregister[[#This Row],[Zeitraum bis num]]),Risikoregister[[#This Row],[Risikowert (in Punkten)]],0),"") ->  | BM22: =IFERROR(IF(AND(Risikoregister[[#This Row],[Zeitraum von num]]<=9,9<=Risikoregister[[#This Row],[Zeitraum bis num]]),Risikoregister[[#This Row],[Risikowert (in Punkten)]],0),"") -> 
S23: =IFERROR(Risikoregister[[#This Row],[W. num (vor Maßnahme)]]*Risikoregister[[#This Row],[A. num (vor Maßnahme)]],#N/A) ->  | Y23: =IFERROR(Risikoregister[[#This Row],[Wahrscheinlichkeit quant. (vor Maßnahme)]]*Risikoregister[[#This Row],[Auswirkung Kosten quant.]],#N/A) -> 0 | AI23: =IFERROR(VLOOKUP(Risikoregister[[#This Row],[Wahrscheinlichkeit* (nach Maßnahme)]],Tab_Wahrscheinlichkeit[],7,0)*Risikoregister[[#This Row],[A. num (nach Maßnahme)]],#N/A) ->  | AJ23: =IFERROR(VLOOKUP(Risikoregister[[#This Row],[Wahrscheinlichkeit* (nach Maßnahme)]],Tab_Wahrscheinlichkeit[],6,0)*Risikoregister[[#This Row],[Auswirkung Kosten quant.]],#N/A) ->  | AQ23: =IFERROR(VLOOKUP(Risikoregister[[#This Row],[Wahrscheinlichkeit qual. (vor Maßnahme)]],Tab_Wahrscheinlichkeit[],7,FALSE),#N/A) ->  | AR23: =IFERROR(VLOOKUP(Risikoregister[[#This Row],[Wahrscheinlichkeit qual. (vor Maßnahme)]],Tab_Wahrscheinlichkeit[],5,FALSE)+Versatz_Portfolio,#N/A) ->  | AS23: =MAX( IF(ISBLANK(Risikoregister[[#This Row],[Auswirkung Kosten qual. (vor Maßnahme)]]),0, VLOOKUP(Risikoregister[[#This Row],[Auswirkung Kosten qual. (vor Maßnahme)]],Tab_Auswirkung[],6,FALSE) ), IF(ISBLANK(Risikoregister[[#This Row],[Auswirkung Termine qual. (vor Maßnahme)]]),0, VLOOKUP(Risikoregister[[#This Row],[Auswirkung Termine qual. (vor Maßnahme)]],Tab_Auswirkung[],6,FALSE) ), IF(ISBLANK(Risikoregister[[#This Row],[Auswirkung Leistung qual. (vor Maßnahme)]]),0, VLOOKUP(Risikoregister[[#This Row],[Auswirkung Leistung qual. (vor Maßnahme)]],Tab_Auswirkung[],6,FALSE) ), ) -> 0 | AT23: =MAX( IF(ISBLANK(Risikoregister[[#This Row],[Auswirkung Kosten (nach Maßnahme)]]),0, VLOOKUP(Risikoregister[[#This Row],[Auswirkung Kosten (nach Maßnahme)]],Tab_Auswirkung[],6,FALSE) ), IF(ISBLANK(Risikoregister[[#This Row],[Auswirkung Termine (nach Maßnahme)]]),0, VLOOKUP(Risikoregister[[#This Row],[Auswirkung Termine (nach Maßnahme)]],Tab_Auswirkung[],6,FALSE) ), IF(ISBLANK(Risikoregister[[#This Row],[Auswirkung Leistung (nach Maßnahme)]]),0, VLOOKUP(Risikoregister[[#This Row],[Auswirkung Leistung (nach Maßnahme)]],Tab_Auswirkung[],6,FALSE) ), ) -> 0 | AU23: =MAX( IF(ISBLANK(Risikoregister[[#This Row],[Auswirkung Kosten qual. (vor Maßnahme)]]),0, VLOOKUP(Risikoregister[[#This Row],[Auswirkung Kosten qual. (vor Maßnahme)]],Tab_Auswirkung[],5,FALSE) ), IF(ISBLANK(Risikoregister[[#This Row],[Auswirkung Termine qual. (vor Maßnahme)]]),0, VLOOKUP(Risikoregister[[#This Row],[Auswirkung Termine qual. (vor Maßnahme)]],Tab_Auswirkung[],5,FALSE) ), IF(ISBLANK(Risikoregister[[#This Row],[Auswirkung Leistung qual. (vor Maßnahme)]]),0, VLOOKUP(Risikoregister[[#This Row],[Auswirkung Leistung qual. (vor Maßnahme)]],Tab_Auswirkung[],5,FALSE) ), ) -> 0 | AV23: =MAX( IF(ISBLANK(Risikoregister[[#This Row],[Auswirkung Kosten (nach Maßnahme)]]),0, VLOOKUP(Risikoregister[[#This Row],[Auswirkung Kosten (nach Maßnahme)]],Tab_Auswirkung[],5,FALSE) ), IF(ISBLANK(Risikoregister[[#This Row],[Auswirkung Termine (nach Maßnahme)]]),0, VLOOKUP(Risikoregister[[#This Row],[Auswirkung Termine (nach Maßnahme)]],Tab_Auswirkung[],5,FALSE) ), IF(ISBLANK(Risikoregister[[#This Row],[Auswirkung Leistung (nach Maßnahme)]]),0, VLOOKUP(Risikoregister[[#This Row],[Auswirkung Leistung (nach Maßnahme)]],Tab_Auswirkung[],5,FALSE) ), ) -> 0 | AW23: =IF(Risikoregister[[#This Row],[A. num Portfolio Hilfswert (vor Maßnahme)]]=0,#N/A,Risikoregister[[#This Row],[A. num Portfolio Hilfswert (vor Maßnahme)]]+Versatz_Portfolio) ->  | AX23: =IFERROR(VLOOKUP(Risikoregister[[#This Row],[Wahrscheinlichkeit* (nach Maßnahme)]],Tab_Wahrscheinlichkeit[],5,FALSE)+Versatz_Portfolio,#N/A) ->  | AY23: =IF(Risikoregister[[#This Row],[A. num Portfolio Hilfswert (nach Maßnahme)]]=0,#N/A,Risikoregister[[#This Row],[A. num Portfolio Hilfswert (nach Maßnahme)]]+Versatz_Portfolio) ->  | AZ23: =IF(Risikoregister[[#This Row],[Maßnahmen-Status]]=Planung!$W$9,Risikoregister[[#This Row],[W. num (nach Maßnahme)]],Risikoregister[[#This Row],[W. num Portfolio (vor Maßnahme)]]) ->  | BA23: =IF(Risikoregister[[#This Row],[Maßnahmen-Status]]=Planung!$W$9,Risikoregister[[#This Row],[A. num (nach Maßnahme)2]],Risikoregister[[#This Row],[A. num Portfolio (vor Maßnahme)]]) ->  | BC23: =VLOOKUP(Risikoregister[[#This Row],[Zeitraum von]],Zeiträume[],2,FALSE) ->  | BD23: =IF(ISBLANK(Risikoregister[[#This Row],[Zeitraum bis]]),Risikoregister[[#This Row],[Zeitraum von num]],VLOOKUP(Risikoregister[[#This Row],[Zeitraum bis]],Zeiträume[],2,FALSE)) ->  | BE23: =IFERROR(IF(AND(Risikoregister[[#This Row],[Zeitraum von num]]<=1,1<=Risikoregister[[#This Row],[Zeitraum bis num]]),Risikoregister[[#This Row],[Risikowert (in Punkten)]],0),"") ->  | BF23: =IFERROR(IF(AND(Risikoregister[[#This Row],[Zeitraum von num]]<=2,2<=Risikoregister[[#This Row],[Zeitraum bis num]]),Risikoregister[[#This Row],[Risikowert (in Punkten)]],0),"") ->  | BG23: =IFERROR(IF(AND(Risikoregister[[#This Row],[Zeitraum von num]]<=3,3<=Risikoregister[[#This Row],[Zeitraum bis num]]),Risikoregister[[#This Row],[Risikowert (in Punkten)]],0),"") ->  | BH23: =IFERROR(IF(AND(Risikoregister[[#This Row],[Zeitraum von num]]<=4,4<=Risikoregister[[#This Row],[Zeitraum bis num]]),Risikoregister[[#This Row],[Risikowert (in Punkten)]],0),"") ->  | BI23: =IFERROR(IF(AND(Risikoregister[[#This Row],[Zeitraum von num]]<=5,5<=Risikoregister[[#This Row],[Zeitraum bis num]]),Risikoregister[[#This Row],[Risikowert (in Punkten)]],0),"") ->  | BJ23: =IFERROR(IF(AND(Risikoregister[[#This Row],[Zeitraum von num]]<=6,6<=Risikoregister[[#This Row],[Zeitraum bis num]]),Risikoregister[[#This Row],[Risikowert (in Punkten)]],0),"") ->  | BK23: =IFERROR(IF(AND(Risikoregister[[#This Row],[Zeitraum von num]]<=7,7<=Risikoregister[[#This Row],[Zeitraum bis num]]),Risikoregister[[#This Row],[Risikowert (in Punkten)]],0),"") ->  | BL23: =IFERROR(IF(AND(Risikoregister[[#This Row],[Zeitraum von num]]<=8,8<=Risikoregister[[#This Row],[Zeitraum bis num]]),Risikoregister[[#This Row],[Risikowert (in Punkten)]],0),"") ->  | BM23: =IFERROR(IF(AND(Risikoregister[[#This Row],[Zeitraum von num]]<=9,9<=Risikoregister[[#This Row],[Zeitraum bis num]]),Risikoregister[[#This Row],[Risikowert (in Punkten)]],0),"") -> 
S24: =IFERROR(Risikoregister[[#This Row],[W. num (vor Maßnahme)]]*Risikoregister[[#This Row],[A. num (vor Maßnahme)]],#N/A) ->  | Y24: =IFERROR(Risikoregister[[#This Row],[Wahrscheinlichkeit quant. (vor Maßnahme)]]*Risikoregister[[#This Row],[Auswirkung Kosten quant.]],#N/A) -> 0 | AI24: =IFERROR(VLOOKUP(Risikoregister[[#This Row],[Wahrscheinlichkeit* (nach Maßnahme)]],Tab_Wahrscheinlichkeit[],7,0)*Risikoregister[[#This Row],[A. num (nach Maßnahme)]],#N/A) ->  | AJ24: =IFERROR(VLOOKUP(Risikoregister[[#This Row],[Wahrscheinlichkeit* (nach Maßnahme)]],Tab_Wahrscheinlichkeit[],6,0)*Risikoregister[[#This Row],[Auswirkung Kosten quant.]],#N/A) ->  | AQ24: =IFERROR(VLOOKUP(Risikoregister[[#This Row],[Wahrscheinlichkeit qual. (vor Maßnahme)]],Tab_Wahrscheinlichkeit[],7,FALSE),#N/A) ->  | AR24: =IFERROR(VLOOKUP(Risikoregister[[#This Row],[Wahrscheinlichkeit qual. (vor Maßnahme)]],Tab_Wahrscheinlichkeit[],5,FALSE)+Versatz_Portfolio,#N/A) ->  | AS24: =MAX( IF(ISBLANK(Risikoregister[[#This Row],[Auswirkung Kosten qual. (vor Maßnahme)]]),0, VLOOKUP(Risikoregister[[#This Row],[Auswirkung Kosten qual. (vor Maßnahme)]],Tab_Auswirkung[],6,FALSE) ), IF(ISBLANK(Risikoregister[[#This Row],[Auswirkung Termine qual. (vor Maßnahme)]]),0, VLOOKUP(Risikoregister[[#This Row],[Auswirkung Termine qual. (vor Maßnahme)]],Tab_Auswirkung[],6,FALSE) ), IF(ISBLANK(Risikoregister[[#This Row],[Auswirkung Leistung qual. (vor Maßnahme)]]),0, VLOOKUP(Risikoregister[[#This Row],[Auswirkung Leistung qual. (vor Maßnahme)]],Tab_Auswirkung[],6,FALSE) ), ) -> 0 | AT24: =MAX( IF(ISBLANK(Risikoregister[[#This Row],[Auswirkung Kosten (nach Maßnahme)]]),0, VLOOKUP(Risikoregister[[#This Row],[Auswirkung Kosten (nach Maßnahme)]],Tab_Auswirkung[],6,FALSE) ), IF(ISBLANK(Risikoregister[[#This Row],[Auswirkung Termine (nach Maßnahme)]]),0, VLOOKUP(Risikoregister[[#This Row],[Auswirkung Termine (nach Maßnahme)]],Tab_Auswirkung[],6,FALSE) ), IF(ISBLANK(Risikoregister[[#This Row],[Auswirkung Leistung (nach Maßnahme)]]),0, VLOOKUP(Risikoregister[[#This Row],[Auswirkung Leistung (nach Maßnahme)]],Tab_Auswirkung[],6,FALSE) ), ) -> 0 | AU24: =MAX( IF(ISBLANK(Risikoregister[[#This Row],[Auswirkung Kosten qual. (vor Maßnahme)]]),0, VLOOKUP(Risikoregister[[#This Row],[Auswirkung Kosten qual. (vor Maßnahme)]],Tab_Auswirkung[],5,FALSE) ), IF(ISBLANK(Risikoregister[[#This Row],[Auswirkung Termine qual. (vor Maßnahme)]]),0, VLOOKUP(Risikoregister[[#This Row],[Auswirkung Termine qual. (vor Maßnahme)]],Tab_Auswirkung[],5,FALSE) ), IF(ISBLANK(Risikoregister[[#This Row],[Auswirkung Leistung qual. (vor Maßnahme)]]),0, VLOOKUP(Risikoregister[[#This Row],[Auswirkung Leistung qual. (vor Maßnahme)]],Tab_Auswirkung[],5,FALSE) ), ) -> 0 | AV24: =MAX( IF(ISBLANK(Risikoregister[[#This Row],[Auswirkung Kosten (nach Maßnahme)]]),0, VLOOKUP(Risikoregister[[#This Row],[Auswirkung Kosten (nach Maßnahme)]],Tab_Auswirkung[],5,FALSE) ), IF(ISBLANK(Risikoregister[[#This Row],[Auswirkung Termine (nach Maßnahme)]]),0, VLOOKUP(Risikoregister[[#This Row],[Auswirkung Termine (nach Maßnahme)]],Tab_Auswirkung[],5,FALSE) ), IF(ISBLANK(Risikoregister[[#This Row],[Auswirkung Leistung (nach Maßnahme)]]),0, VLOOKUP(Risikoregister[[#This Row],[Auswirkung Leistung (nach Maßnahme)]],Tab_Auswirkung[],5,FALSE) ), ) -> 0 | AW24: =IF(Risikoregister[[#This Row],[A. num Portfolio Hilfswert (vor Maßnahme)]]=0,#N/A,Risikoregister[[#This Row],[A. num Portfolio Hilfswert (vor Maßnahme)]]+Versatz_Portfolio) ->  | AX24: =IFERROR(VLOOKUP(Risikoregister[[#This Row],[Wahrscheinlichkeit* (nach Maßnahme)]],Tab_Wahrscheinlichkeit[],5,FALSE)+Versatz_Portfolio,#N/A) ->  | AY24: =IF(Risikoregister[[#This Row],[A. num Portfolio Hilfswert (nach Maßnahme)]]=0,#N/A,Risikoregister[[#This Row],[A. num Portfolio Hilfswert (nach Maßnahme)]]+Versatz_Portfolio) ->  | AZ24: =IF(Risikoregister[[#This Row],[Maßnahmen-Status]]=Planung!$W$9,Risikoregister[[#This Row],[W. num (nach Maßnahme)]],Risikoregister[[#This Row],[W. num Portfolio (vor Maßnahme)]]) ->  | BA24: =IF(Risikoregister[[#This Row],[Maßnahmen-Status]]=Planung!$W$9,Risikoregister[[#This Row],[A. num (nach Maßnahme)2]],Risikoregister[[#This Row],[A. num Portfolio (vor Maßnahme)]]) ->  | BC24: =VLOOKUP(Risikoregister[[#This Row],[Zeitraum von]],Zeiträume[],2,FALSE) ->  | BD24: =IF(ISBLANK(Risikoregister[[#This Row],[Zeitraum bis]]),Risikoregister[[#This Row],[Zeitraum von num]],VLOOKUP(Risikoregister[[#This Row],[Zeitraum bis]],Zeiträume[],2,FALSE)) ->  | BE24: =IFERROR(IF(AND(Risikoregister[[#This Row],[Zeitraum von num]]<=1,1<=Risikoregister[[#This Row],[Zeitraum bis num]]),Risikoregister[[#This Row],[Risikowert (in Punkten)]],0),"") ->  | BF24: =IFERROR(IF(AND(Risikoregister[[#This Row],[Zeitraum von num]]<=2,2<=Risikoregister[[#This Row],[Zeitraum bis num]]),Risikoregister[[#This Row],[Risikowert (in Punkten)]],0),"") ->  | BG24: =IFERROR(IF(AND(Risikoregister[[#This Row],[Zeitraum von num]]<=3,3<=Risikoregister[[#This Row],[Zeitraum bis num]]),Risikoregister[[#This Row],[Risikowert (in Punkten)]],0),"") ->  | BH24: =IFERROR(IF(AND(Risikoregister[[#This Row],[Zeitraum von num]]<=4,4<=Risikoregister[[#This Row],[Zeitraum bis num]]),Risikoregister[[#This Row],[Risikowert (in Punkten)]],0),"") ->  | BI24: =IFERROR(IF(AND(Risikoregister[[#This Row],[Zeitraum von num]]<=5,5<=Risikoregister[[#This Row],[Zeitraum bis num]]),Risikoregister[[#This Row],[Risikowert (in Punkten)]],0),"") ->  | BJ24: =IFERROR(IF(AND(Risikoregister[[#This Row],[Zeitraum von num]]<=6,6<=Risikoregister[[#This Row],[Zeitraum bis num]]),Risikoregister[[#This Row],[Risikowert (in Punkten)]],0),"") ->  | BK24: =IFERROR(IF(AND(Risikoregister[[#This Row],[Zeitraum von num]]<=7,7<=Risikoregister[[#This Row],[Zeitraum bis num]]),Risikoregister[[#This Row],[Risikowert (in Punkten)]],0),"") ->  | BL24: =IFERROR(IF(AND(Risikoregister[[#This Row],[Zeitraum von num]]<=8,8<=Risikoregister[[#This Row],[Zeitraum bis num]]),Risikoregister[[#This Row],[Risikowert (in Punkten)]],0),"") ->  | BM24: =IFERROR(IF(AND(Risikoregister[[#This Row],[Zeitraum von num]]<=9,9<=Risikoregister[[#This Row],[Zeitraum bis num]]),Risikoregister[[#This Row],[Risikowert (in Punkten)]],0),"") -> 
S25: =IFERROR(Risikoregister[[#This Row],[W. num (vor Maßnahme)]]*Risikoregister[[#This Row],[A. num (vor Maßnahme)]],#N/A) ->  | Y25: =IFERROR(Risikoregister[[#This Row],[Wahrscheinlichkeit quant. (vor Maßnahme)]]*Risikoregister[[#This Row],[Auswirkung Kosten quant.]],#N/A) -> 0 | AI25: =IFERROR(VLOOKUP(Risikoregister[[#This Row],[Wahrscheinlichkeit* (nach Maßnahme)]],Tab_Wahrscheinlichkeit[],7,0)*Risikoregister[[#This Row],[A. num (nach Maßnahme)]],#N/A) ->  | AJ25: =IFERROR(VLOOKUP(Risikoregister[[#This Row],[Wahrscheinlichkeit* (nach Maßnahme)]],Tab_Wahrscheinlichkeit[],6,0)*Risikoregister[[#This Row],[Auswirkung Kosten quant.]],#N/A) ->  | AQ25: =IFERROR(VLOOKUP(Risikoregister[[#This Row],[Wahrscheinlichkeit qual. (vor Maßnahme)]],Tab_Wahrscheinlichkeit[],7,FALSE),#N/A) ->  | AR25: =IFERROR(VLOOKUP(Risikoregister[[#This Row],[Wahrscheinlichkeit qual. (vor Maßnahme)]],Tab_Wahrscheinlichkeit[],5,FALSE)+Versatz_Portfolio,#N/A) ->  | AS25: =MAX( IF(ISBLANK(Risikoregister[[#This Row],[Auswirkung Kosten qual. (vor Maßnahme)]]),0, VLOOKUP(Risikoregister[[#This Row],[Auswirkung Kosten qual. (vor Maßnahme)]],Tab_Auswirkung[],6,FALSE) ), IF(ISBLANK(Risikoregister[[#This Row],[Auswirkung Termine qual. (vor Maßnahme)]]),0, VLOOKUP(Risikoregister[[#This Row],[Auswirkung Termine qual. (vor Maßnahme)]],Tab_Auswirkung[],6,FALSE) ), IF(ISBLANK(Risikoregister[[#This Row],[Auswirkung Leistung qual. (vor Maßnahme)]]),0, VLOOKUP(Risikoregister[[#This Row],[Auswirkung Leistung qual. (vor Maßnahme)]],Tab_Auswirkung[],6,FALSE) ), ) -> 0 | AT25: =MAX( IF(ISBLANK(Risikoregister[[#This Row],[Auswirkung Kosten (nach Maßnahme)]]),0, VLOOKUP(Risikoregister[[#This Row],[Auswirkung Kosten (nach Maßnahme)]],Tab_Auswirkung[],6,FALSE) ), IF(ISBLANK(Risikoregister[[#This Row],[Auswirkung Termine (nach Maßnahme)]]),0, VLOOKUP(Risikoregister[[#This Row],[Auswirkung Termine (nach Maßnahme)]],Tab_Auswirkung[],6,FALSE) ), IF(ISBLANK(Risikoregister[[#This Row],[Auswirkung Leistung (nach Maßnahme)]]),0, VLOOKUP(Risikoregister[[#This Row],[Auswirkung Leistung (nach Maßnahme)]],Tab_Auswirkung[],6,FALSE) ), ) -> 0 | AU25: =MAX( IF(ISBLANK(Risikoregister[[#This Row],[Auswirkung Kosten qual. (vor Maßnahme)]]),0, VLOOKUP(Risikoregister[[#This Row],[Auswirkung Kosten qual. (vor Maßnahme)]],Tab_Auswirkung[],5,FALSE) ), IF(ISBLANK(Risikoregister[[#This Row],[Auswirkung Termine qual. (vor Maßnahme)]]),0, VLOOKUP(Risikoregister[[#This Row],[Auswirkung Termine qual. (vor Maßnahme)]],Tab_Auswirkung[],5,FALSE) ), IF(ISBLANK(Risikoregister[[#This Row],[Auswirkung Leistung qual. (vor Maßnahme)]]),0, VLOOKUP(Risikoregister[[#This Row],[Auswirkung Leistung qual. (vor Maßnahme)]],Tab_Auswirkung[],5,FALSE) ), ) -> 0 | AV25: =MAX( IF(ISBLANK(Risikoregister[[#This Row],[Auswirkung Kosten (nach Maßnahme)]]),0, VLOOKUP(Risikoregister[[#This Row],[Auswirkung Kosten (nach Maßnahme)]],Tab_Auswirkung[],5,FALSE) ), IF(ISBLANK(Risikoregister[[#This Row],[Auswirkung Termine (nach Maßnahme)]]),0, VLOOKUP(Risikoregister[[#This Row],[Auswirkung Termine (nach Maßnahme)]],Tab_Auswirkung[],5,FALSE) ), IF(ISBLANK(Risikoregister[[#This Row],[Auswirkung Leistung (nach Maßnahme)]]),0, VLOOKUP(Risikoregister[[#This Row],[Auswirkung Leistung (nach Maßnahme)]],Tab_Auswirkung[],5,FALSE) ), ) -> 0 | AW25: =IF(Risikoregister[[#This Row],[A. num Portfolio Hilfswert (vor Maßnahme)]]=0,#N/A,Risikoregister[[#This Row],[A. num Portfolio Hilfswert (vor Maßnahme)]]+Versatz_Portfolio) ->  | AX25: =IFERROR(VLOOKUP(Risikoregister[[#This Row],[Wahrscheinlichkeit* (nach Maßnahme)]],Tab_Wahrscheinlichkeit[],5,FALSE)+Versatz_Portfolio,#N/A) ->  | AY25: =IF(Risikoregister[[#This Row],[A. num Portfolio Hilfswert (nach Maßnahme)]]=0,#N/A,Risikoregister[[#This Row],[A. num Portfolio Hilfswert (nach Maßnahme)]]+Versatz_Portfolio) ->  | AZ25: =IF(Risikoregister[[#This Row],[Maßnahmen-Status]]=Planung!$W$9,Risikoregister[[#This Row],[W. num (nach Maßnahme)]],Risikoregister[[#This Row],[W. num Portfolio (vor Maßnahme)]]) ->  | BA25: =IF(Risikoregister[[#This Row],[Maßnahmen-Status]]=Planung!$W$9,Risikoregister[[#This Row],[A. num (nach Maßnahme)2]],Risikoregister[[#This Row],[A. num Portfolio (vor Maßnahme)]]) ->  | BC25: =VLOOKUP(Risikoregister[[#This Row],[Zeitraum von]],Zeiträume[],2,FALSE) ->  | BD25: =IF(ISBLANK(Risikoregister[[#This Row],[Zeitraum bis]]),Risikoregister[[#This Row],[Zeitraum von num]],VLOOKUP(Risikoregister[[#This Row],[Zeitraum bis]],Zeiträume[],2,FALSE)) ->  | BE25: =IFERROR(IF(AND(Risikoregister[[#This Row],[Zeitraum von num]]<=1,1<=Risikoregister[[#This Row],[Zeitraum bis num]]),Risikoregister[[#This Row],[Risikowert (in Punkten)]],0),"") ->  | BF25: =IFERROR(IF(AND(Risikoregister[[#This Row],[Zeitraum von num]]<=2,2<=Risikoregister[[#This Row],[Zeitraum bis num]]),Risikoregister[[#This Row],[Risikowert (in Punkten)]],0),"") ->  | BG25: =IFERROR(IF(AND(Risikoregister[[#This Row],[Zeitraum von num]]<=3,3<=Risikoregister[[#This Row],[Zeitraum bis num]]),Risikoregister[[#This Row],[Risikowert (in Punkten)]],0),"") ->  | BH25: =IFERROR(IF(AND(Risikoregister[[#This Row],[Zeitraum von num]]<=4,4<=Risikoregister[[#This Row],[Zeitraum bis num]]),Risikoregister[[#This Row],[Risikowert (in Punkten)]],0),"") ->  | BI25: =IFERROR(IF(AND(Risikoregister[[#This Row],[Zeitraum von num]]<=5,5<=Risikoregister[[#This Row],[Zeitraum bis num]]),Risikoregister[[#This Row],[Risikowert (in Punkten)]],0),"") ->  | BJ25: =IFERROR(IF(AND(Risikoregister[[#This Row],[Zeitraum von num]]<=6,6<=Risikoregister[[#This Row],[Zeitraum bis num]]),Risikoregister[[#This Row],[Risikowert (in Punkten)]],0),"") ->  | BK25: =IFERROR(IF(AND(Risikoregister[[#This Row],[Zeitraum von num]]<=7,7<=Risikoregister[[#This Row],[Zeitraum bis num]]),Risikoregister[[#This Row],[Risikowert (in Punkten)]],0),"") ->  | BL25: =IFERROR(IF(AND(Risikoregister[[#This Row],[Zeitraum von num]]<=8,8<=Risikoregister[[#This Row],[Zeitraum bis num]]),Risikoregister[[#This Row],[Risikowert (in Punkten)]],0),"") ->  | BM25: =IFERROR(IF(AND(Risikoregister[[#This Row],[Zeitraum von num]]<=9,9<=Risikoregister[[#This Row],[Zeitraum bis num]]),Risikoregister[[#This Row],[Risikowert (in Punkten)]],0),"") -> 
S26: =IFERROR(Risikoregister[[#This Row],[W. num (vor Maßnahme)]]*Risikoregister[[#This Row],[A. num (vor Maßnahme)]],#N/A) ->  | Y26: =IFERROR(Risikoregister[[#This Row],[Wahrscheinlichkeit quant. (vor Maßnahme)]]*Risikoregister[[#This Row],[Auswirkung Kosten quant.]],#N/A) -> 0 | AI26: =IFERROR(VLOOKUP(Risikoregister[[#This Row],[Wahrscheinlichkeit* (nach Maßnahme)]],Tab_Wahrscheinlichkeit[],7,0)*Risikoregister[[#This Row],[A. num (nach Maßnahme)]],#N/A) ->  | AJ26: =IFERROR(VLOOKUP(Risikoregister[[#This Row],[Wahrscheinlichkeit* (nach Maßnahme)]],Tab_Wahrscheinlichkeit[],6,0)*Risikoregister[[#This Row],[Auswirkung Kosten quant.]],#N/A) ->  | AQ26: =IFERROR(VLOOKUP(Risikoregister[[#This Row],[Wahrscheinlichkeit qual. (vor Maßnahme)]],Tab_Wahrscheinlichkeit[],7,FALSE),#N/A) ->  | AR26: =IFERROR(VLOOKUP(Risikoregister[[#This Row],[Wahrscheinlichkeit qual. (vor Maßnahme)]],Tab_Wahrscheinlichkeit[],5,FALSE)+Versatz_Portfolio,#N/A) ->  | AS26: =MAX( IF(ISBLANK(Risikoregister[[#This Row],[Auswirkung Kosten qual. (vor Maßnahme)]]),0, VLOOKUP(Risikoregister[[#This Row],[Auswirkung Kosten qual. (vor Maßnahme)]],Tab_Auswirkung[],6,FALSE) ), IF(ISBLANK(Risikoregister[[#This Row],[Auswirkung Termine qual. (vor Maßnahme)]]),0, VLOOKUP(Risikoregister[[#This Row],[Auswirkung Termine qual. (vor Maßnahme)]],Tab_Auswirkung[],6,FALSE) ), IF(ISBLANK(Risikoregister[[#This Row],[Auswirkung Leistung qual. (vor Maßnahme)]]),0, VLOOKUP(Risikoregister[[#This Row],[Auswirkung Leistung qual. (vor Maßnahme)]],Tab_Auswirkung[],6,FALSE) ), ) -> 0 | AT26: =MAX( IF(ISBLANK(Risikoregister[[#This Row],[Auswirkung Kosten (nach Maßnahme)]]),0, VLOOKUP(Risikoregister[[#This Row],[Auswirkung Kosten (nach Maßnahme)]],Tab_Auswirkung[],6,FALSE) ), IF(ISBLANK(Risikoregister[[#This Row],[Auswirkung Termine (nach Maßnahme)]]),0, VLOOKUP(Risikoregister[[#This Row],[Auswirkung Termine (nach Maßnahme)]],Tab_Auswirkung[],6,FALSE) ), IF(ISBLANK(Risikoregister[[#This Row],[Auswirkung Leistung (nach Maßnahme)]]),0, VLOOKUP(Risikoregister[[#This Row],[Auswirkung Leistung (nach Maßnahme)]],Tab_Auswirkung[],6,FALSE) ), ) -> 0 | AU26: =MAX( IF(ISBLANK(Risikoregister[[#This Row],[Auswirkung Kosten qual. (vor Maßnahme)]]),0, VLOOKUP(Risikoregister[[#This Row],[Auswirkung Kosten qual. (vor Maßnahme)]],Tab_Auswirkung[],5,FALSE) ), IF(ISBLANK(Risikoregister[[#This Row],[Auswirkung Termine qual. (vor Maßnahme)]]),0, VLOOKUP(Risikoregister[[#This Row],[Auswirkung Termine qual. (vor Maßnahme)]],Tab_Auswirkung[],5,FALSE) ), IF(ISBLANK(Risikoregister[[#This Row],[Auswirkung Leistung qual. (vor Maßnahme)]]),0, VLOOKUP(Risikoregister[[#This Row],[Auswirkung Leistung qual. (vor Maßnahme)]],Tab_Auswirkung[],5,FALSE) ), ) -> 0 | AV26: =MAX( IF(ISBLANK(Risikoregister[[#This Row],[Auswirkung Kosten (nach Maßnahme)]]),0, VLOOKUP(Risikoregister[[#This Row],[Auswirkung Kosten (nach Maßnahme)]],Tab_Auswirkung[],5,FALSE) ), IF(ISBLANK(Risikoregister[[#This Row],[Auswirkung Termine (nach Maßnahme)]]),0, VLOOKUP(Risikoregister[[#This Row],[Auswirkung Termine (nach Maßnahme)]],Tab_Auswirkung[],5,FALSE) ), IF(ISBLANK(Risikoregister[[#This Row],[Auswirkung Leistung (nach Maßnahme)]]),0, VLOOKUP(Risikoregister[[#This Row],[Auswirkung Leistung (nach Maßnahme)]],Tab_Auswirkung[],5,FALSE) ), ) -> 0 | AW26: =IF(Risikoregister[[#This Row],[A. num Portfolio Hilfswert (vor Maßnahme)]]=0,#N/A,Risikoregister[[#This Row],[A. num Portfolio Hilfswert (vor Maßnahme)]]+Versatz_Portfolio) ->  | AX26: =IFERROR(VLOOKUP(Risikoregister[[#This Row],[Wahrscheinlichkeit* (nach Maßnahme)]],Tab_Wahrscheinlichkeit[],5,FALSE)+Versatz_Portfolio,#N/A) ->  | AY26: =IF(Risikoregister[[#This Row],[A. num Portfolio Hilfswert (nach Maßnahme)]]=0,#N/A,Risikoregister[[#This Row],[A. num Portfolio Hilfswert (nach Maßnahme)]]+Versatz_Portfolio) ->  | AZ26: =IF(Risikoregister[[#This Row],[Maßnahmen-Status]]=Planung!$W$9,Risikoregister[[#This Row],[W. num (nach Maßnahme)]],Risikoregister[[#This Row],[W. num Portfolio (vor Maßnahme)]]) ->  | BA26: =IF(Risikoregister[[#This Row],[Maßnahmen-Status]]=Planung!$W$9,Risikoregister[[#This Row],[A. num (nach Maßnahme)2]],Risikoregister[[#This Row],[A. num Portfolio (vor Maßnahme)]]) ->  | BC26: =VLOOKUP(Risikoregister[[#This Row],[Zeitraum von]],Zeiträume[],2,FALSE) ->  | BD26: =IF(ISBLANK(Risikoregister[[#This Row],[Zeitraum bis]]),Risikoregister[[#This Row],[Zeitraum von num]],VLOOKUP(Risikoregister[[#This Row],[Zeitraum bis]],Zeiträume[],2,FALSE)) ->  | BE26: =IFERROR(IF(AND(Risikoregister[[#This Row],[Zeitraum von num]]<=1,1<=Risikoregister[[#This Row],[Zeitraum bis num]]),Risikoregister[[#This Row],[Risikowert (in Punkten)]],0),"") ->  | BF26: =IFERROR(IF(AND(Risikoregister[[#This Row],[Zeitraum von num]]<=2,2<=Risikoregister[[#This Row],[Zeitraum bis num]]),Risikoregister[[#This Row],[Risikowert (in Punkten)]],0),"") ->  | BG26: =IFERROR(IF(AND(Risikoregister[[#This Row],[Zeitraum von num]]<=3,3<=Risikoregister[[#This Row],[Zeitraum bis num]]),Risikoregister[[#This Row],[Risikowert (in Punkten)]],0),"") ->  | BH26: =IFERROR(IF(AND(Risikoregister[[#This Row],[Zeitraum von num]]<=4,4<=Risikoregister[[#This Row],[Zeitraum bis num]]),Risikoregister[[#This Row],[Risikowert (in Punkten)]],0),"") ->  | BI26: =IFERROR(IF(AND(Risikoregister[[#This Row],[Zeitraum von num]]<=5,5<=Risikoregister[[#This Row],[Zeitraum bis num]]),Risikoregister[[#This Row],[Risikowert (in Punkten)]],0),"") ->  | BJ26: =IFERROR(IF(AND(Risikoregister[[#This Row],[Zeitraum von num]]<=6,6<=Risikoregister[[#This Row],[Zeitraum bis num]]),Risikoregister[[#This Row],[Risikowert (in Punkten)]],0),"") ->  | BK26: =IFERROR(IF(AND(Risikoregister[[#This Row],[Zeitraum von num]]<=7,7<=Risikoregister[[#This Row],[Zeitraum bis num]]),Risikoregister[[#This Row],[Risikowert (in Punkten)]],0),"") ->  | BL26: =IFERROR(IF(AND(Risikoregister[[#This Row],[Zeitraum von num]]<=8,8<=Risikoregister[[#This Row],[Zeitraum bis num]]),Risikoregister[[#This Row],[Risikowert (in Punkten)]],0),"") ->  | BM26: =IFERROR(IF(AND(Risikoregister[[#This Row],[Zeitraum von num]]<=9,9<=Risikoregister[[#This Row],[Zeitraum bis num]]),Risikoregister[[#This Row],[Risikowert (in Punkten)]],0),"") -> 
S27: =IFERROR(Risikoregister[[#This Row],[W. num (vor Maßnahme)]]*Risikoregister[[#This Row],[A. num (vor Maßnahme)]],#N/A) ->  | Y27: =IFERROR(Risikoregister[[#This Row],[Wahrscheinlichkeit quant. (vor Maßnahme)]]*Risikoregister[[#This Row],[Auswirkung Kosten quant.]],#N/A) -> 0 | AI27: =IFERROR(VLOOKUP(Risikoregister[[#This Row],[Wahrscheinlichkeit* (nach Maßnahme)]],Tab_Wahrscheinlichkeit[],7,0)*Risikoregister[[#This Row],[A. num (nach Maßnahme)]],#N/A) ->  | AJ27: =IFERROR(VLOOKUP(Risikoregister[[#This Row],[Wahrscheinlichkeit* (nach Maßnahme)]],Tab_Wahrscheinlichkeit[],6,0)*Risikoregister[[#This Row],[Auswirkung Kosten quant.]],#N/A) ->  | AQ27: =IFERROR(VLOOKUP(Risikoregister[[#This Row],[Wahrscheinlichkeit qual. (vor Maßnahme)]],Tab_Wahrscheinlichkeit[],7,FALSE),#N/A) ->  | AR27: =IFERROR(VLOOKUP(Risikoregister[[#This Row],[Wahrscheinlichkeit qual. (vor Maßnahme)]],Tab_Wahrscheinlichkeit[],5,FALSE)+Versatz_Portfolio,#N/A) ->  | AS27: =MAX( IF(ISBLANK(Risikoregister[[#This Row],[Auswirkung Kosten qual. (vor Maßnahme)]]),0, VLOOKUP(Risikoregister[[#This Row],[Auswirkung Kosten qual. (vor Maßnahme)]],Tab_Auswirkung[],6,FALSE) ), IF(ISBLANK(Risikoregister[[#This Row],[Auswirkung Termine qual. (vor Maßnahme)]]),0, VLOOKUP(Risikoregister[[#This Row],[Auswirkung Termine qual. (vor Maßnahme)]],Tab_Auswirkung[],6,FALSE) ), IF(ISBLANK(Risikoregister[[#This Row],[Auswirkung Leistung qual. (vor Maßnahme)]]),0, VLOOKUP(Risikoregister[[#This Row],[Auswirkung Leistung qual. (vor Maßnahme)]],Tab_Auswirkung[],6,FALSE) ), ) -> 0 | AT27: =MAX( IF(ISBLANK(Risikoregister[[#This Row],[Auswirkung Kosten (nach Maßnahme)]]),0, VLOOKUP(Risikoregister[[#This Row],[Auswirkung Kosten (nach Maßnahme)]],Tab_Auswirkung[],6,FALSE) ), IF(ISBLANK(Risikoregister[[#This Row],[Auswirkung Termine (nach Maßnahme)]]),0, VLOOKUP(Risikoregister[[#This Row],[Auswirkung Termine (nach Maßnahme)]],Tab_Auswirkung[],6,FALSE) ), IF(ISBLANK(Risikoregister[[#This Row],[Auswirkung Leistung (nach Maßnahme)]]),0, VLOOKUP(Risikoregister[[#This Row],[Auswirkung Leistung (nach Maßnahme)]],Tab_Auswirkung[],6,FALSE) ), ) -> 0 | AU27: =MAX( IF(ISBLANK(Risikoregister[[#This Row],[Auswirkung Kosten qual. (vor Maßnahme)]]),0, VLOOKUP(Risikoregister[[#This Row],[Auswirkung Kosten qual. (vor Maßnahme)]],Tab_Auswirkung[],5,FALSE) ), IF(ISBLANK(Risikoregister[[#This Row],[Auswirkung Termine qual. (vor Maßnahme)]]),0, VLOOKUP(Risikoregister[[#This Row],[Auswirkung Termine qual. (vor Maßnahme)]],Tab_Auswirkung[],5,FALSE) ), IF(ISBLANK(Risikoregister[[#This Row],[Auswirkung Leistung qual. (vor Maßnahme)]]),0, VLOOKUP(Risikoregister[[#This Row],[Auswirkung Leistung qual. (vor Maßnahme)]],Tab_Auswirkung[],5,FALSE) ), ) -> 0 | AV27: =MAX( IF(ISBLANK(Risikoregister[[#This Row],[Auswirkung Kosten (nach Maßnahme)]]),0, VLOOKUP(Risikoregister[[#This Row],[Auswirkung Kosten (nach Maßnahme)]],Tab_Auswirkung[],5,FALSE) ), IF(ISBLANK(Risikoregister[[#This Row],[Auswirkung Termine (nach Maßnahme)]]),0, VLOOKUP(Risikoregister[[#This Row],[Auswirkung Termine (nach Maßnahme)]],Tab_Auswirkung[],5,FALSE) ), IF(ISBLANK(Risikoregister[[#This Row],[Auswirkung Leistung (nach Maßnahme)]]),0, VLOOKUP(Risikoregister[[#This Row],[Auswirkung Leistung (nach Maßnahme)]],Tab_Auswirkung[],5,FALSE) ), ) -> 0 | AW27: =IF(Risikoregister[[#This Row],[A. num Portfolio Hilfswert (vor Maßnahme)]]=0,#N/A,Risikoregister[[#This Row],[A. num Portfolio Hilfswert (vor Maßnahme)]]+Versatz_Portfolio) ->  | AX27: =IFERROR(VLOOKUP(Risikoregister[[#This Row],[Wahrscheinlichkeit* (nach Maßnahme)]],Tab_Wahrscheinlichkeit[],5,FALSE)+Versatz_Portfolio,#N/A) ->  | AY27: =IF(Risikoregister[[#This Row],[A. num Portfolio Hilfswert (nach Maßnahme)]]=0,#N/A,Risikoregister[[#This Row],[A. num Portfolio Hilfswert (nach Maßnahme)]]+Versatz_Portfolio) ->  | AZ27: =IF(Risikoregister[[#This Row],[Maßnahmen-Status]]=Planung!$W$9,Risikoregister[[#This Row],[W. num (nach Maßnahme)]],Risikoregister[[#This Row],[W. num Portfolio (vor Maßnahme)]]) ->  | BA27: =IF(Risikoregister[[#This Row],[Maßnahmen-Status]]=Planung!$W$9,Risikoregister[[#This Row],[A. num (nach Maßnahme)2]],Risikoregister[[#This Row],[A. num Portfolio (vor Maßnahme)]]) ->  | BC27: =VLOOKUP(Risikoregister[[#This Row],[Zeitraum von]],Zeiträume[],2,FALSE) ->  | BD27: =IF(ISBLANK(Risikoregister[[#This Row],[Zeitraum bis]]),Risikoregister[[#This Row],[Zeitraum von num]],VLOOKUP(Risikoregister[[#This Row],[Zeitraum bis]],Zeiträume[],2,FALSE)) ->  | BE27: =IFERROR(IF(AND(Risikoregister[[#This Row],[Zeitraum von num]]<=1,1<=Risikoregister[[#This Row],[Zeitraum bis num]]),Risikoregister[[#This Row],[Risikowert (in Punkten)]],0),"") ->  | BF27: =IFERROR(IF(AND(Risikoregister[[#This Row],[Zeitraum von num]]<=2,2<=Risikoregister[[#This Row],[Zeitraum bis num]]),Risikoregister[[#This Row],[Risikowert (in Punkten)]],0),"") ->  | BG27: =IFERROR(IF(AND(Risikoregister[[#This Row],[Zeitraum von num]]<=3,3<=Risikoregister[[#This Row],[Zeitraum bis num]]),Risikoregister[[#This Row],[Risikowert (in Punkten)]],0),"") ->  | BH27: =IFERROR(IF(AND(Risikoregister[[#This Row],[Zeitraum von num]]<=4,4<=Risikoregister[[#This Row],[Zeitraum bis num]]),Risikoregister[[#This Row],[Risikowert (in Punkten)]],0),"") ->  | BI27: =IFERROR(IF(AND(Risikoregister[[#This Row],[Zeitraum von num]]<=5,5<=Risikoregister[[#This Row],[Zeitraum bis num]]),Risikoregister[[#This Row],[Risikowert (in Punkten)]],0),"") ->  | BJ27: =IFERROR(IF(AND(Risikoregister[[#This Row],[Zeitraum von num]]<=6,6<=Risikoregister[[#This Row],[Zeitraum bis num]]),Risikoregister[[#This Row],[Risikowert (in Punkten)]],0),"") ->  | BK27: =IFERROR(IF(AND(Risikoregister[[#This Row],[Zeitraum von num]]<=7,7<=Risikoregister[[#This Row],[Zeitraum bis num]]),Risikoregister[[#This Row],[Risikowert (in Punkten)]],0),"") ->  | BL27: =IFERROR(IF(AND(Risikoregister[[#This Row],[Zeitraum von num]]<=8,8<=Risikoregister[[#This Row],[Zeitraum bis num]]),Risikoregister[[#This Row],[Risikowert (in Punkten)]],0),"") ->  | BM27: =IFERROR(IF(AND(Risikoregister[[#This Row],[Zeitraum von num]]<=9,9<=Risikoregister[[#This Row],[Zeitraum bis num]]),Risikoregister[[#This Row],[Risikowert (in Punkten)]],0),"") -> 
S28: =IFERROR(Risikoregister[[#This Row],[W. num (vor Maßnahme)]]*Risikoregister[[#This Row],[A. num (vor Maßnahme)]],#N/A) ->  | Y28: =IFERROR(Risikoregister[[#This Row],[Wahrscheinlichkeit quant. (vor Maßnahme)]]*Risikoregister[[#This Row],[Auswirkung Kosten quant.]],#N/A) -> 0 | AI28: =IFERROR(VLOOKUP(Risikoregister[[#This Row],[Wahrscheinlichkeit* (nach Maßnahme)]],Tab_Wahrscheinlichkeit[],7,0)*Risikoregister[[#This Row],[A. num (nach Maßnahme)]],#N/A) ->  | AJ28: =IFERROR(VLOOKUP(Risikoregister[[#This Row],[Wahrscheinlichkeit* (nach Maßnahme)]],Tab_Wahrscheinlichkeit[],6,0)*Risikoregister[[#This Row],[Auswirkung Kosten quant.]],#N/A) ->  | AQ28: =IFERROR(VLOOKUP(Risikoregister[[#This Row],[Wahrscheinlichkeit qual. (vor Maßnahme)]],Tab_Wahrscheinlichkeit[],7,FALSE),#N/A) ->  | AR28: =IFERROR(VLOOKUP(Risikoregister[[#This Row],[Wahrscheinlichkeit qual. (vor Maßnahme)]],Tab_Wahrscheinlichkeit[],5,FALSE)+Versatz_Portfolio,#N/A) ->  | AS28: =MAX( IF(ISBLANK(Risikoregister[[#This Row],[Auswirkung Kosten qual. (vor Maßnahme)]]),0, VLOOKUP(Risikoregister[[#This Row],[Auswirkung Kosten qual. (vor Maßnahme)]],Tab_Auswirkung[],6,FALSE) ), IF(ISBLANK(Risikoregister[[#This Row],[Auswirkung Termine qual. (vor Maßnahme)]]),0, VLOOKUP(Risikoregister[[#This Row],[Auswirkung Termine qual. (vor Maßnahme)]],Tab_Auswirkung[],6,FALSE) ), IF(ISBLANK(Risikoregister[[#This Row],[Auswirkung Leistung qual. (vor Maßnahme)]]),0, VLOOKUP(Risikoregister[[#This Row],[Auswirkung Leistung qual. (vor Maßnahme)]],Tab_Auswirkung[],6,FALSE) ), ) -> 0 | AT28: =MAX( IF(ISBLANK(Risikoregister[[#This Row],[Auswirkung Kosten (nach Maßnahme)]]),0, VLOOKUP(Risikoregister[[#This Row],[Auswirkung Kosten (nach Maßnahme)]],Tab_Auswirkung[],6,FALSE) ), IF(ISBLANK(Risikoregister[[#This Row],[Auswirkung Termine (nach Maßnahme)]]),0, VLOOKUP(Risikoregister[[#This Row],[Auswirkung Termine (nach Maßnahme)]],Tab_Auswirkung[],6,FALSE) ), IF(ISBLANK(Risikoregister[[#This Row],[Auswirkung Leistung (nach Maßnahme)]]),0, VLOOKUP(Risikoregister[[#This Row],[Auswirkung Leistung (nach Maßnahme)]],Tab_Auswirkung[],6,FALSE) ), ) -> 0 | AU28: =MAX( IF(ISBLANK(Risikoregister[[#This Row],[Auswirkung Kosten qual. (vor Maßnahme)]]),0, VLOOKUP(Risikoregister[[#This Row],[Auswirkung Kosten qual. (vor Maßnahme)]],Tab_Auswirkung[],5,FALSE) ), IF(ISBLANK(Risikoregister[[#This Row],[Auswirkung Termine qual. (vor Maßnahme)]]),0, VLOOKUP(Risikoregister[[#This Row],[Auswirkung Termine qual. (vor Maßnahme)]],Tab_Auswirkung[],5,FALSE) ), IF(ISBLANK(Risikoregister[[#This Row],[Auswirkung Leistung qual. (vor Maßnahme)]]),0, VLOOKUP(Risikoregister[[#This Row],[Auswirkung Leistung qual. (vor Maßnahme)]],Tab_Auswirkung[],5,FALSE) ), ) -> 0 | AV28: =MAX( IF(ISBLANK(Risikoregister[[#This Row],[Auswirkung Kosten (nach Maßnahme)]]),0, VLOOKUP(Risikoregister[[#This Row],[Auswirkung Kosten (nach Maßnahme)]],Tab_Auswirkung[],5,FALSE) ), IF(ISBLANK(Risikoregister[[#This Row],[Auswirkung Termine (nach Maßnahme)]]),0, VLOOKUP(Risikoregister[[#This Row],[Auswirkung Termine (nach Maßnahme)]],Tab_Auswirkung[],5,FALSE) ), IF(ISBLANK(Risikoregister[[#This Row],[Auswirkung Leistung (nach Maßnahme)]]),0, VLOOKUP(Risikoregister[[#This Row],[Auswirkung Leistung (nach Maßnahme)]],Tab_Auswirkung[],5,FALSE) ), ) -> 0 | AW28: =IF(Risikoregister[[#This Row],[A. num Portfolio Hilfswert (vor Maßnahme)]]=0,#N/A,Risikoregister[[#This Row],[A. num Portfolio Hilfswert (vor Maßnahme)]]+Versatz_Portfolio) ->  | AX28: =IFERROR(VLOOKUP(Risikoregister[[#This Row],[Wahrscheinlichkeit* (nach Maßnahme)]],Tab_Wahrscheinlichkeit[],5,FALSE)+Versatz_Portfolio,#N/A) ->  | AY28: =IF(Risikoregister[[#This Row],[A. num Portfolio Hilfswert (nach Maßnahme)]]=0,#N/A,Risikoregister[[#This Row],[A. num Portfolio Hilfswert (nach Maßnahme)]]+Versatz_Portfolio) ->  | AZ28: =IF(Risikoregister[[#This Row],[Maßnahmen-Status]]=Planung!$W$9,Risikoregister[[#This Row],[W. num (nach Maßnahme)]],Risikoregister[[#This Row],[W. num Portfolio (vor Maßnahme)]]) ->  | BA28: =IF(Risikoregister[[#This Row],[Maßnahmen-Status]]=Planung!$W$9,Risikoregister[[#This Row],[A. num (nach Maßnahme)2]],Risikoregister[[#This Row],[A. num Portfolio (vor Maßnahme)]]) ->  | BC28: =VLOOKUP(Risikoregister[[#This Row],[Zeitraum von]],Zeiträume[],2,FALSE) ->  | BD28: =IF(ISBLANK(Risikoregister[[#This Row],[Zeitraum bis]]),Risikoregister[[#This Row],[Zeitraum von num]],VLOOKUP(Risikoregister[[#This Row],[Zeitraum bis]],Zeiträume[],2,FALSE)) ->  | BE28: =IFERROR(IF(AND(Risikoregister[[#This Row],[Zeitraum von num]]<=1,1<=Risikoregister[[#This Row],[Zeitraum bis num]]),Risikoregister[[#This Row],[Risikowert (in Punkten)]],0),"") ->  | BF28: =IFERROR(IF(AND(Risikoregister[[#This Row],[Zeitraum von num]]<=2,2<=Risikoregister[[#This Row],[Zeitraum bis num]]),Risikoregister[[#This Row],[Risikowert (in Punkten)]],0),"") ->  | BG28: =IFERROR(IF(AND(Risikoregister[[#This Row],[Zeitraum von num]]<=3,3<=Risikoregister[[#This Row],[Zeitraum bis num]]),Risikoregister[[#This Row],[Risikowert (in Punkten)]],0),"") ->  | BH28: =IFERROR(IF(AND(Risikoregister[[#This Row],[Zeitraum von num]]<=4,4<=Risikoregister[[#This Row],[Zeitraum bis num]]),Risikoregister[[#This Row],[Risikowert (in Punkten)]],0),"") ->  | BI28: =IFERROR(IF(AND(Risikoregister[[#This Row],[Zeitraum von num]]<=5,5<=Risikoregister[[#This Row],[Zeitraum bis num]]),Risikoregister[[#This Row],[Risikowert (in Punkten)]],0),"") ->  | BJ28: =IFERROR(IF(AND(Risikoregister[[#This Row],[Zeitraum von num]]<=6,6<=Risikoregister[[#This Row],[Zeitraum bis num]]),Risikoregister[[#This Row],[Risikowert (in Punkten)]],0),"") ->  | BK28: =IFERROR(IF(AND(Risikoregister[[#This Row],[Zeitraum von num]]<=7,7<=Risikoregister[[#This Row],[Zeitraum bis num]]),Risikoregister[[#This Row],[Risikowert (in Punkten)]],0),"") ->  | BL28: =IFERROR(IF(AND(Risikoregister[[#This Row],[Zeitraum von num]]<=8,8<=Risikoregister[[#This Row],[Zeitraum bis num]]),Risikoregister[[#This Row],[Risikowert (in Punkten)]],0),"") ->  | BM28: =IFERROR(IF(AND(Risikoregister[[#This Row],[Zeitraum von num]]<=9,9<=Risikoregister[[#This Row],[Zeitraum bis num]]),Risikoregister[[#This Row],[Risikowert (in Punkten)]],0),"") -> 
S29: =IFERROR(Risikoregister[[#This Row],[W. num (vor Maßnahme)]]*Risikoregister[[#This Row],[A. num (vor Maßnahme)]],#N/A) ->  | Y29: =IFERROR(Risikoregister[[#This Row],[Wahrscheinlichkeit quant. (vor Maßnahme)]]*Risikoregister[[#This Row],[Auswirkung Kosten quant.]],#N/A) -> 0 | AI29: =IFERROR(VLOOKUP(Risikoregister[[#This Row],[Wahrscheinlichkeit* (nach Maßnahme)]],Tab_Wahrscheinlichkeit[],7,0)*Risikoregister[[#This Row],[A. num (nach Maßnahme)]],#N/A) ->  | AJ29: =IFERROR(VLOOKUP(Risikoregister[[#This Row],[Wahrscheinlichkeit* (nach Maßnahme)]],Tab_Wahrscheinlichkeit[],6,0)*Risikoregister[[#This Row],[Auswirkung Kosten quant.]],#N/A) ->  | AQ29: =IFERROR(VLOOKUP(Risikoregister[[#This Row],[Wahrscheinlichkeit qual. (vor Maßnahme)]],Tab_Wahrscheinlichkeit[],7,FALSE),#N/A) ->  | AR29: =IFERROR(VLOOKUP(Risikoregister[[#This Row],[Wahrscheinlichkeit qual. (vor Maßnahme)]],Tab_Wahrscheinlichkeit[],5,FALSE)+Versatz_Portfolio,#N/A) ->  | AS29: =MAX( IF(ISBLANK(Risikoregister[[#This Row],[Auswirkung Kosten qual. (vor Maßnahme)]]),0, VLOOKUP(Risikoregister[[#This Row],[Auswirkung Kosten qual. (vor Maßnahme)]],Tab_Auswirkung[],6,FALSE) ), IF(ISBLANK(Risikoregister[[#This Row],[Auswirkung Termine qual. (vor Maßnahme)]]),0, VLOOKUP(Risikoregister[[#This Row],[Auswirkung Termine qual. (vor Maßnahme)]],Tab_Auswirkung[],6,FALSE) ), IF(ISBLANK(Risikoregister[[#This Row],[Auswirkung Leistung qual. (vor Maßnahme)]]),0, VLOOKUP(Risikoregister[[#This Row],[Auswirkung Leistung qual. (vor Maßnahme)]],Tab_Auswirkung[],6,FALSE) ), ) -> 0 | AT29: =MAX( IF(ISBLANK(Risikoregister[[#This Row],[Auswirkung Kosten (nach Maßnahme)]]),0, VLOOKUP(Risikoregister[[#This Row],[Auswirkung Kosten (nach Maßnahme)]],Tab_Auswirkung[],6,FALSE) ), IF(ISBLANK(Risikoregister[[#This Row],[Auswirkung Termine (nach Maßnahme)]]),0, VLOOKUP(Risikoregister[[#This Row],[Auswirkung Termine (nach Maßnahme)]],Tab_Auswirkung[],6,FALSE) ), IF(ISBLANK(Risikoregister[[#This Row],[Auswirkung Leistung (nach Maßnahme)]]),0, VLOOKUP(Risikoregister[[#This Row],[Auswirkung Leistung (nach Maßnahme)]],Tab_Auswirkung[],6,FALSE) ), ) -> 0 | AU29: =MAX( IF(ISBLANK(Risikoregister[[#This Row],[Auswirkung Kosten qual. (vor Maßnahme)]]),0, VLOOKUP(Risikoregister[[#This Row],[Auswirkung Kosten qual. (vor Maßnahme)]],Tab_Auswirkung[],5,FALSE) ), IF(ISBLANK(Risikoregister[[#This Row],[Auswirkung Termine qual. (vor Maßnahme)]]),0, VLOOKUP(Risikoregister[[#This Row],[Auswirkung Termine qual. (vor Maßnahme)]],Tab_Auswirkung[],5,FALSE) ), IF(ISBLANK(Risikoregister[[#This Row],[Auswirkung Leistung qual. (vor Maßnahme)]]),0, VLOOKUP(Risikoregister[[#This Row],[Auswirkung Leistung qual. (vor Maßnahme)]],Tab_Auswirkung[],5,FALSE) ), ) -> 0 | AV29: =MAX( IF(ISBLANK(Risikoregister[[#This Row],[Auswirkung Kosten (nach Maßnahme)]]),0, VLOOKUP(Risikoregister[[#This Row],[Auswirkung Kosten (nach Maßnahme)]],Tab_Auswirkung[],5,FALSE) ), IF(ISBLANK(Risikoregister[[#This Row],[Auswirkung Termine (nach Maßnahme)]]),0, VLOOKUP(Risikoregister[[#This Row],[Auswirkung Termine (nach Maßnahme)]],Tab_Auswirkung[],5,FALSE) ), IF(ISBLANK(Risikoregister[[#This Row],[Auswirkung Leistung (nach Maßnahme)]]),0, VLOOKUP(Risikoregister[[#This Row],[Auswirkung Leistung (nach Maßnahme)]],Tab_Auswirkung[],5,FALSE) ), ) -> 0 | AW29: =IF(Risikoregister[[#This Row],[A. num Portfolio Hilfswert (vor Maßnahme)]]=0,#N/A,Risikoregister[[#This Row],[A. num Portfolio Hilfswert (vor Maßnahme)]]+Versatz_Portfolio) ->  | AX29: =IFERROR(VLOOKUP(Risikoregister[[#This Row],[Wahrscheinlichkeit* (nach Maßnahme)]],Tab_Wahrscheinlichkeit[],5,FALSE)+Versatz_Portfolio,#N/A) ->  | AY29: =IF(Risikoregister[[#This Row],[A. num Portfolio Hilfswert (nach Maßnahme)]]=0,#N/A,Risikoregister[[#This Row],[A. num Portfolio Hilfswert (nach Maßnahme)]]+Versatz_Portfolio) ->  | AZ29: =IF(Risikoregister[[#This Row],[Maßnahmen-Status]]=Planung!$W$9,Risikoregister[[#This Row],[W. num (nach Maßnahme)]],Risikoregister[[#This Row],[W. num Portfolio (vor Maßnahme)]]) ->  | BA29: =IF(Risikoregister[[#This Row],[Maßnahmen-Status]]=Planung!$W$9,Risikoregister[[#This Row],[A. num (nach Maßnahme)2]],Risikoregister[[#This Row],[A. num Portfolio (vor Maßnahme)]]) ->  | BC29: =VLOOKUP(Risikoregister[[#This Row],[Zeitraum von]],Zeiträume[],2,FALSE) ->  | BD29: =IF(ISBLANK(Risikoregister[[#This Row],[Zeitraum bis]]),Risikoregister[[#This Row],[Zeitraum von num]],VLOOKUP(Risikoregister[[#This Row],[Zeitraum bis]],Zeiträume[],2,FALSE)) ->  | BE29: =IFERROR(IF(AND(Risikoregister[[#This Row],[Zeitraum von num]]<=1,1<=Risikoregister[[#This Row],[Zeitraum bis num]]),Risikoregister[[#This Row],[Risikowert (in Punkten)]],0),"") ->  | BF29: =IFERROR(IF(AND(Risikoregister[[#This Row],[Zeitraum von num]]<=2,2<=Risikoregister[[#This Row],[Zeitraum bis num]]),Risikoregister[[#This Row],[Risikowert (in Punkten)]],0),"") ->  | BG29: =IFERROR(IF(AND(Risikoregister[[#This Row],[Zeitraum von num]]<=3,3<=Risikoregister[[#This Row],[Zeitraum bis num]]),Risikoregister[[#This Row],[Risikowert (in Punkten)]],0),"") ->  | BH29: =IFERROR(IF(AND(Risikoregister[[#This Row],[Zeitraum von num]]<=4,4<=Risikoregister[[#This Row],[Zeitraum bis num]]),Risikoregister[[#This Row],[Risikowert (in Punkten)]],0),"") ->  | BI29: =IFERROR(IF(AND(Risikoregister[[#This Row],[Zeitraum von num]]<=5,5<=Risikoregister[[#This Row],[Zeitraum bis num]]),Risikoregister[[#This Row],[Risikowert (in Punkten)]],0),"") ->  | BJ29: =IFERROR(IF(AND(Risikoregister[[#This Row],[Zeitraum von num]]<=6,6<=Risikoregister[[#This Row],[Zeitraum bis num]]),Risikoregister[[#This Row],[Risikowert (in Punkten)]],0),"") ->  | BK29: =IFERROR(IF(AND(Risikoregister[[#This Row],[Zeitraum von num]]<=7,7<=Risikoregister[[#This Row],[Zeitraum bis num]]),Risikoregister[[#This Row],[Risikowert (in Punkten)]],0),"") ->  | BL29: =IFERROR(IF(AND(Risikoregister[[#This Row],[Zeitraum von num]]<=8,8<=Risikoregister[[#This Row],[Zeitraum bis num]]),Risikoregister[[#This Row],[Risikowert (in Punkten)]],0),"") ->  | BM29: =IFERROR(IF(AND(Risikoregister[[#This Row],[Zeitraum von num]]<=9,9<=Risikoregister[[#This Row],[Zeitraum bis num]]),Risikoregister[[#This Row],[Risikowert (in Punkten)]],0),"") -> 
S30: =IFERROR(Risikoregister[[#This Row],[W. num (vor Maßnahme)]]*Risikoregister[[#This Row],[A. num (vor Maßnahme)]],#N/A) ->  | Y30: =IFERROR(Risikoregister[[#This Row],[Wahrscheinlichkeit quant. (vor Maßnahme)]]*Risikoregister[[#This Row],[Auswirkung Kosten quant.]],#N/A) -> 0 | AI30: =IFERROR(VLOOKUP(Risikoregister[[#This Row],[Wahrscheinlichkeit* (nach Maßnahme)]],Tab_Wahrscheinlichkeit[],7,0)*Risikoregister[[#This Row],[A. num (nach Maßnahme)]],#N/A) ->  | AJ30: =IFERROR(VLOOKUP(Risikoregister[[#This Row],[Wahrscheinlichkeit* (nach Maßnahme)]],Tab_Wahrscheinlichkeit[],6,0)*Risikoregister[[#This Row],[Auswirkung Kosten quant.]],#N/A) ->  | AQ30: =IFERROR(VLOOKUP(Risikoregister[[#This Row],[Wahrscheinlichkeit qual. (vor Maßnahme)]],Tab_Wahrscheinlichkeit[],7,FALSE),#N/A) ->  | AR30: =IFERROR(VLOOKUP(Risikoregister[[#This Row],[Wahrscheinlichkeit qual. (vor Maßnahme)]],Tab_Wahrscheinlichkeit[],5,FALSE)+Versatz_Portfolio,#N/A) ->  | AS30: =MAX( IF(ISBLANK(Risikoregister[[#This Row],[Auswirkung Kosten qual. (vor Maßnahme)]]),0, VLOOKUP(Risikoregister[[#This Row],[Auswirkung Kosten qual. (vor Maßnahme)]],Tab_Auswirkung[],6,FALSE) ), IF(ISBLANK(Risikoregister[[#This Row],[Auswirkung Termine qual. (vor Maßnahme)]]),0, VLOOKUP(Risikoregister[[#This Row],[Auswirkung Termine qual. (vor Maßnahme)]],Tab_Auswirkung[],6,FALSE) ), IF(ISBLANK(Risikoregister[[#This Row],[Auswirkung Leistung qual. (vor Maßnahme)]]),0, VLOOKUP(Risikoregister[[#This Row],[Auswirkung Leistung qual. (vor Maßnahme)]],Tab_Auswirkung[],6,FALSE) ), ) -> 0 | AT30: =MAX( IF(ISBLANK(Risikoregister[[#This Row],[Auswirkung Kosten (nach Maßnahme)]]),0, VLOOKUP(Risikoregister[[#This Row],[Auswirkung Kosten (nach Maßnahme)]],Tab_Auswirkung[],6,FALSE) ), IF(ISBLANK(Risikoregister[[#This Row],[Auswirkung Termine (nach Maßnahme)]]),0, VLOOKUP(Risikoregister[[#This Row],[Auswirkung Termine (nach Maßnahme)]],Tab_Auswirkung[],6,FALSE) ), IF(ISBLANK(Risikoregister[[#This Row],[Auswirkung Leistung (nach Maßnahme)]]),0, VLOOKUP(Risikoregister[[#This Row],[Auswirkung Leistung (nach Maßnahme)]],Tab_Auswirkung[],6,FALSE) ), ) -> 0 | AU30: =MAX( IF(ISBLANK(Risikoregister[[#This Row],[Auswirkung Kosten qual. (vor Maßnahme)]]),0, VLOOKUP(Risikoregister[[#This Row],[Auswirkung Kosten qual. (vor Maßnahme)]],Tab_Auswirkung[],5,FALSE) ), IF(ISBLANK(Risikoregister[[#This Row],[Auswirkung Termine qual. (vor Maßnahme)]]),0, VLOOKUP(Risikoregister[[#This Row],[Auswirkung Termine qual. (vor Maßnahme)]],Tab_Auswirkung[],5,FALSE) ), IF(ISBLANK(Risikoregister[[#This Row],[Auswirkung Leistung qual. (vor Maßnahme)]]),0, VLOOKUP(Risikoregister[[#This Row],[Auswirkung Leistung qual. (vor Maßnahme)]],Tab_Auswirkung[],5,FALSE) ), ) -> 0 | AV30: =MAX( IF(ISBLANK(Risikoregister[[#This Row],[Auswirkung Kosten (nach Maßnahme)]]),0, VLOOKUP(Risikoregister[[#This Row],[Auswirkung Kosten (nach Maßnahme)]],Tab_Auswirkung[],5,FALSE) ), IF(ISBLANK(Risikoregister[[#This Row],[Auswirkung Termine (nach Maßnahme)]]),0, VLOOKUP(Risikoregister[[#This Row],[Auswirkung Termine (nach Maßnahme)]],Tab_Auswirkung[],5,FALSE) ), IF(ISBLANK(Risikoregister[[#This Row],[Auswirkung Leistung (nach Maßnahme)]]),0, VLOOKUP(Risikoregister[[#This Row],[Auswirkung Leistung (nach Maßnahme)]],Tab_Auswirkung[],5,FALSE) ), ) -> 0 | AW30: =IF(Risikoregister[[#This Row],[A. num Portfolio Hilfswert (vor Maßnahme)]]=0,#N/A,Risikoregister[[#This Row],[A. num Portfolio Hilfswert (vor Maßnahme)]]+Versatz_Portfolio) ->  | AX30: =IFERROR(VLOOKUP(Risikoregister[[#This Row],[Wahrscheinlichkeit* (nach Maßnahme)]],Tab_Wahrscheinlichkeit[],5,FALSE)+Versatz_Portfolio,#N/A) ->  | AY30: =IF(Risikoregister[[#This Row],[A. num Portfolio Hilfswert (nach Maßnahme)]]=0,#N/A,Risikoregister[[#This Row],[A. num Portfolio Hilfswert (nach Maßnahme)]]+Versatz_Portfolio) ->  | AZ30: =IF(Risikoregister[[#This Row],[Maßnahmen-Status]]=Planung!$W$9,Risikoregister[[#This Row],[W. num (nach Maßnahme)]],Risikoregister[[#This Row],[W. num Portfolio (vor Maßnahme)]]) ->  | BA30: =IF(Risikoregister[[#This Row],[Maßnahmen-Status]]=Planung!$W$9,Risikoregister[[#This Row],[A. num (nach Maßnahme)2]],Risikoregister[[#This Row],[A. num Portfolio (vor Maßnahme)]]) ->  | BC30: =VLOOKUP(Risikoregister[[#This Row],[Zeitraum von]],Zeiträume[],2,FALSE) ->  | BD30: =IF(ISBLANK(Risikoregister[[#This Row],[Zeitraum bis]]),Risikoregister[[#This Row],[Zeitraum von num]],VLOOKUP(Risikoregister[[#This Row],[Zeitraum bis]],Zeiträume[],2,FALSE)) ->  | BE30: =IFERROR(IF(AND(Risikoregister[[#This Row],[Zeitraum von num]]<=1,1<=Risikoregister[[#This Row],[Zeitraum bis num]]),Risikoregister[[#This Row],[Risikowert (in Punkten)]],0),"") ->  | BF30: =IFERROR(IF(AND(Risikoregister[[#This Row],[Zeitraum von num]]<=2,2<=Risikoregister[[#This Row],[Zeitraum bis num]]),Risikoregister[[#This Row],[Risikowert (in Punkten)]],0),"") ->  | BG30: =IFERROR(IF(AND(Risikoregister[[#This Row],[Zeitraum von num]]<=3,3<=Risikoregister[[#This Row],[Zeitraum bis num]]),Risikoregister[[#This Row],[Risikowert (in Punkten)]],0),"") ->  | BH30: =IFERROR(IF(AND(Risikoregister[[#This Row],[Zeitraum von num]]<=4,4<=Risikoregister[[#This Row],[Zeitraum bis num]]),Risikoregister[[#This Row],[Risikowert (in Punkten)]],0),"") ->  | BI30: =IFERROR(IF(AND(Risikoregister[[#This Row],[Zeitraum von num]]<=5,5<=Risikoregister[[#This Row],[Zeitraum bis num]]),Risikoregister[[#This Row],[Risikowert (in Punkten)]],0),"") ->  | BJ30: =IFERROR(IF(AND(Risikoregister[[#This Row],[Zeitraum von num]]<=6,6<=Risikoregister[[#This Row],[Zeitraum bis num]]),Risikoregister[[#This Row],[Risikowert (in Punkten)]],0),"") ->  | BK30: =IFERROR(IF(AND(Risikoregister[[#This Row],[Zeitraum von num]]<=7,7<=Risikoregister[[#This Row],[Zeitraum bis num]]),Risikoregister[[#This Row],[Risikowert (in Punkten)]],0),"") ->  | BL30: =IFERROR(IF(AND(Risikoregister[[#This Row],[Zeitraum von num]]<=8,8<=Risikoregister[[#This Row],[Zeitraum bis num]]),Risikoregister[[#This Row],[Risikowert (in Punkten)]],0),"") ->  | BM30: =IFERROR(IF(AND(Risikoregister[[#This Row],[Zeitraum von num]]<=9,9<=Risikoregister[[#This Row],[Zeitraum bis num]]),Risikoregister[[#This Row],[Risikowert (in Punkten)]],0),"") -> 
S31: =IFERROR(Risikoregister[[#This Row],[W. num (vor Maßnahme)]]*Risikoregister[[#This Row],[A. num (vor Maßnahme)]],#N/A) ->  | Y31: =IFERROR(Risikoregister[[#This Row],[Wahrscheinlichkeit quant. (vor Maßnahme)]]*Risikoregister[[#This Row],[Auswirkung Kosten quant.]],#N/A) -> 0 | AI31: =IFERROR(VLOOKUP(Risikoregister[[#This Row],[Wahrscheinlichkeit* (nach Maßnahme)]],Tab_Wahrscheinlichkeit[],7,0)*Risikoregister[[#This Row],[A. num (nach Maßnahme)]],#N/A) ->  | AJ31: =IFERROR(VLOOKUP(Risikoregister[[#This Row],[Wahrscheinlichkeit* (nach Maßnahme)]],Tab_Wahrscheinlichkeit[],6,0)*Risikoregister[[#This Row],[Auswirkung Kosten quant.]],#N/A) ->  | AQ31: =IFERROR(VLOOKUP(Risikoregister[[#This Row],[Wahrscheinlichkeit qual. (vor Maßnahme)]],Tab_Wahrscheinlichkeit[],7,FALSE),#N/A) ->  | AR31: =IFERROR(VLOOKUP(Risikoregister[[#This Row],[Wahrscheinlichkeit qual. (vor Maßnahme)]],Tab_Wahrscheinlichkeit[],5,FALSE)+Versatz_Portfolio,#N/A) ->  | AS31: =MAX( IF(ISBLANK(Risikoregister[[#This Row],[Auswirkung Kosten qual. (vor Maßnahme)]]),0, VLOOKUP(Risikoregister[[#This Row],[Auswirkung Kosten qual. (vor Maßnahme)]],Tab_Auswirkung[],6,FALSE) ), IF(ISBLANK(Risikoregister[[#This Row],[Auswirkung Termine qual. (vor Maßnahme)]]),0, VLOOKUP(Risikoregister[[#This Row],[Auswirkung Termine qual. (vor Maßnahme)]],Tab_Auswirkung[],6,FALSE) ), IF(ISBLANK(Risikoregister[[#This Row],[Auswirkung Leistung qual. (vor Maßnahme)]]),0, VLOOKUP(Risikoregister[[#This Row],[Auswirkung Leistung qual. (vor Maßnahme)]],Tab_Auswirkung[],6,FALSE) ), ) -> 0 | AT31: =MAX( IF(ISBLANK(Risikoregister[[#This Row],[Auswirkung Kosten (nach Maßnahme)]]),0, VLOOKUP(Risikoregister[[#This Row],[Auswirkung Kosten (nach Maßnahme)]],Tab_Auswirkung[],6,FALSE) ), IF(ISBLANK(Risikoregister[[#This Row],[Auswirkung Termine (nach Maßnahme)]]),0, VLOOKUP(Risikoregister[[#This Row],[Auswirkung Termine (nach Maßnahme)]],Tab_Auswirkung[],6,FALSE) ), IF(ISBLANK(Risikoregister[[#This Row],[Auswirkung Leistung (nach Maßnahme)]]),0, VLOOKUP(Risikoregister[[#This Row],[Auswirkung Leistung (nach Maßnahme)]],Tab_Auswirkung[],6,FALSE) ), ) -> 0 | AU31: =MAX( IF(ISBLANK(Risikoregister[[#This Row],[Auswirkung Kosten qual. (vor Maßnahme)]]),0, VLOOKUP(Risikoregister[[#This Row],[Auswirkung Kosten qual. (vor Maßnahme)]],Tab_Auswirkung[],5,FALSE) ), IF(ISBLANK(Risikoregister[[#This Row],[Auswirkung Termine qual. (vor Maßnahme)]]),0, VLOOKUP(Risikoregister[[#This Row],[Auswirkung Termine qual. (vor Maßnahme)]],Tab_Auswirkung[],5,FALSE) ), IF(ISBLANK(Risikoregister[[#This Row],[Auswirkung Leistung qual. (vor Maßnahme)]]),0, VLOOKUP(Risikoregister[[#This Row],[Auswirkung Leistung qual. (vor Maßnahme)]],Tab_Auswirkung[],5,FALSE) ), ) -> 0 | AV31: =MAX( IF(ISBLANK(Risikoregister[[#This Row],[Auswirkung Kosten (nach Maßnahme)]]),0, VLOOKUP(Risikoregister[[#This Row],[Auswirkung Kosten (nach Maßnahme)]],Tab_Auswirkung[],5,FALSE) ), IF(ISBLANK(Risikoregister[[#This Row],[Auswirkung Termine (nach Maßnahme)]]),0, VLOOKUP(Risikoregister[[#This Row],[Auswirkung Termine (nach Maßnahme)]],Tab_Auswirkung[],5,FALSE) ), IF(ISBLANK(Risikoregister[[#This Row],[Auswirkung Leistung (nach Maßnahme)]]),0, VLOOKUP(Risikoregister[[#This Row],[Auswirkung Leistung (nach Maßnahme)]],Tab_Auswirkung[],5,FALSE) ), ) -> 0 | AW31: =IF(Risikoregister[[#This Row],[A. num Portfolio Hilfswert (vor Maßnahme)]]=0,#N/A,Risikoregister[[#This Row],[A. num Portfolio Hilfswert (vor Maßnahme)]]+Versatz_Portfolio) ->  | AX31: =IFERROR(VLOOKUP(Risikoregister[[#This Row],[Wahrscheinlichkeit* (nach Maßnahme)]],Tab_Wahrscheinlichkeit[],5,FALSE)+Versatz_Portfolio,#N/A) ->  | AY31: =IF(Risikoregister[[#This Row],[A. num Portfolio Hilfswert (nach Maßnahme)]]=0,#N/A,Risikoregister[[#This Row],[A. num Portfolio Hilfswert (nach Maßnahme)]]+Versatz_Portfolio) ->  | AZ31: =IF(Risikoregister[[#This Row],[Maßnahmen-Status]]=Planung!$W$9,Risikoregister[[#This Row],[W. num (nach Maßnahme)]],Risikoregister[[#This Row],[W. num Portfolio (vor Maßnahme)]]) ->  | BA31: =IF(Risikoregister[[#This Row],[Maßnahmen-Status]]=Planung!$W$9,Risikoregister[[#This Row],[A. num (nach Maßnahme)2]],Risikoregister[[#This Row],[A. num Portfolio (vor Maßnahme)]]) ->  | BC31: =VLOOKUP(Risikoregister[[#This Row],[Zeitraum von]],Zeiträume[],2,FALSE) ->  | BD31: =IF(ISBLANK(Risikoregister[[#This Row],[Zeitraum bis]]),Risikoregister[[#This Row],[Zeitraum von num]],VLOOKUP(Risikoregister[[#This Row],[Zeitraum bis]],Zeiträume[],2,FALSE)) ->  | BE31: =IFERROR(IF(AND(Risikoregister[[#This Row],[Zeitraum von num]]<=1,1<=Risikoregister[[#This Row],[Zeitraum bis num]]),Risikoregister[[#This Row],[Risikowert (in Punkten)]],0),"") ->  | BF31: =IFERROR(IF(AND(Risikoregister[[#This Row],[Zeitraum von num]]<=2,2<=Risikoregister[[#This Row],[Zeitraum bis num]]),Risikoregister[[#This Row],[Risikowert (in Punkten)]],0),"") ->  | BG31: =IFERROR(IF(AND(Risikoregister[[#This Row],[Zeitraum von num]]<=3,3<=Risikoregister[[#This Row],[Zeitraum bis num]]),Risikoregister[[#This Row],[Risikowert (in Punkten)]],0),"") ->  | BH31: =IFERROR(IF(AND(Risikoregister[[#This Row],[Zeitraum von num]]<=4,4<=Risikoregister[[#This Row],[Zeitraum bis num]]),Risikoregister[[#This Row],[Risikowert (in Punkten)]],0),"") ->  | BI31: =IFERROR(IF(AND(Risikoregister[[#This Row],[Zeitraum von num]]<=5,5<=Risikoregister[[#This Row],[Zeitraum bis num]]),Risikoregister[[#This Row],[Risikowert (in Punkten)]],0),"") ->  | BJ31: =IFERROR(IF(AND(Risikoregister[[#This Row],[Zeitraum von num]]<=6,6<=Risikoregister[[#This Row],[Zeitraum bis num]]),Risikoregister[[#This Row],[Risikowert (in Punkten)]],0),"") ->  | BK31: =IFERROR(IF(AND(Risikoregister[[#This Row],[Zeitraum von num]]<=7,7<=Risikoregister[[#This Row],[Zeitraum bis num]]),Risikoregister[[#This Row],[Risikowert (in Punkten)]],0),"") ->  | BL31: =IFERROR(IF(AND(Risikoregister[[#This Row],[Zeitraum von num]]<=8,8<=Risikoregister[[#This Row],[Zeitraum bis num]]),Risikoregister[[#This Row],[Risikowert (in Punkten)]],0),"") ->  | BM31: =IFERROR(IF(AND(Risikoregister[[#This Row],[Zeitraum von num]]<=9,9<=Risikoregister[[#This Row],[Zeitraum bis num]]),Risikoregister[[#This Row],[Risikowert (in Punkten)]],0),"") -> 
S32: =IFERROR(Risikoregister[[#This Row],[W. num (vor Maßnahme)]]*Risikoregister[[#This Row],[A. num (vor Maßnahme)]],#N/A) ->  | Y32: =IFERROR(Risikoregister[[#This Row],[Wahrscheinlichkeit quant. (vor Maßnahme)]]*Risikoregister[[#This Row],[Auswirkung Kosten quant.]],#N/A) -> 0 | AI32: =IFERROR(VLOOKUP(Risikoregister[[#This Row],[Wahrscheinlichkeit* (nach Maßnahme)]],Tab_Wahrscheinlichkeit[],7,0)*Risikoregister[[#This Row],[A. num (nach Maßnahme)]],#N/A) ->  | AJ32: =IFERROR(VLOOKUP(Risikoregister[[#This Row],[Wahrscheinlichkeit* (nach Maßnahme)]],Tab_Wahrscheinlichkeit[],6,0)*Risikoregister[[#This Row],[Auswirkung Kosten quant.]],#N/A) ->  | AQ32: =IFERROR(VLOOKUP(Risikoregister[[#This Row],[Wahrscheinlichkeit qual. (vor Maßnahme)]],Tab_Wahrscheinlichkeit[],7,FALSE),#N/A) ->  | AR32: =IFERROR(VLOOKUP(Risikoregister[[#This Row],[Wahrscheinlichkeit qual. (vor Maßnahme)]],Tab_Wahrscheinlichkeit[],5,FALSE)+Versatz_Portfolio,#N/A) ->  | AS32: =MAX( IF(ISBLANK(Risikoregister[[#This Row],[Auswirkung Kosten qual. (vor Maßnahme)]]),0, VLOOKUP(Risikoregister[[#This Row],[Auswirkung Kosten qual. (vor Maßnahme)]],Tab_Auswirkung[],6,FALSE) ), IF(ISBLANK(Risikoregister[[#This Row],[Auswirkung Termine qual. (vor Maßnahme)]]),0, VLOOKUP(Risikoregister[[#This Row],[Auswirkung Termine qual. (vor Maßnahme)]],Tab_Auswirkung[],6,FALSE) ), IF(ISBLANK(Risikoregister[[#This Row],[Auswirkung Leistung qual. (vor Maßnahme)]]),0, VLOOKUP(Risikoregister[[#This Row],[Auswirkung Leistung qual. (vor Maßnahme)]],Tab_Auswirkung[],6,FALSE) ), ) -> 0 | AT32: =MAX( IF(ISBLANK(Risikoregister[[#This Row],[Auswirkung Kosten (nach Maßnahme)]]),0, VLOOKUP(Risikoregister[[#This Row],[Auswirkung Kosten (nach Maßnahme)]],Tab_Auswirkung[],6,FALSE) ), IF(ISBLANK(Risikoregister[[#This Row],[Auswirkung Termine (nach Maßnahme)]]),0, VLOOKUP(Risikoregister[[#This Row],[Auswirkung Termine (nach Maßnahme)]],Tab_Auswirkung[],6,FALSE) ), IF(ISBLANK(Risikoregister[[#This Row],[Auswirkung Leistung (nach Maßnahme)]]),0, VLOOKUP(Risikoregister[[#This Row],[Auswirkung Leistung (nach Maßnahme)]],Tab_Auswirkung[],6,FALSE) ), ) -> 0 | AU32: =MAX( IF(ISBLANK(Risikoregister[[#This Row],[Auswirkung Kosten qual. (vor Maßnahme)]]),0, VLOOKUP(Risikoregister[[#This Row],[Auswirkung Kosten qual. (vor Maßnahme)]],Tab_Auswirkung[],5,FALSE) ), IF(ISBLANK(Risikoregister[[#This Row],[Auswirkung Termine qual. (vor Maßnahme)]]),0, VLOOKUP(Risikoregister[[#This Row],[Auswirkung Termine qual. (vor Maßnahme)]],Tab_Auswirkung[],5,FALSE) ), IF(ISBLANK(Risikoregister[[#This Row],[Auswirkung Leistung qual. (vor Maßnahme)]]),0, VLOOKUP(Risikoregister[[#This Row],[Auswirkung Leistung qual. (vor Maßnahme)]],Tab_Auswirkung[],5,FALSE) ), ) -> 0 | AV32: =MAX( IF(ISBLANK(Risikoregister[[#This Row],[Auswirkung Kosten (nach Maßnahme)]]),0, VLOOKUP(Risikoregister[[#This Row],[Auswirkung Kosten (nach Maßnahme)]],Tab_Auswirkung[],5,FALSE) ), IF(ISBLANK(Risikoregister[[#This Row],[Auswirkung Termine (nach Maßnahme)]]),0, VLOOKUP(Risikoregister[[#This Row],[Auswirkung Termine (nach Maßnahme)]],Tab_Auswirkung[],5,FALSE) ), IF(ISBLANK(Risikoregister[[#This Row],[Auswirkung Leistung (nach Maßnahme)]]),0, VLOOKUP(Risikoregister[[#This Row],[Auswirkung Leistung (nach Maßnahme)]],Tab_Auswirkung[],5,FALSE) ), ) -> 0 | AW32: =IF(Risikoregister[[#This Row],[A. num Portfolio Hilfswert (vor Maßnahme)]]=0,#N/A,Risikoregister[[#This Row],[A. num Portfolio Hilfswert (vor Maßnahme)]]+Versatz_Portfolio) ->  | AX32: =IFERROR(VLOOKUP(Risikoregister[[#This Row],[Wahrscheinlichkeit* (nach Maßnahme)]],Tab_Wahrscheinlichkeit[],5,FALSE)+Versatz_Portfolio,#N/A) ->  | AY32: =IF(Risikoregister[[#This Row],[A. num Portfolio Hilfswert (nach Maßnahme)]]=0,#N/A,Risikoregister[[#This Row],[A. num Portfolio Hilfswert (nach Maßnahme)]]+Versatz_Portfolio) ->  | AZ32: =IF(Risikoregister[[#This Row],[Maßnahmen-Status]]=Planung!$W$9,Risikoregister[[#This Row],[W. num (nach Maßnahme)]],Risikoregister[[#This Row],[W. num Portfolio (vor Maßnahme)]]) ->  | BA32: =IF(Risikoregister[[#This Row],[Maßnahmen-Status]]=Planung!$W$9,Risikoregister[[#This Row],[A. num (nach Maßnahme)2]],Risikoregister[[#This Row],[A. num Portfolio (vor Maßnahme)]]) ->  | BC32: =VLOOKUP(Risikoregister[[#This Row],[Zeitraum von]],Zeiträume[],2,FALSE) ->  | BD32: =IF(ISBLANK(Risikoregister[[#This Row],[Zeitraum bis]]),Risikoregister[[#This Row],[Zeitraum von num]],VLOOKUP(Risikoregister[[#This Row],[Zeitraum bis]],Zeiträume[],2,FALSE)) ->  | BE32: =IFERROR(IF(AND(Risikoregister[[#This Row],[Zeitraum von num]]<=1,1<=Risikoregister[[#This Row],[Zeitraum bis num]]),Risikoregister[[#This Row],[Risikowert (in Punkten)]],0),"") ->  | BF32: =IFERROR(IF(AND(Risikoregister[[#This Row],[Zeitraum von num]]<=2,2<=Risikoregister[[#This Row],[Zeitraum bis num]]),Risikoregister[[#This Row],[Risikowert (in Punkten)]],0),"") ->  | BG32: =IFERROR(IF(AND(Risikoregister[[#This Row],[Zeitraum von num]]<=3,3<=Risikoregister[[#This Row],[Zeitraum bis num]]),Risikoregister[[#This Row],[Risikowert (in Punkten)]],0),"") ->  | BH32: =IFERROR(IF(AND(Risikoregister[[#This Row],[Zeitraum von num]]<=4,4<=Risikoregister[[#This Row],[Zeitraum bis num]]),Risikoregister[[#This Row],[Risikowert (in Punkten)]],0),"") ->  | BI32: =IFERROR(IF(AND(Risikoregister[[#This Row],[Zeitraum von num]]<=5,5<=Risikoregister[[#This Row],[Zeitraum bis num]]),Risikoregister[[#This Row],[Risikowert (in Punkten)]],0),"") ->  | BJ32: =IFERROR(IF(AND(Risikoregister[[#This Row],[Zeitraum von num]]<=6,6<=Risikoregister[[#This Row],[Zeitraum bis num]]),Risikoregister[[#This Row],[Risikowert (in Punkten)]],0),"") ->  | BK32: =IFERROR(IF(AND(Risikoregister[[#This Row],[Zeitraum von num]]<=7,7<=Risikoregister[[#This Row],[Zeitraum bis num]]),Risikoregister[[#This Row],[Risikowert (in Punkten)]],0),"") ->  | BL32: =IFERROR(IF(AND(Risikoregister[[#This Row],[Zeitraum von num]]<=8,8<=Risikoregister[[#This Row],[Zeitraum bis num]]),Risikoregister[[#This Row],[Risikowert (in Punkten)]],0),"") ->  | BM32: =IFERROR(IF(AND(Risikoregister[[#This Row],[Zeitraum von num]]<=9,9<=Risikoregister[[#This Row],[Zeitraum bis num]]),Risikoregister[[#This Row],[Risikowert (in Punkten)]],0),"") -> 
S33: =IFERROR(Risikoregister[[#This Row],[W. num (vor Maßnahme)]]*Risikoregister[[#This Row],[A. num (vor Maßnahme)]],#N/A) ->  | Y33: =IFERROR(Risikoregister[[#This Row],[Wahrscheinlichkeit quant. (vor Maßnahme)]]*Risikoregister[[#This Row],[Auswirkung Kosten quant.]],#N/A) -> 0 | AI33: =IFERROR(VLOOKUP(Risikoregister[[#This Row],[Wahrscheinlichkeit* (nach Maßnahme)]],Tab_Wahrscheinlichkeit[],7,0)*Risikoregister[[#This Row],[A. num (nach Maßnahme)]],#N/A) ->  | AJ33: =IFERROR(VLOOKUP(Risikoregister[[#This Row],[Wahrscheinlichkeit* (nach Maßnahme)]],Tab_Wahrscheinlichkeit[],6,0)*Risikoregister[[#This Row],[Auswirkung Kosten quant.]],#N/A) ->  | AQ33: =IFERROR(VLOOKUP(Risikoregister[[#This Row],[Wahrscheinlichkeit qual. (vor Maßnahme)]],Tab_Wahrscheinlichkeit[],7,FALSE),#N/A) ->  | AR33: =IFERROR(VLOOKUP(Risikoregister[[#This Row],[Wahrscheinlichkeit qual. (vor Maßnahme)]],Tab_Wahrscheinlichkeit[],5,FALSE)+Versatz_Portfolio,#N/A) ->  | AS33: =MAX( IF(ISBLANK(Risikoregister[[#This Row],[Auswirkung Kosten qual. (vor Maßnahme)]]),0, VLOOKUP(Risikoregister[[#This Row],[Auswirkung Kosten qual. (vor Maßnahme)]],Tab_Auswirkung[],6,FALSE) ), IF(ISBLANK(Risikoregister[[#This Row],[Auswirkung Termine qual. (vor Maßnahme)]]),0, VLOOKUP(Risikoregister[[#This Row],[Auswirkung Termine qual. (vor Maßnahme)]],Tab_Auswirkung[],6,FALSE) ), IF(ISBLANK(Risikoregister[[#This Row],[Auswirkung Leistung qual. (vor Maßnahme)]]),0, VLOOKUP(Risikoregister[[#This Row],[Auswirkung Leistung qual. (vor Maßnahme)]],Tab_Auswirkung[],6,FALSE) ), ) -> 0 | AT33: =MAX( IF(ISBLANK(Risikoregister[[#This Row],[Auswirkung Kosten (nach Maßnahme)]]),0, VLOOKUP(Risikoregister[[#This Row],[Auswirkung Kosten (nach Maßnahme)]],Tab_Auswirkung[],6,FALSE) ), IF(ISBLANK(Risikoregister[[#This Row],[Auswirkung Termine (nach Maßnahme)]]),0, VLOOKUP(Risikoregister[[#This Row],[Auswirkung Termine (nach Maßnahme)]],Tab_Auswirkung[],6,FALSE) ), IF(ISBLANK(Risikoregister[[#This Row],[Auswirkung Leistung (nach Maßnahme)]]),0, VLOOKUP(Risikoregister[[#This Row],[Auswirkung Leistung (nach Maßnahme)]],Tab_Auswirkung[],6,FALSE) ), ) -> 0 | AU33: =MAX( IF(ISBLANK(Risikoregister[[#This Row],[Auswirkung Kosten qual. (vor Maßnahme)]]),0, VLOOKUP(Risikoregister[[#This Row],[Auswirkung Kosten qual. (vor Maßnahme)]],Tab_Auswirkung[],5,FALSE) ), IF(ISBLANK(Risikoregister[[#This Row],[Auswirkung Termine qual. (vor Maßnahme)]]),0, VLOOKUP(Risikoregister[[#This Row],[Auswirkung Termine qual. (vor Maßnahme)]],Tab_Auswirkung[],5,FALSE) ), IF(ISBLANK(Risikoregister[[#This Row],[Auswirkung Leistung qual. (vor Maßnahme)]]),0, VLOOKUP(Risikoregister[[#This Row],[Auswirkung Leistung qual. (vor Maßnahme)]],Tab_Auswirkung[],5,FALSE) ), ) -> 0 | AV33: =MAX( IF(ISBLANK(Risikoregister[[#This Row],[Auswirkung Kosten (nach Maßnahme)]]),0, VLOOKUP(Risikoregister[[#This Row],[Auswirkung Kosten (nach Maßnahme)]],Tab_Auswirkung[],5,FALSE) ), IF(ISBLANK(Risikoregister[[#This Row],[Auswirkung Termine (nach Maßnahme)]]),0, VLOOKUP(Risikoregister[[#This Row],[Auswirkung Termine (nach Maßnahme)]],Tab_Auswirkung[],5,FALSE) ), IF(ISBLANK(Risikoregister[[#This Row],[Auswirkung Leistung (nach Maßnahme)]]),0, VLOOKUP(Risikoregister[[#This Row],[Auswirkung Leistung (nach Maßnahme)]],Tab_Auswirkung[],5,FALSE) ), ) -> 0 | AW33: =IF(Risikoregister[[#This Row],[A. num Portfolio Hilfswert (vor Maßnahme)]]=0,#N/A,Risikoregister[[#This Row],[A. num Portfolio Hilfswert (vor Maßnahme)]]+Versatz_Portfolio) ->  | AX33: =IFERROR(VLOOKUP(Risikoregister[[#This Row],[Wahrscheinlichkeit* (nach Maßnahme)]],Tab_Wahrscheinlichkeit[],5,FALSE)+Versatz_Portfolio,#N/A) ->  | AY33: =IF(Risikoregister[[#This Row],[A. num Portfolio Hilfswert (nach Maßnahme)]]=0,#N/A,Risikoregister[[#This Row],[A. num Portfolio Hilfswert (nach Maßnahme)]]+Versatz_Portfolio) ->  | AZ33: =IF(Risikoregister[[#This Row],[Maßnahmen-Status]]=Planung!$W$9,Risikoregister[[#This Row],[W. num (nach Maßnahme)]],Risikoregister[[#This Row],[W. num Portfolio (vor Maßnahme)]]) ->  | BA33: =IF(Risikoregister[[#This Row],[Maßnahmen-Status]]=Planung!$W$9,Risikoregister[[#This Row],[A. num (nach Maßnahme)2]],Risikoregister[[#This Row],[A. num Portfolio (vor Maßnahme)]]) ->  | BC33: =VLOOKUP(Risikoregister[[#This Row],[Zeitraum von]],Zeiträume[],2,FALSE) ->  | BD33: =IF(ISBLANK(Risikoregister[[#This Row],[Zeitraum bis]]),Risikoregister[[#This Row],[Zeitraum von num]],VLOOKUP(Risikoregister[[#This Row],[Zeitraum bis]],Zeiträume[],2,FALSE)) ->  | BE33: =IFERROR(IF(AND(Risikoregister[[#This Row],[Zeitraum von num]]<=1,1<=Risikoregister[[#This Row],[Zeitraum bis num]]),Risikoregister[[#This Row],[Risikowert (in Punkten)]],0),"") ->  | BF33: =IFERROR(IF(AND(Risikoregister[[#This Row],[Zeitraum von num]]<=2,2<=Risikoregister[[#This Row],[Zeitraum bis num]]),Risikoregister[[#This Row],[Risikowert (in Punkten)]],0),"") ->  | BG33: =IFERROR(IF(AND(Risikoregister[[#This Row],[Zeitraum von num]]<=3,3<=Risikoregister[[#This Row],[Zeitraum bis num]]),Risikoregister[[#This Row],[Risikowert (in Punkten)]],0),"") ->  | BH33: =IFERROR(IF(AND(Risikoregister[[#This Row],[Zeitraum von num]]<=4,4<=Risikoregister[[#This Row],[Zeitraum bis num]]),Risikoregister[[#This Row],[Risikowert (in Punkten)]],0),"") ->  | BI33: =IFERROR(IF(AND(Risikoregister[[#This Row],[Zeitraum von num]]<=5,5<=Risikoregister[[#This Row],[Zeitraum bis num]]),Risikoregister[[#This Row],[Risikowert (in Punkten)]],0),"") ->  | BJ33: =IFERROR(IF(AND(Risikoregister[[#This Row],[Zeitraum von num]]<=6,6<=Risikoregister[[#This Row],[Zeitraum bis num]]),Risikoregister[[#This Row],[Risikowert (in Punkten)]],0),"") ->  | BK33: =IFERROR(IF(AND(Risikoregister[[#This Row],[Zeitraum von num]]<=7,7<=Risikoregister[[#This Row],[Zeitraum bis num]]),Risikoregister[[#This Row],[Risikowert (in Punkten)]],0),"") ->  | BL33: =IFERROR(IF(AND(Risikoregister[[#This Row],[Zeitraum von num]]<=8,8<=Risikoregister[[#This Row],[Zeitraum bis num]]),Risikoregister[[#This Row],[Risikowert (in Punkten)]],0),"") ->  | BM33: =IFERROR(IF(AND(Risikoregister[[#This Row],[Zeitraum von num]]<=9,9<=Risikoregister[[#This Row],[Zeitraum bis num]]),Risikoregister[[#This Row],[Risikowert (in Punkten)]],0),"") -> 
S34: =IFERROR(Risikoregister[[#This Row],[W. num (vor Maßnahme)]]*Risikoregister[[#This Row],[A. num (vor Maßnahme)]],#N/A) ->  | Y34: =IFERROR(Risikoregister[[#This Row],[Wahrscheinlichkeit quant. (vor Maßnahme)]]*Risikoregister[[#This Row],[Auswirkung Kosten quant.]],#N/A) -> 0 | AI34: =IFERROR(VLOOKUP(Risikoregister[[#This Row],[Wahrscheinlichkeit* (nach Maßnahme)]],Tab_Wahrscheinlichkeit[],7,0)*Risikoregister[[#This Row],[A. num (nach Maßnahme)]],#N/A) ->  | AJ34: =IFERROR(VLOOKUP(Risikoregister[[#This Row],[Wahrscheinlichkeit* (nach Maßnahme)]],Tab_Wahrscheinlichkeit[],6,0)*Risikoregister[[#This Row],[Auswirkung Kosten quant.]],#N/A) ->  | AQ34: =IFERROR(VLOOKUP(Risikoregister[[#This Row],[Wahrscheinlichkeit qual. (vor Maßnahme)]],Tab_Wahrscheinlichkeit[],7,FALSE),#N/A) ->  | AR34: =IFERROR(VLOOKUP(Risikoregister[[#This Row],[Wahrscheinlichkeit qual. (vor Maßnahme)]],Tab_Wahrscheinlichkeit[],5,FALSE)+Versatz_Portfolio,#N/A) ->  | AS34: =MAX( IF(ISBLANK(Risikoregister[[#This Row],[Auswirkung Kosten qual. (vor Maßnahme)]]),0, VLOOKUP(Risikoregister[[#This Row],[Auswirkung Kosten qual. (vor Maßnahme)]],Tab_Auswirkung[],6,FALSE) ), IF(ISBLANK(Risikoregister[[#This Row],[Auswirkung Termine qual. (vor Maßnahme)]]),0, VLOOKUP(Risikoregister[[#This Row],[Auswirkung Termine qual. (vor Maßnahme)]],Tab_Auswirkung[],6,FALSE) ), IF(ISBLANK(Risikoregister[[#This Row],[Auswirkung Leistung qual. (vor Maßnahme)]]),0, VLOOKUP(Risikoregister[[#This Row],[Auswirkung Leistung qual. (vor Maßnahme)]],Tab_Auswirkung[],6,FALSE) ), ) -> 0 | AT34: =MAX( IF(ISBLANK(Risikoregister[[#This Row],[Auswirkung Kosten (nach Maßnahme)]]),0, VLOOKUP(Risikoregister[[#This Row],[Auswirkung Kosten (nach Maßnahme)]],Tab_Auswirkung[],6,FALSE) ), IF(ISBLANK(Risikoregister[[#This Row],[Auswirkung Termine (nach Maßnahme)]]),0, VLOOKUP(Risikoregister[[#This Row],[Auswirkung Termine (nach Maßnahme)]],Tab_Auswirkung[],6,FALSE) ), IF(ISBLANK(Risikoregister[[#This Row],[Auswirkung Leistung (nach Maßnahme)]]),0, VLOOKUP(Risikoregister[[#This Row],[Auswirkung Leistung (nach Maßnahme)]],Tab_Auswirkung[],6,FALSE) ), ) -> 0 | AU34: =MAX( IF(ISBLANK(Risikoregister[[#This Row],[Auswirkung Kosten qual. (vor Maßnahme)]]),0, VLOOKUP(Risikoregister[[#This Row],[Auswirkung Kosten qual. (vor Maßnahme)]],Tab_Auswirkung[],5,FALSE) ), IF(ISBLANK(Risikoregister[[#This Row],[Auswirkung Termine qual. (vor Maßnahme)]]),0, VLOOKUP(Risikoregister[[#This Row],[Auswirkung Termine qual. (vor Maßnahme)]],Tab_Auswirkung[],5,FALSE) ), IF(ISBLANK(Risikoregister[[#This Row],[Auswirkung Leistung qual. (vor Maßnahme)]]),0, VLOOKUP(Risikoregister[[#This Row],[Auswirkung Leistung qual. (vor Maßnahme)]],Tab_Auswirkung[],5,FALSE) ), ) -> 0 | AV34: =MAX( IF(ISBLANK(Risikoregister[[#This Row],[Auswirkung Kosten (nach Maßnahme)]]),0, VLOOKUP(Risikoregister[[#This Row],[Auswirkung Kosten (nach Maßnahme)]],Tab_Auswirkung[],5,FALSE) ), IF(ISBLANK(Risikoregister[[#This Row],[Auswirkung Termine (nach Maßnahme)]]),0, VLOOKUP(Risikoregister[[#This Row],[Auswirkung Termine (nach Maßnahme)]],Tab_Auswirkung[],5,FALSE) ), IF(ISBLANK(Risikoregister[[#This Row],[Auswirkung Leistung (nach Maßnahme)]]),0, VLOOKUP(Risikoregister[[#This Row],[Auswirkung Leistung (nach Maßnahme)]],Tab_Auswirkung[],5,FALSE) ), ) -> 0 | AW34: =IF(Risikoregister[[#This Row],[A. num Portfolio Hilfswert (vor Maßnahme)]]=0,#N/A,Risikoregister[[#This Row],[A. num Portfolio Hilfswert (vor Maßnahme)]]+Versatz_Portfolio) ->  | AX34: =IFERROR(VLOOKUP(Risikoregister[[#This Row],[Wahrscheinlichkeit* (nach Maßnahme)]],Tab_Wahrscheinlichkeit[],5,FALSE)+Versatz_Portfolio,#N/A) ->  | AY34: =IF(Risikoregister[[#This Row],[A. num Portfolio Hilfswert (nach Maßnahme)]]=0,#N/A,Risikoregister[[#This Row],[A. num Portfolio Hilfswert (nach Maßnahme)]]+Versatz_Portfolio) ->  | AZ34: =IF(Risikoregister[[#This Row],[Maßnahmen-Status]]=Planung!$W$9,Risikoregister[[#This Row],[W. num (nach Maßnahme)]],Risikoregister[[#This Row],[W. num Portfolio (vor Maßnahme)]]) ->  | BA34: =IF(Risikoregister[[#This Row],[Maßnahmen-Status]]=Planung!$W$9,Risikoregister[[#This Row],[A. num (nach Maßnahme)2]],Risikoregister[[#This Row],[A. num Portfolio (vor Maßnahme)]]) ->  | BC34: =VLOOKUP(Risikoregister[[#This Row],[Zeitraum von]],Zeiträume[],2,FALSE) ->  | BD34: =IF(ISBLANK(Risikoregister[[#This Row],[Zeitraum bis]]),Risikoregister[[#This Row],[Zeitraum von num]],VLOOKUP(Risikoregister[[#This Row],[Zeitraum bis]],Zeiträume[],2,FALSE)) ->  | BE34: =IFERROR(IF(AND(Risikoregister[[#This Row],[Zeitraum von num]]<=1,1<=Risikoregister[[#This Row],[Zeitraum bis num]]),Risikoregister[[#This Row],[Risikowert (in Punkten)]],0),"") ->  | BF34: =IFERROR(IF(AND(Risikoregister[[#This Row],[Zeitraum von num]]<=2,2<=Risikoregister[[#This Row],[Zeitraum bis num]]),Risikoregister[[#This Row],[Risikowert (in Punkten)]],0),"") ->  | BG34: =IFERROR(IF(AND(Risikoregister[[#This Row],[Zeitraum von num]]<=3,3<=Risikoregister[[#This Row],[Zeitraum bis num]]),Risikoregister[[#This Row],[Risikowert (in Punkten)]],0),"") ->  | BH34: =IFERROR(IF(AND(Risikoregister[[#This Row],[Zeitraum von num]]<=4,4<=Risikoregister[[#This Row],[Zeitraum bis num]]),Risikoregister[[#This Row],[Risikowert (in Punkten)]],0),"") ->  | BI34: =IFERROR(IF(AND(Risikoregister[[#This Row],[Zeitraum von num]]<=5,5<=Risikoregister[[#This Row],[Zeitraum bis num]]),Risikoregister[[#This Row],[Risikowert (in Punkten)]],0),"") ->  | BJ34: =IFERROR(IF(AND(Risikoregister[[#This Row],[Zeitraum von num]]<=6,6<=Risikoregister[[#This Row],[Zeitraum bis num]]),Risikoregister[[#This Row],[Risikowert (in Punkten)]],0),"") ->  | BK34: =IFERROR(IF(AND(Risikoregister[[#This Row],[Zeitraum von num]]<=7,7<=Risikoregister[[#This Row],[Zeitraum bis num]]),Risikoregister[[#This Row],[Risikowert (in Punkten)]],0),"") ->  | BL34: =IFERROR(IF(AND(Risikoregister[[#This Row],[Zeitraum von num]]<=8,8<=Risikoregister[[#This Row],[Zeitraum bis num]]),Risikoregister[[#This Row],[Risikowert (in Punkten)]],0),"") ->  | BM34: =IFERROR(IF(AND(Risikoregister[[#This Row],[Zeitraum von num]]<=9,9<=Risikoregister[[#This Row],[Zeitraum bis num]]),Risikoregister[[#This Row],[Risikowert (in Punkten)]],0),"") -> 
S35: =IFERROR(Risikoregister[[#This Row],[W. num (vor Maßnahme)]]*Risikoregister[[#This Row],[A. num (vor Maßnahme)]],#N/A) ->  | Y35: =IFERROR(Risikoregister[[#This Row],[Wahrscheinlichkeit quant. (vor Maßnahme)]]*Risikoregister[[#This Row],[Auswirkung Kosten quant.]],#N/A) -> 0 | AI35: =IFERROR(VLOOKUP(Risikoregister[[#This Row],[Wahrscheinlichkeit* (nach Maßnahme)]],Tab_Wahrscheinlichkeit[],7,0)*Risikoregister[[#This Row],[A. num (nach Maßnahme)]],#N/A) ->  | AJ35: =IFERROR(VLOOKUP(Risikoregister[[#This Row],[Wahrscheinlichkeit* (nach Maßnahme)]],Tab_Wahrscheinlichkeit[],6,0)*Risikoregister[[#This Row],[Auswirkung Kosten quant.]],#N/A) ->  | AQ35: =IFERROR(VLOOKUP(Risikoregister[[#This Row],[Wahrscheinlichkeit qual. (vor Maßnahme)]],Tab_Wahrscheinlichkeit[],7,FALSE),#N/A) ->  | AR35: =IFERROR(VLOOKUP(Risikoregister[[#This Row],[Wahrscheinlichkeit qual. (vor Maßnahme)]],Tab_Wahrscheinlichkeit[],5,FALSE)+Versatz_Portfolio,#N/A) ->  | AS35: =MAX( IF(ISBLANK(Risikoregister[[#This Row],[Auswirkung Kosten qual. (vor Maßnahme)]]),0, VLOOKUP(Risikoregister[[#This Row],[Auswirkung Kosten qual. (vor Maßnahme)]],Tab_Auswirkung[],6,FALSE) ), IF(ISBLANK(Risikoregister[[#This Row],[Auswirkung Termine qual. (vor Maßnahme)]]),0, VLOOKUP(Risikoregister[[#This Row],[Auswirkung Termine qual. (vor Maßnahme)]],Tab_Auswirkung[],6,FALSE) ), IF(ISBLANK(Risikoregister[[#This Row],[Auswirkung Leistung qual. (vor Maßnahme)]]),0, VLOOKUP(Risikoregister[[#This Row],[Auswirkung Leistung qual. (vor Maßnahme)]],Tab_Auswirkung[],6,FALSE) ), ) -> 0 | AT35: =MAX( IF(ISBLANK(Risikoregister[[#This Row],[Auswirkung Kosten (nach Maßnahme)]]),0, VLOOKUP(Risikoregister[[#This Row],[Auswirkung Kosten (nach Maßnahme)]],Tab_Auswirkung[],6,FALSE) ), IF(ISBLANK(Risikoregister[[#This Row],[Auswirkung Termine (nach Maßnahme)]]),0, VLOOKUP(Risikoregister[[#This Row],[Auswirkung Termine (nach Maßnahme)]],Tab_Auswirkung[],6,FALSE) ), IF(ISBLANK(Risikoregister[[#This Row],[Auswirkung Leistung (nach Maßnahme)]]),0, VLOOKUP(Risikoregister[[#This Row],[Auswirkung Leistung (nach Maßnahme)]],Tab_Auswirkung[],6,FALSE) ), ) -> 0 | AU35: =MAX( IF(ISBLANK(Risikoregister[[#This Row],[Auswirkung Kosten qual. (vor Maßnahme)]]),0, VLOOKUP(Risikoregister[[#This Row],[Auswirkung Kosten qual. (vor Maßnahme)]],Tab_Auswirkung[],5,FALSE) ), IF(ISBLANK(Risikoregister[[#This Row],[Auswirkung Termine qual. (vor Maßnahme)]]),0, VLOOKUP(Risikoregister[[#This Row],[Auswirkung Termine qual. (vor Maßnahme)]],Tab_Auswirkung[],5,FALSE) ), IF(ISBLANK(Risikoregister[[#This Row],[Auswirkung Leistung qual. (vor Maßnahme)]]),0, VLOOKUP(Risikoregister[[#This Row],[Auswirkung Leistung qual. (vor Maßnahme)]],Tab_Auswirkung[],5,FALSE) ), ) -> 0 | AV35: =MAX( IF(ISBLANK(Risikoregister[[#This Row],[Auswirkung Kosten (nach Maßnahme)]]),0, VLOOKUP(Risikoregister[[#This Row],[Auswirkung Kosten (nach Maßnahme)]],Tab_Auswirkung[],5,FALSE) ), IF(ISBLANK(Risikoregister[[#This Row],[Auswirkung Termine (nach Maßnahme)]]),0, VLOOKUP(Risikoregister[[#This Row],[Auswirkung Termine (nach Maßnahme)]],Tab_Auswirkung[],5,FALSE) ), IF(ISBLANK(Risikoregister[[#This Row],[Auswirkung Leistung (nach Maßnahme)]]),0, VLOOKUP(Risikoregister[[#This Row],[Auswirkung Leistung (nach Maßnahme)]],Tab_Auswirkung[],5,FALSE) ), ) -> 0 | AW35: =IF(Risikoregister[[#This Row],[A. num Portfolio Hilfswert (vor Maßnahme)]]=0,#N/A,Risikoregister[[#This Row],[A. num Portfolio Hilfswert (vor Maßnahme)]]+Versatz_Portfolio) ->  | AX35: =IFERROR(VLOOKUP(Risikoregister[[#This Row],[Wahrscheinlichkeit* (nach Maßnahme)]],Tab_Wahrscheinlichkeit[],5,FALSE)+Versatz_Portfolio,#N/A) ->  | AY35: =IF(Risikoregister[[#This Row],[A. num Portfolio Hilfswert (nach Maßnahme)]]=0,#N/A,Risikoregister[[#This Row],[A. num Portfolio Hilfswert (nach Maßnahme)]]+Versatz_Portfolio) ->  | AZ35: =IF(Risikoregister[[#This Row],[Maßnahmen-Status]]=Planung!$W$9,Risikoregister[[#This Row],[W. num (nach Maßnahme)]],Risikoregister[[#This Row],[W. num Portfolio (vor Maßnahme)]]) ->  | BA35: =IF(Risikoregister[[#This Row],[Maßnahmen-Status]]=Planung!$W$9,Risikoregister[[#This Row],[A. num (nach Maßnahme)2]],Risikoregister[[#This Row],[A. num Portfolio (vor Maßnahme)]]) ->  | BC35: =VLOOKUP(Risikoregister[[#This Row],[Zeitraum von]],Zeiträume[],2,FALSE) ->  | BD35: =IF(ISBLANK(Risikoregister[[#This Row],[Zeitraum bis]]),Risikoregister[[#This Row],[Zeitraum von num]],VLOOKUP(Risikoregister[[#This Row],[Zeitraum bis]],Zeiträume[],2,FALSE)) ->  | BE35: =IFERROR(IF(AND(Risikoregister[[#This Row],[Zeitraum von num]]<=1,1<=Risikoregister[[#This Row],[Zeitraum bis num]]),Risikoregister[[#This Row],[Risikowert (in Punkten)]],0),"") ->  | BF35: =IFERROR(IF(AND(Risikoregister[[#This Row],[Zeitraum von num]]<=2,2<=Risikoregister[[#This Row],[Zeitraum bis num]]),Risikoregister[[#This Row],[Risikowert (in Punkten)]],0),"") ->  | BG35: =IFERROR(IF(AND(Risikoregister[[#This Row],[Zeitraum von num]]<=3,3<=Risikoregister[[#This Row],[Zeitraum bis num]]),Risikoregister[[#This Row],[Risikowert (in Punkten)]],0),"") ->  | BH35: =IFERROR(IF(AND(Risikoregister[[#This Row],[Zeitraum von num]]<=4,4<=Risikoregister[[#This Row],[Zeitraum bis num]]),Risikoregister[[#This Row],[Risikowert (in Punkten)]],0),"") ->  | BI35: =IFERROR(IF(AND(Risikoregister[[#This Row],[Zeitraum von num]]<=5,5<=Risikoregister[[#This Row],[Zeitraum bis num]]),Risikoregister[[#This Row],[Risikowert (in Punkten)]],0),"") ->  | BJ35: =IFERROR(IF(AND(Risikoregister[[#This Row],[Zeitraum von num]]<=6,6<=Risikoregister[[#This Row],[Zeitraum bis num]]),Risikoregister[[#This Row],[Risikowert (in Punkten)]],0),"") ->  | BK35: =IFERROR(IF(AND(Risikoregister[[#This Row],[Zeitraum von num]]<=7,7<=Risikoregister[[#This Row],[Zeitraum bis num]]),Risikoregister[[#This Row],[Risikowert (in Punkten)]],0),"") ->  | BL35: =IFERROR(IF(AND(Risikoregister[[#This Row],[Zeitraum von num]]<=8,8<=Risikoregister[[#This Row],[Zeitraum bis num]]),Risikoregister[[#This Row],[Risikowert (in Punkten)]],0),"") ->  | BM35: =IFERROR(IF(AND(Risikoregister[[#This Row],[Zeitraum von num]]<=9,9<=Risikoregister[[#This Row],[Zeitraum bis num]]),Risikoregister[[#This Row],[Risikowert (in Punkten)]],0),"") -> 
S36: =IFERROR(Risikoregister[[#This Row],[W. num (vor Maßnahme)]]*Risikoregister[[#This Row],[A. num (vor Maßnahme)]],#N/A) ->  | Y36: =IFERROR(Risikoregister[[#This Row],[Wahrscheinlichkeit quant. (vor Maßnahme)]]*Risikoregister[[#This Row],[Auswirkung Kosten quant.]],#N/A) -> 0 | AI36: =IFERROR(VLOOKUP(Risikoregister[[#This Row],[Wahrscheinlichkeit* (nach Maßnahme)]],Tab_Wahrscheinlichkeit[],7,0)*Risikoregister[[#This Row],[A. num (nach Maßnahme)]],#N/A) ->  | AJ36: =IFERROR(VLOOKUP(Risikoregister[[#This Row],[Wahrscheinlichkeit* (nach Maßnahme)]],Tab_Wahrscheinlichkeit[],6,0)*Risikoregister[[#This Row],[Auswirkung Kosten quant.]],#N/A) ->  | AQ36: =IFERROR(VLOOKUP(Risikoregister[[#This Row],[Wahrscheinlichkeit qual. (vor Maßnahme)]],Tab_Wahrscheinlichkeit[],7,FALSE),#N/A) ->  | AR36: =IFERROR(VLOOKUP(Risikoregister[[#This Row],[Wahrscheinlichkeit qual. (vor Maßnahme)]],Tab_Wahrscheinlichkeit[],5,FALSE)+Versatz_Portfolio,#N/A) ->  | AS36: =MAX( IF(ISBLANK(Risikoregister[[#This Row],[Auswirkung Kosten qual. (vor Maßnahme)]]),0, VLOOKUP(Risikoregister[[#This Row],[Auswirkung Kosten qual. (vor Maßnahme)]],Tab_Auswirkung[],6,FALSE) ), IF(ISBLANK(Risikoregister[[#This Row],[Auswirkung Termine qual. (vor Maßnahme)]]),0, VLOOKUP(Risikoregister[[#This Row],[Auswirkung Termine qual. (vor Maßnahme)]],Tab_Auswirkung[],6,FALSE) ), IF(ISBLANK(Risikoregister[[#This Row],[Auswirkung Leistung qual. (vor Maßnahme)]]),0, VLOOKUP(Risikoregister[[#This Row],[Auswirkung Leistung qual. (vor Maßnahme)]],Tab_Auswirkung[],6,FALSE) ), ) -> 0 | AT36: =MAX( IF(ISBLANK(Risikoregister[[#This Row],[Auswirkung Kosten (nach Maßnahme)]]),0, VLOOKUP(Risikoregister[[#This Row],[Auswirkung Kosten (nach Maßnahme)]],Tab_Auswirkung[],6,FALSE) ), IF(ISBLANK(Risikoregister[[#This Row],[Auswirkung Termine (nach Maßnahme)]]),0, VLOOKUP(Risikoregister[[#This Row],[Auswirkung Termine (nach Maßnahme)]],Tab_Auswirkung[],6,FALSE) ), IF(ISBLANK(Risikoregister[[#This Row],[Auswirkung Leistung (nach Maßnahme)]]),0, VLOOKUP(Risikoregister[[#This Row],[Auswirkung Leistung (nach Maßnahme)]],Tab_Auswirkung[],6,FALSE) ), ) -> 0 | AU36: =MAX( IF(ISBLANK(Risikoregister[[#This Row],[Auswirkung Kosten qual. (vor Maßnahme)]]),0, VLOOKUP(Risikoregister[[#This Row],[Auswirkung Kosten qual. (vor Maßnahme)]],Tab_Auswirkung[],5,FALSE) ), IF(ISBLANK(Risikoregister[[#This Row],[Auswirkung Termine qual. (vor Maßnahme)]]),0, VLOOKUP(Risikoregister[[#This Row],[Auswirkung Termine qual. (vor Maßnahme)]],Tab_Auswirkung[],5,FALSE) ), IF(ISBLANK(Risikoregister[[#This Row],[Auswirkung Leistung qual. (vor Maßnahme)]]),0, VLOOKUP(Risikoregister[[#This Row],[Auswirkung Leistung qual. (vor Maßnahme)]],Tab_Auswirkung[],5,FALSE) ), ) -> 0 | AV36: =MAX( IF(ISBLANK(Risikoregister[[#This Row],[Auswirkung Kosten (nach Maßnahme)]]),0, VLOOKUP(Risikoregister[[#This Row],[Auswirkung Kosten (nach Maßnahme)]],Tab_Auswirkung[],5,FALSE) ), IF(ISBLANK(Risikoregister[[#This Row],[Auswirkung Termine (nach Maßnahme)]]),0, VLOOKUP(Risikoregister[[#This Row],[Auswirkung Termine (nach Maßnahme)]],Tab_Auswirkung[],5,FALSE) ), IF(ISBLANK(Risikoregister[[#This Row],[Auswirkung Leistung (nach Maßnahme)]]),0, VLOOKUP(Risikoregister[[#This Row],[Auswirkung Leistung (nach Maßnahme)]],Tab_Auswirkung[],5,FALSE) ), ) -> 0 | AW36: =IF(Risikoregister[[#This Row],[A. num Portfolio Hilfswert (vor Maßnahme)]]=0,#N/A,Risikoregister[[#This Row],[A. num Portfolio Hilfswert (vor Maßnahme)]]+Versatz_Portfolio) ->  | AX36: =IFERROR(VLOOKUP(Risikoregister[[#This Row],[Wahrscheinlichkeit* (nach Maßnahme)]],Tab_Wahrscheinlichkeit[],5,FALSE)+Versatz_Portfolio,#N/A) ->  | AY36: =IF(Risikoregister[[#This Row],[A. num Portfolio Hilfswert (nach Maßnahme)]]=0,#N/A,Risikoregister[[#This Row],[A. num Portfolio Hilfswert (nach Maßnahme)]]+Versatz_Portfolio) ->  | AZ36: =IF(Risikoregister[[#This Row],[Maßnahmen-Status]]=Planung!$W$9,Risikoregister[[#This Row],[W. num (nach Maßnahme)]],Risikoregister[[#This Row],[W. num Portfolio (vor Maßnahme)]]) ->  | BA36: =IF(Risikoregister[[#This Row],[Maßnahmen-Status]]=Planung!$W$9,Risikoregister[[#This Row],[A. num (nach Maßnahme)2]],Risikoregister[[#This Row],[A. num Portfolio (vor Maßnahme)]]) ->  | BC36: =VLOOKUP(Risikoregister[[#This Row],[Zeitraum von]],Zeiträume[],2,FALSE) ->  | BD36: =IF(ISBLANK(Risikoregister[[#This Row],[Zeitraum bis]]),Risikoregister[[#This Row],[Zeitraum von num]],VLOOKUP(Risikoregister[[#This Row],[Zeitraum bis]],Zeiträume[],2,FALSE)) ->  | BE36: =IFERROR(IF(AND(Risikoregister[[#This Row],[Zeitraum von num]]<=1,1<=Risikoregister[[#This Row],[Zeitraum bis num]]),Risikoregister[[#This Row],[Risikowert (in Punkten)]],0),"") ->  | BF36: =IFERROR(IF(AND(Risikoregister[[#This Row],[Zeitraum von num]]<=2,2<=Risikoregister[[#This Row],[Zeitraum bis num]]),Risikoregister[[#This Row],[Risikowert (in Punkten)]],0),"") ->  | BG36: =IFERROR(IF(AND(Risikoregister[[#This Row],[Zeitraum von num]]<=3,3<=Risikoregister[[#This Row],[Zeitraum bis num]]),Risikoregister[[#This Row],[Risikowert (in Punkten)]],0),"") ->  | BH36: =IFERROR(IF(AND(Risikoregister[[#This Row],[Zeitraum von num]]<=4,4<=Risikoregister[[#This Row],[Zeitraum bis num]]),Risikoregister[[#This Row],[Risikowert (in Punkten)]],0),"") ->  | BI36: =IFERROR(IF(AND(Risikoregister[[#This Row],[Zeitraum von num]]<=5,5<=Risikoregister[[#This Row],[Zeitraum bis num]]),Risikoregister[[#This Row],[Risikowert (in Punkten)]],0),"") ->  | BJ36: =IFERROR(IF(AND(Risikoregister[[#This Row],[Zeitraum von num]]<=6,6<=Risikoregister[[#This Row],[Zeitraum bis num]]),Risikoregister[[#This Row],[Risikowert (in Punkten)]],0),"") ->  | BK36: =IFERROR(IF(AND(Risikoregister[[#This Row],[Zeitraum von num]]<=7,7<=Risikoregister[[#This Row],[Zeitraum bis num]]),Risikoregister[[#This Row],[Risikowert (in Punkten)]],0),"") ->  | BL36: =IFERROR(IF(AND(Risikoregister[[#This Row],[Zeitraum von num]]<=8,8<=Risikoregister[[#This Row],[Zeitraum bis num]]),Risikoregister[[#This Row],[Risikowert (in Punkten)]],0),"") ->  | BM36: =IFERROR(IF(AND(Risikoregister[[#This Row],[Zeitraum von num]]<=9,9<=Risikoregister[[#This Row],[Zeitraum bis num]]),Risikoregister[[#This Row],[Risikowert (in Punkten)]],0),"") -> 
S37: =IFERROR(Risikoregister[[#This Row],[W. num (vor Maßnahme)]]*Risikoregister[[#This Row],[A. num (vor Maßnahme)]],#N/A) ->  | Y37: =IFERROR(Risikoregister[[#This Row],[Wahrscheinlichkeit quant. (vor Maßnahme)]]*Risikoregister[[#This Row],[Auswirkung Kosten quant.]],#N/A) -> 0 | AI37: =IFERROR(VLOOKUP(Risikoregister[[#This Row],[Wahrscheinlichkeit* (nach Maßnahme)]],Tab_Wahrscheinlichkeit[],7,0)*Risikoregister[[#This Row],[A. num (nach Maßnahme)]],#N/A) ->  | AJ37: =IFERROR(VLOOKUP(Risikoregister[[#This Row],[Wahrscheinlichkeit* (nach Maßnahme)]],Tab_Wahrscheinlichkeit[],6,0)*Risikoregister[[#This Row],[Auswirkung Kosten quant.]],#N/A) ->  | AQ37: =IFERROR(VLOOKUP(Risikoregister[[#This Row],[Wahrscheinlichkeit qual. (vor Maßnahme)]],Tab_Wahrscheinlichkeit[],7,FALSE),#N/A) ->  | AR37: =IFERROR(VLOOKUP(Risikoregister[[#This Row],[Wahrscheinlichkeit qual. (vor Maßnahme)]],Tab_Wahrscheinlichkeit[],5,FALSE)+Versatz_Portfolio,#N/A) ->  | AS37: =MAX( IF(ISBLANK(Risikoregister[[#This Row],[Auswirkung Kosten qual. (vor Maßnahme)]]),0, VLOOKUP(Risikoregister[[#This Row],[Auswirkung Kosten qual. (vor Maßnahme)]],Tab_Auswirkung[],6,FALSE) ), IF(ISBLANK(Risikoregister[[#This Row],[Auswirkung Termine qual. (vor Maßnahme)]]),0, VLOOKUP(Risikoregister[[#This Row],[Auswirkung Termine qual. (vor Maßnahme)]],Tab_Auswirkung[],6,FALSE) ), IF(ISBLANK(Risikoregister[[#This Row],[Auswirkung Leistung qual. (vor Maßnahme)]]),0, VLOOKUP(Risikoregister[[#This Row],[Auswirkung Leistung qual. (vor Maßnahme)]],Tab_Auswirkung[],6,FALSE) ), ) -> 0 | AT37: =MAX( IF(ISBLANK(Risikoregister[[#This Row],[Auswirkung Kosten (nach Maßnahme)]]),0, VLOOKUP(Risikoregister[[#This Row],[Auswirkung Kosten (nach Maßnahme)]],Tab_Auswirkung[],6,FALSE) ), IF(ISBLANK(Risikoregister[[#This Row],[Auswirkung Termine (nach Maßnahme)]]),0, VLOOKUP(Risikoregister[[#This Row],[Auswirkung Termine (nach Maßnahme)]],Tab_Auswirkung[],6,FALSE) ), IF(ISBLANK(Risikoregister[[#This Row],[Auswirkung Leistung (nach Maßnahme)]]),0, VLOOKUP(Risikoregister[[#This Row],[Auswirkung Leistung (nach Maßnahme)]],Tab_Auswirkung[],6,FALSE) ), ) -> 0 | AU37: =MAX( IF(ISBLANK(Risikoregister[[#This Row],[Auswirkung Kosten qual. (vor Maßnahme)]]),0, VLOOKUP(Risikoregister[[#This Row],[Auswirkung Kosten qual. (vor Maßnahme)]],Tab_Auswirkung[],5,FALSE) ), IF(ISBLANK(Risikoregister[[#This Row],[Auswirkung Termine qual. (vor Maßnahme)]]),0, VLOOKUP(Risikoregister[[#This Row],[Auswirkung Termine qual. (vor Maßnahme)]],Tab_Auswirkung[],5,FALSE) ), IF(ISBLANK(Risikoregister[[#This Row],[Auswirkung Leistung qual. (vor Maßnahme)]]),0, VLOOKUP(Risikoregister[[#This Row],[Auswirkung Leistung qual. (vor Maßnahme)]],Tab_Auswirkung[],5,FALSE) ), ) -> 0 | AV37: =MAX( IF(ISBLANK(Risikoregister[[#This Row],[Auswirkung Kosten (nach Maßnahme)]]),0, VLOOKUP(Risikoregister[[#This Row],[Auswirkung Kosten (nach Maßnahme)]],Tab_Auswirkung[],5,FALSE) ), IF(ISBLANK(Risikoregister[[#This Row],[Auswirkung Termine (nach Maßnahme)]]),0, VLOOKUP(Risikoregister[[#This Row],[Auswirkung Termine (nach Maßnahme)]],Tab_Auswirkung[],5,FALSE) ), IF(ISBLANK(Risikoregister[[#This Row],[Auswirkung Leistung (nach Maßnahme)]]),0, VLOOKUP(Risikoregister[[#This Row],[Auswirkung Leistung (nach Maßnahme)]],Tab_Auswirkung[],5,FALSE) ), ) -> 0 | AW37: =IF(Risikoregister[[#This Row],[A. num Portfolio Hilfswert (vor Maßnahme)]]=0,#N/A,Risikoregister[[#This Row],[A. num Portfolio Hilfswert (vor Maßnahme)]]+Versatz_Portfolio) ->  | AX37: =IFERROR(VLOOKUP(Risikoregister[[#This Row],[Wahrscheinlichkeit* (nach Maßnahme)]],Tab_Wahrscheinlichkeit[],5,FALSE)+Versatz_Portfolio,#N/A) ->  | AY37: =IF(Risikoregister[[#This Row],[A. num Portfolio Hilfswert (nach Maßnahme)]]=0,#N/A,Risikoregister[[#This Row],[A. num Portfolio Hilfswert (nach Maßnahme)]]+Versatz_Portfolio) ->  | AZ37: =IF(Risikoregister[[#This Row],[Maßnahmen-Status]]=Planung!$W$9,Risikoregister[[#This Row],[W. num (nach Maßnahme)]],Risikoregister[[#This Row],[W. num Portfolio (vor Maßnahme)]]) ->  | BA37: =IF(Risikoregister[[#This Row],[Maßnahmen-Status]]=Planung!$W$9,Risikoregister[[#This Row],[A. num (nach Maßnahme)2]],Risikoregister[[#This Row],[A. num Portfolio (vor Maßnahme)]]) ->  | BC37: =VLOOKUP(Risikoregister[[#This Row],[Zeitraum von]],Zeiträume[],2,FALSE) ->  | BD37: =IF(ISBLANK(Risikoregister[[#This Row],[Zeitraum bis]]),Risikoregister[[#This Row],[Zeitraum von num]],VLOOKUP(Risikoregister[[#This Row],[Zeitraum bis]],Zeiträume[],2,FALSE)) ->  | BE37: =IFERROR(IF(AND(Risikoregister[[#This Row],[Zeitraum von num]]<=1,1<=Risikoregister[[#This Row],[Zeitraum bis num]]),Risikoregister[[#This Row],[Risikowert (in Punkten)]],0),"") ->  | BF37: =IFERROR(IF(AND(Risikoregister[[#This Row],[Zeitraum von num]]<=2,2<=Risikoregister[[#This Row],[Zeitraum bis num]]),Risikoregister[[#This Row],[Risikowert (in Punkten)]],0),"") ->  | BG37: =IFERROR(IF(AND(Risikoregister[[#This Row],[Zeitraum von num]]<=3,3<=Risikoregister[[#This Row],[Zeitraum bis num]]),Risikoregister[[#This Row],[Risikowert (in Punkten)]],0),"") ->  | BH37: =IFERROR(IF(AND(Risikoregister[[#This Row],[Zeitraum von num]]<=4,4<=Risikoregister[[#This Row],[Zeitraum bis num]]),Risikoregister[[#This Row],[Risikowert (in Punkten)]],0),"") ->  | BI37: =IFERROR(IF(AND(Risikoregister[[#This Row],[Zeitraum von num]]<=5,5<=Risikoregister[[#This Row],[Zeitraum bis num]]),Risikoregister[[#This Row],[Risikowert (in Punkten)]],0),"") ->  | BJ37: =IFERROR(IF(AND(Risikoregister[[#This Row],[Zeitraum von num]]<=6,6<=Risikoregister[[#This Row],[Zeitraum bis num]]),Risikoregister[[#This Row],[Risikowert (in Punkten)]],0),"") ->  | BK37: =IFERROR(IF(AND(Risikoregister[[#This Row],[Zeitraum von num]]<=7,7<=Risikoregister[[#This Row],[Zeitraum bis num]]),Risikoregister[[#This Row],[Risikowert (in Punkten)]],0),"") ->  | BL37: =IFERROR(IF(AND(Risikoregister[[#This Row],[Zeitraum von num]]<=8,8<=Risikoregister[[#This Row],[Zeitraum bis num]]),Risikoregister[[#This Row],[Risikowert (in Punkten)]],0),"") ->  | BM37: =IFERROR(IF(AND(Risikoregister[[#This Row],[Zeitraum von num]]<=9,9<=Risikoregister[[#This Row],[Zeitraum bis num]]),Risikoregister[[#This Row],[Risikowert (in Punkten)]],0),"") -> 
S38: =IFERROR(Risikoregister[[#This Row],[W. num (vor Maßnahme)]]*Risikoregister[[#This Row],[A. num (vor Maßnahme)]],#N/A) ->  | Y38: =IFERROR(Risikoregister[[#This Row],[Wahrscheinlichkeit quant. (vor Maßnahme)]]*Risikoregister[[#This Row],[Auswirkung Kosten quant.]],#N/A) -> 0 | AI38: =IFERROR(VLOOKUP(Risikoregister[[#This Row],[Wahrscheinlichkeit* (nach Maßnahme)]],Tab_Wahrscheinlichkeit[],7,0)*Risikoregister[[#This Row],[A. num (nach Maßnahme)]],#N/A) ->  | AJ38: =IFERROR(VLOOKUP(Risikoregister[[#This Row],[Wahrscheinlichkeit* (nach Maßnahme)]],Tab_Wahrscheinlichkeit[],6,0)*Risikoregister[[#This Row],[Auswirkung Kosten quant.]],#N/A) ->  | AQ38: =IFERROR(VLOOKUP(Risikoregister[[#This Row],[Wahrscheinlichkeit qual. (vor Maßnahme)]],Tab_Wahrscheinlichkeit[],7,FALSE),#N/A) ->  | AR38: =IFERROR(VLOOKUP(Risikoregister[[#This Row],[Wahrscheinlichkeit qual. (vor Maßnahme)]],Tab_Wahrscheinlichkeit[],5,FALSE)+Versatz_Portfolio,#N/A) ->  | AS38: =MAX( IF(ISBLANK(Risikoregister[[#This Row],[Auswirkung Kosten qual. (vor Maßnahme)]]),0, VLOOKUP(Risikoregister[[#This Row],[Auswirkung Kosten qual. (vor Maßnahme)]],Tab_Auswirkung[],6,FALSE) ), IF(ISBLANK(Risikoregister[[#This Row],[Auswirkung Termine qual. (vor Maßnahme)]]),0, VLOOKUP(Risikoregister[[#This Row],[Auswirkung Termine qual. (vor Maßnahme)]],Tab_Auswirkung[],6,FALSE) ), IF(ISBLANK(Risikoregister[[#This Row],[Auswirkung Leistung qual. (vor Maßnahme)]]),0, VLOOKUP(Risikoregister[[#This Row],[Auswirkung Leistung qual. (vor Maßnahme)]],Tab_Auswirkung[],6,FALSE) ), ) -> 0 | AT38: =MAX( IF(ISBLANK(Risikoregister[[#This Row],[Auswirkung Kosten (nach Maßnahme)]]),0, VLOOKUP(Risikoregister[[#This Row],[Auswirkung Kosten (nach Maßnahme)]],Tab_Auswirkung[],6,FALSE) ), IF(ISBLANK(Risikoregister[[#This Row],[Auswirkung Termine (nach Maßnahme)]]),0, VLOOKUP(Risikoregister[[#This Row],[Auswirkung Termine (nach Maßnahme)]],Tab_Auswirkung[],6,FALSE) ), IF(ISBLANK(Risikoregister[[#This Row],[Auswirkung Leistung (nach Maßnahme)]]),0, VLOOKUP(Risikoregister[[#This Row],[Auswirkung Leistung (nach Maßnahme)]],Tab_Auswirkung[],6,FALSE) ), ) -> 0 | AU38: =MAX( IF(ISBLANK(Risikoregister[[#This Row],[Auswirkung Kosten qual. (vor Maßnahme)]]),0, VLOOKUP(Risikoregister[[#This Row],[Auswirkung Kosten qual. (vor Maßnahme)]],Tab_Auswirkung[],5,FALSE) ), IF(ISBLANK(Risikoregister[[#This Row],[Auswirkung Termine qual. (vor Maßnahme)]]),0, VLOOKUP(Risikoregister[[#This Row],[Auswirkung Termine qual. (vor Maßnahme)]],Tab_Auswirkung[],5,FALSE) ), IF(ISBLANK(Risikoregister[[#This Row],[Auswirkung Leistung qual. (vor Maßnahme)]]),0, VLOOKUP(Risikoregister[[#This Row],[Auswirkung Leistung qual. (vor Maßnahme)]],Tab_Auswirkung[],5,FALSE) ), ) -> 0 | AV38: =MAX( IF(ISBLANK(Risikoregister[[#This Row],[Auswirkung Kosten (nach Maßnahme)]]),0, VLOOKUP(Risikoregister[[#This Row],[Auswirkung Kosten (nach Maßnahme)]],Tab_Auswirkung[],5,FALSE) ), IF(ISBLANK(Risikoregister[[#This Row],[Auswirkung Termine (nach Maßnahme)]]),0, VLOOKUP(Risikoregister[[#This Row],[Auswirkung Termine (nach Maßnahme)]],Tab_Auswirkung[],5,FALSE) ), IF(ISBLANK(Risikoregister[[#This Row],[Auswirkung Leistung (nach Maßnahme)]]),0, VLOOKUP(Risikoregister[[#This Row],[Auswirkung Leistung (nach Maßnahme)]],Tab_Auswirkung[],5,FALSE) ), ) -> 0 | AW38: =IF(Risikoregister[[#This Row],[A. num Portfolio Hilfswert (vor Maßnahme)]]=0,#N/A,Risikoregister[[#This Row],[A. num Portfolio Hilfswert (vor Maßnahme)]]+Versatz_Portfolio) ->  | AX38: =IFERROR(VLOOKUP(Risikoregister[[#This Row],[Wahrscheinlichkeit* (nach Maßnahme)]],Tab_Wahrscheinlichkeit[],5,FALSE)+Versatz_Portfolio,#N/A) ->  | AY38: =IF(Risikoregister[[#This Row],[A. num Portfolio Hilfswert (nach Maßnahme)]]=0,#N/A,Risikoregister[[#This Row],[A. num Portfolio Hilfswert (nach Maßnahme)]]+Versatz_Portfolio) ->  | AZ38: =IF(Risikoregister[[#This Row],[Maßnahmen-Status]]=Planung!$W$9,Risikoregister[[#This Row],[W. num (nach Maßnahme)]],Risikoregister[[#This Row],[W. num Portfolio (vor Maßnahme)]]) ->  | BA38: =IF(Risikoregister[[#This Row],[Maßnahmen-Status]]=Planung!$W$9,Risikoregister[[#This Row],[A. num (nach Maßnahme)2]],Risikoregister[[#This Row],[A. num Portfolio (vor Maßnahme)]]) ->  | BC38: =VLOOKUP(Risikoregister[[#This Row],[Zeitraum von]],Zeiträume[],2,FALSE) ->  | BD38: =IF(ISBLANK(Risikoregister[[#This Row],[Zeitraum bis]]),Risikoregister[[#This Row],[Zeitraum von num]],VLOOKUP(Risikoregister[[#This Row],[Zeitraum bis]],Zeiträume[],2,FALSE)) ->  | BE38: =IFERROR(IF(AND(Risikoregister[[#This Row],[Zeitraum von num]]<=1,1<=Risikoregister[[#This Row],[Zeitraum bis num]]),Risikoregister[[#This Row],[Risikowert (in Punkten)]],0),"") ->  | BF38: =IFERROR(IF(AND(Risikoregister[[#This Row],[Zeitraum von num]]<=2,2<=Risikoregister[[#This Row],[Zeitraum bis num]]),Risikoregister[[#This Row],[Risikowert (in Punkten)]],0),"") ->  | BG38: =IFERROR(IF(AND(Risikoregister[[#This Row],[Zeitraum von num]]<=3,3<=Risikoregister[[#This Row],[Zeitraum bis num]]),Risikoregister[[#This Row],[Risikowert (in Punkten)]],0),"") ->  | BH38: =IFERROR(IF(AND(Risikoregister[[#This Row],[Zeitraum von num]]<=4,4<=Risikoregister[[#This Row],[Zeitraum bis num]]),Risikoregister[[#This Row],[Risikowert (in Punkten)]],0),"") ->  | BI38: =IFERROR(IF(AND(Risikoregister[[#This Row],[Zeitraum von num]]<=5,5<=Risikoregister[[#This Row],[Zeitraum bis num]]),Risikoregister[[#This Row],[Risikowert (in Punkten)]],0),"") ->  | BJ38: =IFERROR(IF(AND(Risikoregister[[#This Row],[Zeitraum von num]]<=6,6<=Risikoregister[[#This Row],[Zeitraum bis num]]),Risikoregister[[#This Row],[Risikowert (in Punkten)]],0),"") ->  | BK38: =IFERROR(IF(AND(Risikoregister[[#This Row],[Zeitraum von num]]<=7,7<=Risikoregister[[#This Row],[Zeitraum bis num]]),Risikoregister[[#This Row],[Risikowert (in Punkten)]],0),"") ->  | BL38: =IFERROR(IF(AND(Risikoregister[[#This Row],[Zeitraum von num]]<=8,8<=Risikoregister[[#This Row],[Zeitraum bis num]]),Risikoregister[[#This Row],[Risikowert (in Punkten)]],0),"") ->  | BM38: =IFERROR(IF(AND(Risikoregister[[#This Row],[Zeitraum von num]]<=9,9<=Risikoregister[[#This Row],[Zeitraum bis num]]),Risikoregister[[#This Row],[Risikowert (in Punkten)]],0),"") -> 
S39: =IFERROR(Risikoregister[[#This Row],[W. num (vor Maßnahme)]]*Risikoregister[[#This Row],[A. num (vor Maßnahme)]],#N/A) ->  | Y39: =IFERROR(Risikoregister[[#This Row],[Wahrscheinlichkeit quant. (vor Maßnahme)]]*Risikoregister[[#This Row],[Auswirkung Kosten quant.]],#N/A) -> 0 | AI39: =IFERROR(VLOOKUP(Risikoregister[[#This Row],[Wahrscheinlichkeit* (nach Maßnahme)]],Tab_Wahrscheinlichkeit[],7,0)*Risikoregister[[#This Row],[A. num (nach Maßnahme)]],#N/A) ->  | AJ39: =IFERROR(VLOOKUP(Risikoregister[[#This Row],[Wahrscheinlichkeit* (nach Maßnahme)]],Tab_Wahrscheinlichkeit[],6,0)*Risikoregister[[#This Row],[Auswirkung Kosten quant.]],#N/A) ->  | AQ39: =IFERROR(VLOOKUP(Risikoregister[[#This Row],[Wahrscheinlichkeit qual. (vor Maßnahme)]],Tab_Wahrscheinlichkeit[],7,FALSE),#N/A) ->  | AR39: =IFERROR(VLOOKUP(Risikoregister[[#This Row],[Wahrscheinlichkeit qual. (vor Maßnahme)]],Tab_Wahrscheinlichkeit[],5,FALSE)+Versatz_Portfolio,#N/A) ->  | AS39: =MAX( IF(ISBLANK(Risikoregister[[#This Row],[Auswirkung Kosten qual. (vor Maßnahme)]]),0, VLOOKUP(Risikoregister[[#This Row],[Auswirkung Kosten qual. (vor Maßnahme)]],Tab_Auswirkung[],6,FALSE) ), IF(ISBLANK(Risikoregister[[#This Row],[Auswirkung Termine qual. (vor Maßnahme)]]),0, VLOOKUP(Risikoregister[[#This Row],[Auswirkung Termine qual. (vor Maßnahme)]],Tab_Auswirkung[],6,FALSE) ), IF(ISBLANK(Risikoregister[[#This Row],[Auswirkung Leistung qual. (vor Maßnahme)]]),0, VLOOKUP(Risikoregister[[#This Row],[Auswirkung Leistung qual. (vor Maßnahme)]],Tab_Auswirkung[],6,FALSE) ), ) -> 0 | AT39: =MAX( IF(ISBLANK(Risikoregister[[#This Row],[Auswirkung Kosten (nach Maßnahme)]]),0, VLOOKUP(Risikoregister[[#This Row],[Auswirkung Kosten (nach Maßnahme)]],Tab_Auswirkung[],6,FALSE) ), IF(ISBLANK(Risikoregister[[#This Row],[Auswirkung Termine (nach Maßnahme)]]),0, VLOOKUP(Risikoregister[[#This Row],[Auswirkung Termine (nach Maßnahme)]],Tab_Auswirkung[],6,FALSE) ), IF(ISBLANK(Risikoregister[[#This Row],[Auswirkung Leistung (nach Maßnahme)]]),0, VLOOKUP(Risikoregister[[#This Row],[Auswirkung Leistung (nach Maßnahme)]],Tab_Auswirkung[],6,FALSE) ), ) -> 0 | AU39: =MAX( IF(ISBLANK(Risikoregister[[#This Row],[Auswirkung Kosten qual. (vor Maßnahme)]]),0, VLOOKUP(Risikoregister[[#This Row],[Auswirkung Kosten qual. (vor Maßnahme)]],Tab_Auswirkung[],5,FALSE) ), IF(ISBLANK(Risikoregister[[#This Row],[Auswirkung Termine qual. (vor Maßnahme)]]),0, VLOOKUP(Risikoregister[[#This Row],[Auswirkung Termine qual. (vor Maßnahme)]],Tab_Auswirkung[],5,FALSE) ), IF(ISBLANK(Risikoregister[[#This Row],[Auswirkung Leistung qual. (vor Maßnahme)]]),0, VLOOKUP(Risikoregister[[#This Row],[Auswirkung Leistung qual. (vor Maßnahme)]],Tab_Auswirkung[],5,FALSE) ), ) -> 0 | AV39: =MAX( IF(ISBLANK(Risikoregister[[#This Row],[Auswirkung Kosten (nach Maßnahme)]]),0, VLOOKUP(Risikoregister[[#This Row],[Auswirkung Kosten (nach Maßnahme)]],Tab_Auswirkung[],5,FALSE) ), IF(ISBLANK(Risikoregister[[#This Row],[Auswirkung Termine (nach Maßnahme)]]),0, VLOOKUP(Risikoregister[[#This Row],[Auswirkung Termine (nach Maßnahme)]],Tab_Auswirkung[],5,FALSE) ), IF(ISBLANK(Risikoregister[[#This Row],[Auswirkung Leistung (nach Maßnahme)]]),0, VLOOKUP(Risikoregister[[#This Row],[Auswirkung Leistung (nach Maßnahme)]],Tab_Auswirkung[],5,FALSE) ), ) -> 0 | AW39: =IF(Risikoregister[[#This Row],[A. num Portfolio Hilfswert (vor Maßnahme)]]=0,#N/A,Risikoregister[[#This Row],[A. num Portfolio Hilfswert (vor Maßnahme)]]+Versatz_Portfolio) ->  | AX39: =IFERROR(VLOOKUP(Risikoregister[[#This Row],[Wahrscheinlichkeit* (nach Maßnahme)]],Tab_Wahrscheinlichkeit[],5,FALSE)+Versatz_Portfolio,#N/A) ->  | AY39: =IF(Risikoregister[[#This Row],[A. num Portfolio Hilfswert (nach Maßnahme)]]=0,#N/A,Risikoregister[[#This Row],[A. num Portfolio Hilfswert (nach Maßnahme)]]+Versatz_Portfolio) ->  | AZ39: =IF(Risikoregister[[#This Row],[Maßnahmen-Status]]=Planung!$W$9,Risikoregister[[#This Row],[W. num (nach Maßnahme)]],Risikoregister[[#This Row],[W. num Portfolio (vor Maßnahme)]]) ->  | BA39: =IF(Risikoregister[[#This Row],[Maßnahmen-Status]]=Planung!$W$9,Risikoregister[[#This Row],[A. num (nach Maßnahme)2]],Risikoregister[[#This Row],[A. num Portfolio (vor Maßnahme)]]) ->  | BC39: =VLOOKUP(Risikoregister[[#This Row],[Zeitraum von]],Zeiträume[],2,FALSE) ->  | BD39: =IF(ISBLANK(Risikoregister[[#This Row],[Zeitraum bis]]),Risikoregister[[#This Row],[Zeitraum von num]],VLOOKUP(Risikoregister[[#This Row],[Zeitraum bis]],Zeiträume[],2,FALSE)) ->  | BE39: =IFERROR(IF(AND(Risikoregister[[#This Row],[Zeitraum von num]]<=1,1<=Risikoregister[[#This Row],[Zeitraum bis num]]),Risikoregister[[#This Row],[Risikowert (in Punkten)]],0),"") ->  | BF39: =IFERROR(IF(AND(Risikoregister[[#This Row],[Zeitraum von num]]<=2,2<=Risikoregister[[#This Row],[Zeitraum bis num]]),Risikoregister[[#This Row],[Risikowert (in Punkten)]],0),"") ->  | BG39: =IFERROR(IF(AND(Risikoregister[[#This Row],[Zeitraum von num]]<=3,3<=Risikoregister[[#This Row],[Zeitraum bis num]]),Risikoregister[[#This Row],[Risikowert (in Punkten)]],0),"") ->  | BH39: =IFERROR(IF(AND(Risikoregister[[#This Row],[Zeitraum von num]]<=4,4<=Risikoregister[[#This Row],[Zeitraum bis num]]),Risikoregister[[#This Row],[Risikowert (in Punkten)]],0),"") ->  | BI39: =IFERROR(IF(AND(Risikoregister[[#This Row],[Zeitraum von num]]<=5,5<=Risikoregister[[#This Row],[Zeitraum bis num]]),Risikoregister[[#This Row],[Risikowert (in Punkten)]],0),"") ->  | BJ39: =IFERROR(IF(AND(Risikoregister[[#This Row],[Zeitraum von num]]<=6,6<=Risikoregister[[#This Row],[Zeitraum bis num]]),Risikoregister[[#This Row],[Risikowert (in Punkten)]],0),"") ->  | BK39: =IFERROR(IF(AND(Risikoregister[[#This Row],[Zeitraum von num]]<=7,7<=Risikoregister[[#This Row],[Zeitraum bis num]]),Risikoregister[[#This Row],[Risikowert (in Punkten)]],0),"") ->  | BL39: =IFERROR(IF(AND(Risikoregister[[#This Row],[Zeitraum von num]]<=8,8<=Risikoregister[[#This Row],[Zeitraum bis num]]),Risikoregister[[#This Row],[Risikowert (in Punkten)]],0),"") ->  | BM39: =IFERROR(IF(AND(Risikoregister[[#This Row],[Zeitraum von num]]<=9,9<=Risikoregister[[#This Row],[Zeitraum bis num]]),Risikoregister[[#This Row],[Risikowert (in Punkten)]],0),"") -> 
S40: =IFERROR(Risikoregister[[#This Row],[W. num (vor Maßnahme)]]*Risikoregister[[#This Row],[A. num (vor Maßnahme)]],#N/A) ->  | Y40: =IFERROR(Risikoregister[[#This Row],[Wahrscheinlichkeit quant. (vor Maßnahme)]]*Risikoregister[[#This Row],[Auswirkung Kosten quant.]],#N/A) -> 0 | AI40: =IFERROR(VLOOKUP(Risikoregister[[#This Row],[Wahrscheinlichkeit* (nach Maßnahme)]],Tab_Wahrscheinlichkeit[],7,0)*Risikoregister[[#This Row],[A. num (nach Maßnahme)]],#N/A) ->  | AJ40: =IFERROR(VLOOKUP(Risikoregister[[#This Row],[Wahrscheinlichkeit* (nach Maßnahme)]],Tab_Wahrscheinlichkeit[],6,0)*Risikoregister[[#This Row],[Auswirkung Kosten quant.]],#N/A) ->  | AQ40: =IFERROR(VLOOKUP(Risikoregister[[#This Row],[Wahrscheinlichkeit qual. (vor Maßnahme)]],Tab_Wahrscheinlichkeit[],7,FALSE),#N/A) ->  | AR40: =IFERROR(VLOOKUP(Risikoregister[[#This Row],[Wahrscheinlichkeit qual. (vor Maßnahme)]],Tab_Wahrscheinlichkeit[],5,FALSE)+Versatz_Portfolio,#N/A) ->  | AS40: =MAX( IF(ISBLANK(Risikoregister[[#This Row],[Auswirkung Kosten qual. (vor Maßnahme)]]),0, VLOOKUP(Risikoregister[[#This Row],[Auswirkung Kosten qual. (vor Maßnahme)]],Tab_Auswirkung[],6,FALSE) ), IF(ISBLANK(Risikoregister[[#This Row],[Auswirkung Termine qual. (vor Maßnahme)]]),0, VLOOKUP(Risikoregister[[#This Row],[Auswirkung Termine qual. (vor Maßnahme)]],Tab_Auswirkung[],6,FALSE) ), IF(ISBLANK(Risikoregister[[#This Row],[Auswirkung Leistung qual. (vor Maßnahme)]]),0, VLOOKUP(Risikoregister[[#This Row],[Auswirkung Leistung qual. (vor Maßnahme)]],Tab_Auswirkung[],6,FALSE) ), ) -> 0 | AT40: =MAX( IF(ISBLANK(Risikoregister[[#This Row],[Auswirkung Kosten (nach Maßnahme)]]),0, VLOOKUP(Risikoregister[[#This Row],[Auswirkung Kosten (nach Maßnahme)]],Tab_Auswirkung[],6,FALSE) ), IF(ISBLANK(Risikoregister[[#This Row],[Auswirkung Termine (nach Maßnahme)]]),0, VLOOKUP(Risikoregister[[#This Row],[Auswirkung Termine (nach Maßnahme)]],Tab_Auswirkung[],6,FALSE) ), IF(ISBLANK(Risikoregister[[#This Row],[Auswirkung Leistung (nach Maßnahme)]]),0, VLOOKUP(Risikoregister[[#This Row],[Auswirkung Leistung (nach Maßnahme)]],Tab_Auswirkung[],6,FALSE) ), ) -> 0 | AU40: =MAX( IF(ISBLANK(Risikoregister[[#This Row],[Auswirkung Kosten qual. (vor Maßnahme)]]),0, VLOOKUP(Risikoregister[[#This Row],[Auswirkung Kosten qual. (vor Maßnahme)]],Tab_Auswirkung[],5,FALSE) ), IF(ISBLANK(Risikoregister[[#This Row],[Auswirkung Termine qual. (vor Maßnahme)]]),0, VLOOKUP(Risikoregister[[#This Row],[Auswirkung Termine qual. (vor Maßnahme)]],Tab_Auswirkung[],5,FALSE) ), IF(ISBLANK(Risikoregister[[#This Row],[Auswirkung Leistung qual. (vor Maßnahme)]]),0, VLOOKUP(Risikoregister[[#This Row],[Auswirkung Leistung qual. (vor Maßnahme)]],Tab_Auswirkung[],5,FALSE) ), ) -> 0 | AV40: =MAX( IF(ISBLANK(Risikoregister[[#This Row],[Auswirkung Kosten (nach Maßnahme)]]),0, VLOOKUP(Risikoregister[[#This Row],[Auswirkung Kosten (nach Maßnahme)]],Tab_Auswirkung[],5,FALSE) ), IF(ISBLANK(Risikoregister[[#This Row],[Auswirkung Termine (nach Maßnahme)]]),0, VLOOKUP(Risikoregister[[#This Row],[Auswirkung Termine (nach Maßnahme)]],Tab_Auswirkung[],5,FALSE) ), IF(ISBLANK(Risikoregister[[#This Row],[Auswirkung Leistung (nach Maßnahme)]]),0, VLOOKUP(Risikoregister[[#This Row],[Auswirkung Leistung (nach Maßnahme)]],Tab_Auswirkung[],5,FALSE) ), ) -> 0 | AW40: =IF(Risikoregister[[#This Row],[A. num Portfolio Hilfswert (vor Maßnahme)]]=0,#N/A,Risikoregister[[#This Row],[A. num Portfolio Hilfswert (vor Maßnahme)]]+Versatz_Portfolio) ->  | AX40: =IFERROR(VLOOKUP(Risikoregister[[#This Row],[Wahrscheinlichkeit* (nach Maßnahme)]],Tab_Wahrscheinlichkeit[],5,FALSE)+Versatz_Portfolio,#N/A) ->  | AY40: =IF(Risikoregister[[#This Row],[A. num Portfolio Hilfswert (nach Maßnahme)]]=0,#N/A,Risikoregister[[#This Row],[A. num Portfolio Hilfswert (nach Maßnahme)]]+Versatz_Portfolio) ->  | AZ40: =IF(Risikoregister[[#This Row],[Maßnahmen-Status]]=Planung!$W$9,Risikoregister[[#This Row],[W. num (nach Maßnahme)]],Risikoregister[[#This Row],[W. num Portfolio (vor Maßnahme)]]) ->  | BA40: =IF(Risikoregister[[#This Row],[Maßnahmen-Status]]=Planung!$W$9,Risikoregister[[#This Row],[A. num (nach Maßnahme)2]],Risikoregister[[#This Row],[A. num Portfolio (vor Maßnahme)]]) ->  | BC40: =VLOOKUP(Risikoregister[[#This Row],[Zeitraum von]],Zeiträume[],2,FALSE) ->  | BD40: =IF(ISBLANK(Risikoregister[[#This Row],[Zeitraum bis]]),Risikoregister[[#This Row],[Zeitraum von num]],VLOOKUP(Risikoregister[[#This Row],[Zeitraum bis]],Zeiträume[],2,FALSE)) ->  | BE40: =IFERROR(IF(AND(Risikoregister[[#This Row],[Zeitraum von num]]<=1,1<=Risikoregister[[#This Row],[Zeitraum bis num]]),Risikoregister[[#This Row],[Risikowert (in Punkten)]],0),"") ->  | BF40: =IFERROR(IF(AND(Risikoregister[[#This Row],[Zeitraum von num]]<=2,2<=Risikoregister[[#This Row],[Zeitraum bis num]]),Risikoregister[[#This Row],[Risikowert (in Punkten)]],0),"") ->  | BG40: =IFERROR(IF(AND(Risikoregister[[#This Row],[Zeitraum von num]]<=3,3<=Risikoregister[[#This Row],[Zeitraum bis num]]),Risikoregister[[#This Row],[Risikowert (in Punkten)]],0),"") ->  | BH40: =IFERROR(IF(AND(Risikoregister[[#This Row],[Zeitraum von num]]<=4,4<=Risikoregister[[#This Row],[Zeitraum bis num]]),Risikoregister[[#This Row],[Risikowert (in Punkten)]],0),"") ->  | BI40: =IFERROR(IF(AND(Risikoregister[[#This Row],[Zeitraum von num]]<=5,5<=Risikoregister[[#This Row],[Zeitraum bis num]]),Risikoregister[[#This Row],[Risikowert (in Punkten)]],0),"") ->  | BJ40: =IFERROR(IF(AND(Risikoregister[[#This Row],[Zeitraum von num]]<=6,6<=Risikoregister[[#This Row],[Zeitraum bis num]]),Risikoregister[[#This Row],[Risikowert (in Punkten)]],0),"") ->  | BK40: =IFERROR(IF(AND(Risikoregister[[#This Row],[Zeitraum von num]]<=7,7<=Risikoregister[[#This Row],[Zeitraum bis num]]),Risikoregister[[#This Row],[Risikowert (in Punkten)]],0),"") ->  | BL40: =IFERROR(IF(AND(Risikoregister[[#This Row],[Zeitraum von num]]<=8,8<=Risikoregister[[#This Row],[Zeitraum bis num]]),Risikoregister[[#This Row],[Risikowert (in Punkten)]],0),"") ->  | BM40: =IFERROR(IF(AND(Risikoregister[[#This Row],[Zeitraum von num]]<=9,9<=Risikoregister[[#This Row],[Zeitraum bis num]]),Risikoregister[[#This Row],[Risikowert (in Punkten)]],0),"") -> 
A41: Ergebnis | BE41: =SUBTOTAL(109,Risikoregister[Risikowert Zeitraum 1]) -> 110 | BF41: =SUBTOTAL(109,Risikoregister[Risikowert Zeitraum 2]) -> 38 | BG41: =SUBTOTAL(109,Risikoregister[Risikowert Zeitraum 3]) -> 38 | BH41: =SUBTOTAL(109,Risikoregister[Risikowert Zeitraum 4]) -> 98 | BI41: =SUBTOTAL(109,Risikoregister[Risikowert Zeitraum 5]) -> 98 | BJ41: =SUBTOTAL(109,Risikoregister[Risikowert Zeitraum 6]) -> 0 | BK41: =SUBTOTAL(109,Risikoregister[Risikowert Zeitraum 7]) -> 0 | BL41: =SUBTOTAL(109,Risikoregister[Risikowert Zeitraum 8]) -> 0 | BM41: =SUBTOTAL(109,Risikoregister[Risikowert Zeitraum 9]) -> 0

Sheet Risikoportfolio

Sheet Ganglinien

Sheet Planung
A3: HILFE | B3: Auswahlwerte für die Wahrscheinlichkeit. Anzahl soll gerade sein (keine "Mitte") | C3: Kurzbeschreibung der Wahrscheinlichkeits-Werte | D3: Definition des Wertebereiches der Wahrscheinlichkeit in Prozent. | F3: Hilfswert für das Risiko-portfolio | G3: %-Wert für die Berechnung mit der Wahrschein-lichkeit | H3: Punkte-Wert für die Berechnung mit der Wahrschein-lichkeit | J3: Auswahlwerte für die Auswirkung. Anzahl soll gerade sein (keine "Mitte") | K3: Beschreibung der Auswirkung hinsichtlich der Kosten zur Erklärung | L3: Beschreibung der Auswirkung hinsichtlich der Termine zur Erklärung | M3: Beschreibung der Auswirkung hinsichtlich des Projektergebnisses (Umfang und Qualität) zur Erklärung | O3: Punkte-Wert für die Berechnung mit der Auswirkung | Q3: Auswahlwerte für Risikokategorie | R3: weitere Erklärung für die Risikokategorie | T3: Auswahlwerte für Risikostrategie | U3: weitere Erklärung für die Risikostrategie | W3: Auswahlwerte für den Status der Risikomaßnahme | X3: weitere Erklärung für den Maßnahmenstatus | Z3: Auswahlwerte für den Status des Risikos | AA3: weitere Erklärung für den Risikostatus
B4: Wahrscheinlichkeit | J4: Auswirkung | Q4: Kategorie | T4: Strategie | W4: Maßnahmenstatus | Z4: Risikostatus | AC4: Risikoappetit | AN4: Zeiträume Ganglinien | AQ4: Risikoteam
B5: Wert | C5: Beschreibung | D5: von | E5: bis | F5: Port-folio | G5: Berech-nung % | H5: Berech-nung Pkt | J5: Wert | K5: auf Kosten | L5: auf Zeit | M5: auf Ergebnis | N5: Port-folio | O5: Berech-nung Pkt | Q5: Wert | R5: Erklärung | T5: Wert | U5: Erklärung | W5: Wert | X5: Erklärung | Z5: Wert | AA5: Erklärung | AC5: Kritikalität | AD5: max. Wert | AE5: Erklärung | AG5: Risikoportfolio mit Toleranzlinien | AN5: Zeitraum-Name | AO5: Zeitraum-Nr.2 | AQ5: Person | AR5: Spalte2
B6: kaum denkbar (< 10%) | C6: Eintritt des Risikos ist kaum denkbar. | D6: 0 | E6: 0.1 | F6: 0.5 | G6: =(E6-D6)/2+D6 -> 0.05 | H6: 1 | J6: unbedeutend | K6: Unter 5% des Projektbudgets und unter 0,005% der Kosten des Unternehmensbereichs | L6: unbedeutender Zeitanstieg | M6: kaum wahrnehmbar | N6: 0.5 | O6: 1 | Q6: TECHNIK: Komplexität der Technologie | T6: Bedrohung: vermeiden | U6: Eintritt ausschließen | W6: definiert | Z6: offen | AC6: grün | AD6: 16 | AF6: =H11 -> 9 | AG6: =AF6*AG$12 -> 9 | AH6: =AF6*AH$12 -> 18 | AI6: =AF6*AI$12 -> 36 | AJ6: =AF6*AJ$12 -> 54 | AK6: =AF6*AK$12 -> 72 | AL6: =AF6*AL$12 -> 81 | AN6: Fahrt Bonn - Dortmund | AO6: 1 | AQ6: Herr Müller
B7: selten (10 - 35%) | C7: Eintritt des Risikos ist denkbar unter aussergewöhnlichen Umständen. | D7: 0.1 | E7: 0.35 | F7: 1.5 | G7: =(E7-D7)/2+D7 -> 0.225 | H7: 2 | J7: gering | K7: Unter 10% des Projektbudgets und unter 0,01% der Kosten des Unternehmensbereichs | L7: < 5% Zeitanstieg | M7: kleine Bereiche betroffen | N7: 1.5 | O7: 2 | Q7: TECHNIK: Qualität der Technologie | T7: Bedrohung: verlagern | U7: Versichern oder weitergeben | W7: geplant | Z7: eingetreten | AC7: gelb | AD7: 48 | AF7: =H10 -> 8 | AG7: 8 | AH7: 16 | AI7: 32 | AJ7: 48 | AK7: 64 | AL7: 72 | AN7: Fahrt Dortmund - Bielefeld | AO7: 2 | AQ7: Frau Müller
B8: unwahrscheinlich (35 - 50%) | C8: Das Risikos kann unter sehr ungünstigen Umständen eintreten. | D8: 0.35 | E8: 0.5 | F8: 2.5 | G8: 0.425 | H8: 4 | J8: mäßig | K8: Unter 20% des Projektbudgets und unter 0,02% der Kosten des Unternehmensbereichs | L8: bis 10% Zeitanstieg | M8: größere Bereiche betroffen | N8: 2.5 | O8: 4 | Q8: TECHNIK: Sonstige | T8: Bedrohung: vermindern | U8: Korrektive & präventive Maßnahmen | W8: in Arbeit | Z8: geschlossen | AC8: rot | AF8: =H9 -> 6 | AG8: 6 | AH8: 12 | AI8: 24 | AJ8: 36 | AK8: 48 | AL8: 54 | AN8: Fahrt Bielefeld - Braunschweig | AO8: 3
B9: möglich (50 - 65%) | C9: Das Risiko kann unter ungünstigen Umständen eintreten. | D9: 0.5 | E9: 0.65 | F9: 3.5 | G9: 0.575 | H9: 6 | J9: erheblich | K9: Unter 35% des Projektbudgets und unter 0,035% der Kosten des Unternehmensbereichs | L9: bis 20% Zeitanstieg | M9: Kernbereich betroffen | N9: 3.5 | O9: 6 | Q9: ORGANISATION: Unangemessene Zeit-, Kosten-, Inhaltserwartungen | T9: Bedrohung: akzeptieren | U9: Zuschläge, Reserven bilden | W9: abgeschlossen | X9: nicht ändern, Status wird in Formel abgefragt! | AF9: =H8 -> 4 | AG9: 4 | AH9: 8 | AI9: 16 | AJ9: 24 | AK9: 32 | AL9: 36 | AN9: Fahrt Braunschweig - Magdeburg | AO9: 4
B10: wahrscheinlich (65 - 90%) | C10: Das Risiko wird unter ungünstigen Umständen wahrscheinlich eintreten. | D10: 0.65 | E10: 0.9 | F10: 4.5 | G10: 0.775 | H10: 8 | J10: hoch | K10: Unter 50% des Projektbudgets und unter 0,05% der Kosten des Unternehmensbereichs | L10: bis 35% Zeitanstieg | M10: Für Sponsor nicht akzeptabel | N10: 4.5 | O10: 8 | Q10: ORGANISATION: Einsatzmittel (Finanzen, Ressourcen, …) | T10: Chance: nutzen | U10: Eintritt sicherstellen | W10: zurückgestellt | AF10: =H7 -> 2 | AG10: 2 | AH10: 4 | AI10: 8 | AJ10: 12 | AK10: 16 | AL10: 18 | AN10: Fahrt Magdeburg - Berlin | AO10: 5
B11: fast sicher (90 - 100%) | C11: Eintritt des Risikos wird erwartet. | D11: 0.9 | E11: 1 | F11: 5.5 | G11: 0.95 | H11: 9 | J11: fatal | K11: Über 50% des Projektbudgets und über 0,05% der Kosten des Unternehmensbereichs | L11: > 35% Zeitanstieg | M11: Bereich ist bis zum Ende des Projektes nutzlos | N11: 5.5 | O11: 9 | Q11: ORGANISATION: Sonstige | T11: Chance: teilen | U11: z. B. Partnerschaften bilden | AF11: =H6 -> 1 | AG11: 1 | AH11: 2 | AI11: 4 | AJ11: 6 | AK11: 8 | AL11: 9 | AO11: 6
Q12: PM: Ziele, Inhalt und Umfang | T12: Chance: steigern | U12: Korrektive & präventive Maßnahmen | AG12: =O6 -> 1 | AH12: =O7 -> 2 | AI12: =O8 -> 4 | AJ12: =O9 -> 6 | AK12: =O10 -> 8 | AL12: =O11 -> 9 | AO12: 7
Q13: PM: Kosten | T13: Chance: ignorieren | AO13: 8
Q14: PM: Qualität Projektergebnisse | AO14: 9
Q15: PM: Einsatzmittel
Q16: PM: Beschaffung
Q17: PM: Kommunikation und Stakeholder
Q18: PM: Sonstige
Q19: EXTERN: Auftragnehmer
Q20: EXTERN: Gesetze, Verordnungen
Q21: EXTERN: Markt, Wettbewerb
Q22: EXTERN: Kunde
Q23: EXTERN: Sonstige
